Workbook

Sheet Ek.3-B
N1: Ek.3-B / 1
A2: YERLİ KATKI ORANI HESAP CETVELİ
A3: B) Nihai Ürün Doğrudan ve Dolaylı İşçilik Giderleri S / 1
A4: Sıra No | B4: Yerli Girdi | H4: Sıra No | I4: İthal Girdi
B5: işçilik | C5: a=Miktar | D5: Birim | E5: b=Fiyatı(TL) | F5: c= axb= İşçilik Maliyet Tutarı (TL) | I5: İşçilik | J5: a=Miktar | K5: Birim | L5: b=Fiyatı (Döviz cinsinden) | M5: c=Döviz Kuru | N5: d= axbxc =İşçilik Maliyet Tutarı (TL)
B6: Doğrudan | I6: Doğrudan
A7: 1 | F7: =IF(C7*E7 = 0, "", C7*E7) ->  | H7: 1 | N7: =IF(J7*L7*M7 = 0, "", J7*L7*M7) -> 
A8: 2 | F8: =IF(C8*E8 = 0, "", C8*E8) ->  | H8: 2
A9: 3 | H9: 3
A10: 4 | H10: 4
A11: 5 | H11: 5
A12: 6 | H12: 6
A13: 7 | H13: 7
A14: 8 | H14: 8
A15: 9 | H15: 9
A16: 10 | H16: 10
A17: 11 | H17: 11
A18: 12 | H18: 12
B19: Dolaylı | I19: Dolaylı
A20: 1 | F20: =IF(C20*E20 = 0, "", C20*E20) ->  | H20: 1
A21: 2 | F21: =IF(C21*E21 = 0, "", C21*E21) ->  | H21: 2
A22: 3 | H22: 3
A23: 4 | H23: 4
A24: 5 | H24: 5
A25: 6 | H25: 6
A26: 7 | H26: 7
A27: 8 | H27: 8
A28: 9 | H28: 9
A29: 10 | H29: 10
A30: 11 | H30: 11
A31: 12 | H31: 12
A32: Sayfa Toplamı (TL) T3 *(Genel Dip Toplam Ek.3-D sayfasında otomatik hesaplanacaktır.) | F32: =IF(SUM(F7:F18,F20:F31)=0," ",SUM(F7:F18,F20:F31)) ->  | H32: Sayfa Toplamı (TL) T4 *(Genel Dip Toplam Ek.3-D sayfasında otomatik hesaplanacaktır.) | N32: =IF(SUM(N7:N18,N20:N31)=0," ",SUM(N7:N18,N20:N31)) -> 
A36: YERLİ KATKI ORANI HESAP CETVELİ
A37: B) Nihai Ürün Doğrudan ve Dolaylı İşçilik Giderleri S / 2
A38: Sıra No | B38: Yerli Girdi | H38: Sıra No | I38: İthal Girdi
B39: işçilik | C39: a=Miktar | D39: Birim | E39: b=Fiyatı(TL) | F39: c= axb= İşçilik Maliyet Tutarı (TL) | I39: İşçilik | J39: a=Miktar | K39: Birim | L39: b=Fiyatı (Döviz cinsinden) | M39: c=Döviz Kuru | N39: d= axbxc =İşçilik Maliyet Tutarı (TL)
B40: Doğrudan | I40: Doğrudan
A41: =A31+1 -> 13 | F41: =IF(C41*E41 = 0, "", C41*E41) ->  | H41: =H31+1 -> 13 | N41: =IF(J41*L41*M41 = 0, "", J41*L41*M41) -> 
A42: =A41+1 -> 14 | F42: =IF(C42*E42 = 0, "", C42*E42) ->  | H42: =H41+1 -> 14
A43: =A42+1 -> 15 | H43: =H42+1 -> 15
A44: =A43+1 -> 16 | H44: =H43+1 -> 16
A45: 17 | H45: 17
A46: 18 | H46: 18
A47: 19 | H47: 19
A48: 20 | H48: 20
A49: 21 | H49: 21
A50: 22 | H50: 22
A51: 23 | H51: 23
A52: 24 | H52: 24
B53: Dolaylı | I53: Dolaylı
A54: =A31+1 -> 13 | F54: =IF(C54*E54 = 0, "", C54*E54) ->  | H54: =H31+1 -> 13
A55: =A54+1 -> 14 | F55: =IF(C55*E55 = 0, "", C55*E55) ->  | H55: =H54+1 -> 14
A56: =A55+1 -> 15 | H56: =H55+1 -> 15
A57: =A56+1 -> 16 | H57: =H56+1 -> 16
A58: 17 | H58: 17
A59: 18 | H59: 18
A60: 19 | H60: 19
A61: 20 | H61: 20
A62: 21 | H62: 21
A63: 22 | H63: 22
A64: 23 | H64: 23
A65: 24 | H65: 24
A66: Sayfa Toplamı (TL) T3 *(Genel Dip Toplam Ek.3-D sayfasında otomatik hesaplanacaktır.) | F66: =IF(SUM(F41:F52,F54:F65)=0," ",SUM(F41:F52,F54:F65)) ->  | H66: Sayfa Toplamı (TL) T4 *(Genel Dip Toplam Ek.3-D sayfasında otomatik hesaplanacaktır.) | N66: =IF(SUM(N41:N52,N54:N65)=0," ",SUM(N41:N52,N54:N65)) -> 
A70: YERLİ KATKI ORANI HESAP CETVELİ
A71: B) Nihai Ürün Doğrudan ve Dolaylı İşçilik Giderleri S / 3
A72: Sıra No | B72: Yerli Girdi | H72: Sıra No | I72: İthal Girdi
B73: işçilik | C73: a=Miktar | D73: Birim | E73: b=Fiyatı(TL) | F73: c= axb= İşçilik Maliyet Tutarı (TL) | I73: İşçilik | J73: a=Miktar | K73: Birim | L73: b=Fiyatı (Döviz cinsinden) | M73: c=Döviz Kuru | N73: d= axbxc =İşçilik Maliyet Tutarı (TL)
B74: Doğrudan | I74: Doğrudan
A75: =A65+1 -> 25 | F75: =IF(C75*E75 = 0, "", C75*E75) ->  | H75: =H65+1 -> 25 | N75: =IF(J75*L75*M75 = 0, "", J75*L75*M75) -> 
A76: =A75+1 -> 26 | H76: =H75+1 -> 26
A77: =A76+1 -> 27 | H77: =H76+1 -> 27
A78: =A77+1 -> 28 | H78: =H77+1 -> 28
A79: 29 | H79: 29
A80: 30 | H80: 30
A81: 31 | H81: 31
A82: 32 | H82: 32
A83: 33 | H83: 33
A84: 34 | H84: 34
A85: 35 | H85: 35
A86: 36 | H86: 36
B87: Dolaylı | I87: Dolaylı
A88: =A65+1 -> 25 | F88: =IF(C88*E88 = 0, "", C88*E88) ->  | H88: =H65+1 -> 25
A89: =A88+1 -> 26 | H89: =H88+1 -> 26
A90: =A89+1 -> 27 | H90: =H89+1 -> 27
A91: =A90+1 -> 28 | H91: =H90+1 -> 28
A92: 29 | H92: 29
A93: 30 | H93: 30
A94: 31 | H94: 31
A95: 32 | H95: 32
A96: 33 | H96: 33
A97: 34 | H97: 34
A98: 35 | H98: 35
A99: 36 | H99: 36
A100: Sayfa Toplamı (TL) T3 *(Genel Dip Toplam Ek.3-D sayfasında otomatik hesaplanacaktır.) | F100: =IF(SUM(F75:F86,F88:F99)=0," ",SUM(F75:F86,F88:F99)) ->  | H100: Sayfa Toplamı (TL) T4 *(Genel Dip Toplam Ek.3-D sayfasında otomatik hesaplanacaktır.) | N100: =IF(SUM(N75:N86,N88:N99)=0," ",SUM(N75:N86,N88:N99)) -> 
A104: YERLİ KATKI ORANI HESAP CETVELİ
A105: B) Nihai Ürün Doğrudan ve Dolaylı İşçilik Giderleri S / 4
A106: Sıra No | B106: Yerli Girdi | H106: Sıra No | I106: İthal Girdi
B107: işçilik | C107: a=Miktar | D107: Birim | E107: b=Fiyatı(TL) | F107: c= axb= İşçilik Maliyet Tutarı (TL) | I107: İşçilik | J107: a=Miktar | K107: Birim | L107: b=Fiyatı (Döviz cinsinden) | M107: c=Döviz Kuru | N107: d= axbxc =İşçilik Maliyet Tutarı (TL)
B108: Doğrudan | I108: Doğrudan
A109: =A99+1 -> 37 | F109: =IF(C109*E109 = 0, "", C109*E109) ->  | H109: =H99+1 -> 37 | N109: =IF(J109*L109*M109 = 0, "", J109*L109*M109) -> 
A110: =A109+1 -> 38 | H110: =H109+1 -> 38
A111: =A110+1 -> 39 | H111: =H110+1 -> 39
A112: =A111+1 -> 40 | H112: =H111+1 -> 40
A113: 41 | H113: 41
A114: 42 | H114: 42
A115: 43 | H115: 43
A116: 44 | H116: 44
A117: 45 | H117: 45
A118: 46 | H118: 46
A119: 47 | H119: 47
A120: 48 | H120: 48
B121: Dolaylı | I121: Dolaylı
A122: =A99+1 -> 37 | F122: =IF(C122*E122 = 0, "", C122*E122) ->  | H122: =H99+1 -> 37
A123: =A122+1 -> 38 | H123: =H122+1 -> 38
A124: =A123+1 -> 39 | H124: =H123+1 -> 39
A125: =A124+1 -> 40 | H125: =H124+1 -> 40
A126: 41 | H126: 41
A127: 42 | H127: 42
A128: 43 | H128: 43
A129: 44 | H129: 44
A130: 45 | H130: 45
A131: 46 | H131: 46
A132: 47 | H132: 47
A133: 48 | H133: 48
A134: Sayfa Toplamı (TL) T3 *(Genel Dip Toplam Ek.3-D sayfasında otomatik hesaplanacaktır.) | F134: =IF(SUM(F109:F120,F122:F133)=0," ",SUM(F109:F120,F122:F133)) ->  | H134: Sayfa Toplamı (TL) T4 *(Genel Dip Toplam Ek.3-D sayfasında otomatik hesaplanacaktır.) | N134: =IF(SUM(N109:N120,N122:N133)=0," ",SUM(N109:N120,N122:N133)) -> 

Sheet Ek.3-C
N1: Ek.3-C / 1
A2: YERLİ KATKI ORANI HESAP CETVELİ
A3: C) Nihai Ürün İle İlgili Genel Giderler S / 1
A4: Sıra No | B4: Yerli Girdi | H4: Sıra No | I4: İthal Girdi*
B5: Genel Gider Türü | C5: a=Miktar | D5: Birim | E5: b=Fiyatı(TL) | F5: c= axb= Genel Gider Tutarı (TL) | I5: Genel Gider Türü | J5: a=Miktar | K5: Birim | L5: b=Fiyatı (Döviz cinsinden) | M5: c=Döviz Kuru | N5: d= axbxc= Genel Gider Tutarı (TL)
A6: 1 | F6: =IF(C6*E6 = 0, "", C6*E6) ->  | H6: 1 | N6: =IF(J6*L6*M6 = 0, "", J6*L6*M6) -> 
A7: 2 | F7: =IF(C7*E7 = 0, "", C7*E7) ->  | H7: 2 | N7: =IF(J7*L7*M7 = 0, "", J7*L7*M7) -> 
A8: 3 | H8: 3
A9: 4 | H9: 4
A10: 5 | H10: 5
A11: 6 | H11: 6
A12: 7 | H12: 7
A13: 8 | H13: 8
A14: 9 | H14: 9
A15: 10 | H15: 10
A16: 11 | H16: 11
A17: 12 | H17: 12
A18: 13 | H18: 13
A19: 14 | H19: 14
A20: 15 | H20: 15
A21: 16 | H21: 16
A22: 17 | H22: 17
A23: 18 | H23: 18
A24: 19 | H24: 19
A25: 20 | H25: 20
A26: 21 | H26: 21
A27: 22 | H27: 22
A28: 23 | H28: 23
A29: 24 | H29: 24
A30: 25 | H30: 25
A31: Sayfa Toplamı (TL) T5 *(Genel Dip Toplam Ek.3-D sayfasında otomatik hesaplanacaktır.) | F31: =IF(SUM(F6:F30)=0, " ", SUM(F6:F30)) ->  | H31: Sayfa Toplamı (TL) T6 *(Genel Dip Toplam Ek.3-D sayfasında otomatik hesaplanacaktır.) | N31: =IF(SUM(N6:N30)=0, " ", SUM(N6:N30)) -> 
N34: Ek.3-C / 2
A35: YERLİ KATKI ORANI HESAP CETVELİ
A36: C) Nihai Ürün İle İlgili Genel Giderler S / 2
A37: Sıra No | B37: Yerli Girdi | H37: Sıra No | I37: İthal Girdi*
B38: Genel Gider Türü | C38: a=Miktar | D38: Birim | E38: b=Fiyatı(TL) | F38: c= axb= Genel Gider Tutarı (TL) | I38: Genel Gider Türü | J38: a=Miktar | K38: Birim | L38: b=Fiyatı (Döviz cinsinden) | M38: c=Döviz Kuru | N38: d= axbxc= Genel Gider Tutarı (TL)
A39: 26 | F39: =IF(C39*E39 = 0, "", C39*E39) ->  | H39: 26 | N39: =IF(J39*L39*M39 = 0, "", J39*L39*M39) -> 
A40: 27 | F40: =IF(C40*E40 = 0, "", C40*E40) ->  | H40: 27
A41: 28 | H41: 28
A42: 29 | H42: 29
A43: 30 | H43: 30
A44: 31 | H44: 31
A45: 32 | H45: 32
A46: 33 | H46: 33
A47: 34 | H47: 34
A48: 35 | H48: 35
A49: 36 | H49: 36
A50: 37 | H50: 37
A51: 38 | H51: 38
A52: 39 | H52: 39
A53: 40 | H53: 40
A54: 41 | H54: 41
A55: 42 | H55: 42
A56: 43 | H56: 43
A57: 44 | H57: 44
A58: 45 | H58: 45
A59: 46 | H59: 46
A60: 47 | H60: 47
A61: 48 | H61: 48
A62: 49 | H62: 49
A63: 50 | H63: 50
A64: Sayfa Toplamı (TL) T5 *(Genel Dip Toplam Ek.3-D sayfasında otomatik hesaplanacaktır.) | F64: =IF(SUM(F39:F63)=0, " ", SUM(F39:F63)) ->  | H64: Sayfa Toplamı (TL) T6 *(Genel Dip Toplam Ek.3-D sayfasında otomatik hesaplanacaktır.) | N64: =IF(SUM(N39:N63)=0, " ", SUM(N39:N63)) -> 
N67: Ek.3-C / 3
A68: YERLİ KATKI ORANI HESAP CETVELİ
A69: C) Nihai Ürün İle İlgili Genel Giderler S / 3
A70: Sıra No | B70: Yerli Girdi | H70: Sıra No | I70: İthal Girdi*
B71: Genel Gider Türü | C71: a=Miktar | D71: Birim | E71: b=Fiyatı(TL) | F71: c= axb= Genel Gider Tutarı (TL) | I71: Genel Gider Türü | J71: a=Miktar | K71: Birim | L71: b=Fiyatı (Döviz cinsinden) | M71: c=Döviz Kuru | N71: d= axbxc= Genel Gider Tutarı (TL)
A72: 51 | F72: =IF(C72*E72 = 0, "", C72*E72) ->  | H72: 51 | N72: =IF(J72*L72*M72 = 0, "", J72*L72*M72) -> 
A73: 52 | F73: =IF(C73*E73 = 0, "", C73*E73) ->  | H73: 52
A74: 53 | H74: 53
A75: 54 | H75: 54
A76: 55 | H76: 55
A77: 56 | H77: 56
A78: 57 | H78: 57
A79: 58 | H79: 58
A80: 59 | H80: 59
A81: 60 | H81: 60
A82: 61 | H82: 61
A83: 62 | H83: 62
A84: 63 | H84: 63
A85: 64 | H85: 64
A86: 65 | H86: 65
A87: 66 | H87: 66
A88: 67 | H88: 67
A89: 68 | H89: 68
A90: 69 | H90: 69
A91: 70 | H91: 70
A92: 71 | H92: 71
A93: 72 | H93: 72
A94: 73 | H94: 73
A95: 74 | H95: 74
A96: 75 | H96: 75
A97: Sayfa Toplamı (TL) T5 *(Genel Dip Toplam Ek.3-D sayfasında otomatik hesaplanacaktır.) | F97: =IF(SUM(F72:F96)=0, " ", SUM(F72:F96)) ->  | H97: Sayfa Toplamı (TL) T6 *(Genel Dip Toplam Ek.3-D sayfasında otomatik hesaplanacaktır.) | N97: =IF(SUM(N72:N96)=0, " ", SUM(N72:N96)) -> 
N100: Ek.3-C / 4
A101: YERLİ KATKI ORANI HESAP CETVELİ
A102: C) Nihai Ürün İle İlgili Genel Giderler S / 4
A103: Sıra No | B103: Yerli Girdi | H103: Sıra No | I103: İthal Girdi*
B104: Genel Gider Türü | C104: a=Miktar | D104: Birim | E104: b=Fiyatı(TL) | F104: c= axb= Genel Gider Tutarı (TL) | I104: Genel Gider Türü | J104: a=Miktar | K104: Birim | L104: b=Fiyatı (Döviz cinsinden) | M104: c=Döviz Kuru | N104: d= axbxc= Genel Gider Tutarı (TL)
A105: 76 | F105: =IF(C105*E105 = 0, "", C105*E105) ->  | H105: 76 | N105: =IF(J105*L105*M105 = 0, "", J105*L105*M105) -> 
A106: 77 | F106: =IF(C106*E106 = 0, "", C106*E106) ->  | H106: 77
A107: 78 | H107: 78
A108: 79 | H108: 79
A109: 80 | H109: 80
A110: 81 | H110: 81
A111: 82 | H111: 82
A112: 83 | H112: 83
A113: 84 | H113: 84
A114: 85 | H114: 85
A115: 86 | H115: 86
A116: 87 | H116: 87
A117: 88 | H117: 88
A118: 89 | H118: 89
A119: 90 | H119: 90
A120: 91 | H120: 91
A121: 92 | H121: 92
A122: 93 | H122: 93
A123: 94 | H123: 94
A124: 95 | H124: 95
A125: 96 | H125: 96
A126: 97 | H126: 97
A127: 98 | H127: 98
A128: 99 | H128: 99
A129: 100 | H129: 100
A130: Sayfa Toplamı (TL) T5 *(Genel Dip Toplam Ek.3-D sayfasında otomatik hesaplanacaktır.) | F130: =IF(SUM(F105:F129)=0, " ", SUM(F105:F129)) ->  | H130: Sayfa Toplamı (TL) T6 *(Genel Dip Toplam Ek.3-D sayfasında otomatik hesaplanacaktır.) | N130: =IF(SUM(N105:N129)=0, " ", SUM(N105:N129)) -> 

Sheet Ek.3-A
A1: YERLİ KATKI ORANI HESAP CETVELİ
A2: A) Nihai Ürün Doğrudan ve Dolaylı Malzeme Giderleri | T2: S | U2: 1
A3: Sıra No | B3: Malzeme adı / Faturadaki Ürün Adı | D3: Üretici Unvanı | E3: GTİP Kodu (İthal girdiler için) | F3: Gtip Katsayısı | G3: Miktar | H3: Birim | I3: Fiyatı (TL/Döviz) | J3: Döviz Kuru (TL ise 1 alınız) | K3: Fatura Tutarı (TL) | L3: Girdi Maliyet Yüzdesi (%) | M3: Girdi yüzdesi %0,5 altında olan girdiler için %10 sınır kontrolü | N3: Girdi yüzdesi %0,5 altında olan girdiler için %10 sınır kontrolü | O3: SSB/ Müstahsil (E/H) | P3: YKO (%) (Manuel girilmeli) | Q3: Geçerli Yerli Oranı (%) | R3: Yerli Maliyet Tutarı (T1) | S3: Yerli Maliyet Tutarı (T1) | T3: Yerli Maliyet Tutarı (T1) | U3: İthal Maliyet Tutarı (T2)
B4: Doğrudan Girdi (Dolaylı girdiniz varsa en son 25. sayfaya doldurunuz)
A5: 1 | F5: =IF(AND(E5<>"",U5<>"",K5<>0),U5/K5,"") ->  | K5: =IF(AND(G5<>0, I5<>0, J5<>0), G5*I5*J5, "") ->  | L5: =IF(K5="", "", K5/Veriler!$T$1) ->  | M5: =IF(E5<>"", "İthal Girdi", IF(Veriler!P5="", "", IF(Veriler!O5="H", "%0,5 üzerindedir", IF(Veriler!P5>0.1, "%10 sınırı aşılmıştır.", "Uygun")))) -> %0,5 üzerindedir | N5: =IF(L5=""," ",M5) ->  | Q5: =IFERROR(IF(AND(S5<>"",K5<>"",K5<>0,S5<>0),S5/K5,"")," ") ->  | R5: =IFERROR(IF(L5<=0.005,IF(E5="",K5,0),IF(E5<>"",0,IF(O5="",0,IF(O5="H",0,IF(P5<Veriler!$F$2,K5*Veriler!$F$2,K5*P5)))))," ") -> 0 | S5: =IF(Veriler!P5<=0.1, R5, IF(AND(Veriler!P5>0.1, E5="", O5="E"), IF(P5>Veriler!$F$2, P5*R5, IF(P5<Veriler!$F$2, Veriler!$F$2*R5, P5*R5)), 0)) -> 0 | T5: =IF(S5=0," ",S5) ->  | U5: =IFERROR(IF(N5="%10 sınırı aşılmıştır.",K5-S5,IFERROR(IF(E5="",IF(R5=1,0,IF(K5-R5=0,"",K5-R5)),IF(Veriler!I5="",K5,IF(K5*Veriler!I5=0,"",K5*Veriler!I5))),K5)),0) -> 
A6: 2 | K6: =IF(AND(G6<>0, I6<>0, J6<>0), G6*I6*J6, "") ->  | L6: =IF(K6="", "", K6/Veriler!$T$1) ->  | M6: =IF(E6<>"", "İthal Girdi", IF(Veriler!P6="", "", IF(Veriler!O6="H", "%0,5 üzerindedir", IF(Veriler!P6>0.1, "%10 sınırı aşılmıştır.", "Uygun")))) -> %0,5 üzerindedir | R6: =IFERROR(IF(L6<=0.005,IF(E6="",K6,0),IF(E6<>"",0,IF(O6="",0,IF(O6="H",0,IF(P6<Veriler!$F$2,K6*Veriler!$F$2,K6*P6)))))," ") -> 0 | S6: =IF(Veriler!P6<=0.1, R6, IF(AND(Veriler!P6>0.1, E6="", O6="E"), IF(P6>Veriler!$F$2, P6*R6, IF(P6<Veriler!$F$2, Veriler!$F$2*R6, P6*R6)), 0)) -> 0 | T6: =IF(S6=0," ",S6) ->  | U6: =IFERROR(IF(N6="%10 sınırı aşılmıştır.",K6-S6,IFERROR(IF(E6="",IF(R6=1,0,IF(K6-R6=0,"",K6-R6)),IF(Veriler!I6="",K6,IF(K6*Veriler!I6=0,"",K6*Veriler!I6))),K6)),0) -> 
A7: 3 | L7: =IF(K7="", "", K7/Veriler!$T$1) ->  | M7: =IF(E7<>"", "İthal Girdi", IF(Veriler!P7="", "", IF(Veriler!O7="H", "%0,5 üzerindedir", IF(Veriler!P7>0.1, "%10 sınırı aşılmıştır.", "Uygun")))) -> %0,5 üzerindedir | R7: =IFERROR(IF(L7<=0.005,IF(E7="",K7,0),IF(E7<>"",0,IF(O7="",0,IF(O7="H",0,IF(P7<Veriler!$F$2,K7*Veriler!$F$2,K7*P7)))))," ") -> 0 | S7: =IF(Veriler!P7<=0.1, R7, IF(AND(Veriler!P7>0.1, E7="", O7="E"), IF(P7>Veriler!$F$2, P7*R7, IF(P7<Veriler!$F$2, Veriler!$F$2*R7, P7*R7)), 0)) -> 0 | U7: =IFERROR(IF(N7="%10 sınırı aşılmıştır.",K7-S7,IFERROR(IF(E7="",IF(R7=1,0,IF(K7-R7=0,"",K7-R7)),IF(Veriler!I7="",K7,IF(K7*Veriler!I7=0,"",K7*Veriler!I7))),K7)),0) -> 
A8: 4 | L8: =IF(K8="", "", K8/Veriler!$T$1) ->  | M8: =IF(E8<>"", "İthal Girdi", IF(Veriler!P8="", "", IF(Veriler!O8="H", "%0,5 üzerindedir", IF(Veriler!P8>0.1, "%10 sınırı aşılmıştır.", "Uygun")))) -> %0,5 üzerindedir | R8: =IFERROR(IF(L8<=0.005,IF(E8="",K8,0),IF(E8<>"",0,IF(O8="",0,IF(O8="H",0,IF(P8<Veriler!$F$2,K8*Veriler!$F$2,K8*P8)))))," ") -> 0 | S8: =IF(Veriler!P8<=0.1, R8, IF(AND(Veriler!P8>0.1, E8="", O8="E"), IF(P8>Veriler!$F$2, P8*R8, IF(P8<Veriler!$F$2, Veriler!$F$2*R8, P8*R8)), 0)) -> 0 | U8: =IFERROR(IF(N8="%10 sınırı aşılmıştır.",K8-S8,IFERROR(IF(E8="",IF(R8=1,0,IF(K8-R8=0,"",K8-R8)),IF(Veriler!I8="",K8,IF(K8*Veriler!I8=0,"",K8*Veriler!I8))),K8)),0) -> 
A9: 5 | L9: =IF(K9="", "", K9/Veriler!$T$1) ->  | M9: =IF(E9<>"", "İthal Girdi", IF(Veriler!P9="", "", IF(Veriler!O9="H", "%0,5 üzerindedir", IF(Veriler!P9>0.1, "%10 sınırı aşılmıştır.", "Uygun")))) -> %0,5 üzerindedir | R9: =IFERROR(IF(L9<=0.005,IF(E9="",K9,0),IF(E9<>"",0,IF(O9="",0,IF(O9="H",0,IF(P9<Veriler!$F$2,K9*Veriler!$F$2,K9*P9)))))," ") -> 0 | S9: =IF(Veriler!P9<=0.1, R9, IF(AND(Veriler!P9>0.1, E9="", O9="E"), IF(P9>Veriler!$F$2, P9*R9, IF(P9<Veriler!$F$2, Veriler!$F$2*R9, P9*R9)), 0)) -> 0 | U9: =IFERROR(IF(N9="%10 sınırı aşılmıştır.",K9-S9,IFERROR(IF(E9="",IF(R9=1,0,IF(K9-R9=0,"",K9-R9)),IF(Veriler!I9="",K9,IF(K9*Veriler!I9=0,"",K9*Veriler!I9))),K9)),0) -> 
A10: 6 | L10: =IF(K10="", "", K10/Veriler!$T$1) ->  | M10: =IF(E10<>"", "İthal Girdi", IF(Veriler!P10="", "", IF(Veriler!O10="H", "%0,5 üzerindedir", IF(Veriler!P10>0.1, "%10 sınırı aşılmıştır.", "Uygun")))) -> %0,5 üzerindedir | R10: =IFERROR(IF(L10<=0.005,IF(E10="",K10,0),IF(E10<>"",0,IF(O10="",0,IF(O10="H",0,IF(P10<Veriler!$F$2,K10*Veriler!$F$2,K10*P10)))))," ") -> 0 | S10: =IF(Veriler!P10<=0.1, R10, IF(AND(Veriler!P10>0.1, E10="", O10="E"), IF(P10>Veriler!$F$2, P10*R10, IF(P10<Veriler!$F$2, Veriler!$F$2*R10, P10*R10)), 0)) -> 0 | U10: =IFERROR(IF(N10="%10 sınırı aşılmıştır.",K10-S10,IFERROR(IF(E10="",IF(R10=1,0,IF(K10-R10=0,"",K10-R10)),IF(Veriler!I10="",K10,IF(K10*Veriler!I10=0,"",K10*Veriler!I10))),K10)),0) -> 
A11: 7 | L11: =IF(K11="", "", K11/Veriler!$T$1) ->  | M11: =IF(E11<>"", "İthal Girdi", IF(Veriler!P11="", "", IF(Veriler!O11="H", "%0,5 üzerindedir", IF(Veriler!P11>0.1, "%10 sınırı aşılmıştır.", "Uygun")))) -> %0,5 üzerindedir | R11: =IFERROR(IF(L11<=0.005,IF(E11="",K11,0),IF(E11<>"",0,IF(O11="",0,IF(O11="H",0,IF(P11<Veriler!$F$2,K11*Veriler!$F$2,K11*P11)))))," ") -> 0 | S11: =IF(Veriler!P11<=0.1, R11, IF(AND(Veriler!P11>0.1, E11="", O11="E"), IF(P11>Veriler!$F$2, P11*R11, IF(P11<Veriler!$F$2, Veriler!$F$2*R11, P11*R11)), 0)) -> 0 | U11: =IFERROR(IF(N11="%10 sınırı aşılmıştır.",K11-S11,IFERROR(IF(E11="",IF(R11=1,0,IF(K11-R11=0,"",K11-R11)),IF(Veriler!I11="",K11,IF(K11*Veriler!I11=0,"",K11*Veriler!I11))),K11)),0) -> 
A12: 8 | L12: =IF(K12="", "", K12/Veriler!$T$1) ->  | M12: =IF(E12<>"", "İthal Girdi", IF(Veriler!P12="", "", IF(Veriler!O12="H", "%0,5 üzerindedir", IF(Veriler!P12>0.1, "%10 sınırı aşılmıştır.", "Uygun")))) -> %0,5 üzerindedir | R12: =IFERROR(IF(L12<=0.005,IF(E12="",K12,0),IF(E12<>"",0,IF(O12="",0,IF(O12="H",0,IF(P12<Veriler!$F$2,K12*Veriler!$F$2,K12*P12)))))," ") -> 0 | S12: =IF(Veriler!P12<=0.1, R12, IF(AND(Veriler!P12>0.1, E12="", O12="E"), IF(P12>Veriler!$F$2, P12*R12, IF(P12<Veriler!$F$2, Veriler!$F$2*R12, P12*R12)), 0)) -> 0 | U12: =IFERROR(IF(N12="%10 sınırı aşılmıştır.",K12-S12,IFERROR(IF(E12="",IF(R12=1,0,IF(K12-R12=0,"",K12-R12)),IF(Veriler!I12="",K12,IF(K12*Veriler!I12=0,"",K12*Veriler!I12))),K12)),0) -> 
A13: 9 | L13: =IF(K13="", "", K13/Veriler!$T$1) ->  | M13: =IF(E13<>"", "İthal Girdi", IF(Veriler!P13="", "", IF(Veriler!O13="H", "%0,5 üzerindedir", IF(Veriler!P13>0.1, "%10 sınırı aşılmıştır.", "Uygun")))) -> %0,5 üzerindedir | R13: =IFERROR(IF(L13<=0.005,IF(E13="",K13,0),IF(E13<>"",0,IF(O13="",0,IF(O13="H",0,IF(P13<Veriler!$F$2,K13*Veriler!$F$2,K13*P13)))))," ") -> 0 | S13: =IF(Veriler!P13<=0.1, R13, IF(AND(Veriler!P13>0.1, E13="", O13="E"), IF(P13>Veriler!$F$2, P13*R13, IF(P13<Veriler!$F$2, Veriler!$F$2*R13, P13*R13)), 0)) -> 0 | U13: =IFERROR(IF(N13="%10 sınırı aşılmıştır.",K13-S13,IFERROR(IF(E13="",IF(R13=1,0,IF(K13-R13=0,"",K13-R13)),IF(Veriler!I13="",K13,IF(K13*Veriler!I13=0,"",K13*Veriler!I13))),K13)),0) -> 
A14: 10 | L14: =IF(K14="", "", K14/Veriler!$T$1) ->  | M14: =IF(E14<>"", "İthal Girdi", IF(Veriler!P14="", "", IF(Veriler!O14="H", "%0,5 üzerindedir", IF(Veriler!P14>0.1, "%10 sınırı aşılmıştır.", "Uygun")))) -> %0,5 üzerindedir | R14: =IFERROR(IF(L14<=0.005,IF(E14="",K14,0),IF(E14<>"",0,IF(O14="",0,IF(O14="H",0,IF(P14<Veriler!$F$2,K14*Veriler!$F$2,K14*P14)))))," ") -> 0 | S14: =IF(Veriler!P14<=0.1, R14, IF(AND(Veriler!P14>0.1, E14="", O14="E"), IF(P14>Veriler!$F$2, P14*R14, IF(P14<Veriler!$F$2, Veriler!$F$2*R14, P14*R14)), 0)) -> 0 | U14: =IFERROR(IF(N14="%10 sınırı aşılmıştır.",K14-S14,IFERROR(IF(E14="",IF(R14=1,0,IF(K14-R14=0,"",K14-R14)),IF(Veriler!I14="",K14,IF(K14*Veriler!I14=0,"",K14*Veriler!I14))),K14)),0) -> 
A15: 11 | L15: =IF(K15="", "", K15/Veriler!$T$1) ->  | M15: =IF(E15<>"", "İthal Girdi", IF(Veriler!P15="", "", IF(Veriler!O15="H", "%0,5 üzerindedir", IF(Veriler!P15>0.1, "%10 sınırı aşılmıştır.", "Uygun")))) -> %0,5 üzerindedir | R15: =IFERROR(IF(L15<=0.005,IF(E15="",K15,0),IF(E15<>"",0,IF(O15="",0,IF(O15="H",0,IF(P15<Veriler!$F$2,K15*Veriler!$F$2,K15*P15)))))," ") -> 0 | S15: =IF(Veriler!P15<=0.1, R15, IF(AND(Veriler!P15>0.1, E15="", O15="E"), IF(P15>Veriler!$F$2, P15*R15, IF(P15<Veriler!$F$2, Veriler!$F$2*R15, P15*R15)), 0)) -> 0 | U15: =IFERROR(IF(N15="%10 sınırı aşılmıştır.",K15-S15,IFERROR(IF(E15="",IF(R15=1,0,IF(K15-R15=0,"",K15-R15)),IF(Veriler!I15="",K15,IF(K15*Veriler!I15=0,"",K15*Veriler!I15))),K15)),0) -> 
A16: 12 | L16: =IF(K16="", "", K16/Veriler!$T$1) ->  | M16: =IF(E16<>"", "İthal Girdi", IF(Veriler!P16="", "", IF(Veriler!O16="H", "%0,5 üzerindedir", IF(Veriler!P16>0.1, "%10 sınırı aşılmıştır.", "Uygun")))) -> %0,5 üzerindedir | R16: =IFERROR(IF(L16<=0.005,IF(E16="",K16,0),IF(E16<>"",0,IF(O16="",0,IF(O16="H",0,IF(P16<Veriler!$F$2,K16*Veriler!$F$2,K16*P16)))))," ") -> 0 | S16: =IF(Veriler!P16<=0.1, R16, IF(AND(Veriler!P16>0.1, E16="", O16="E"), IF(P16>Veriler!$F$2, P16*R16, IF(P16<Veriler!$F$2, Veriler!$F$2*R16, P16*R16)), 0)) -> 0 | U16: =IFERROR(IF(N16="%10 sınırı aşılmıştır.",K16-S16,IFERROR(IF(E16="",IF(R16=1,0,IF(K16-R16=0,"",K16-R16)),IF(Veriler!I16="",K16,IF(K16*Veriler!I16=0,"",K16*Veriler!I16))),K16)),0) -> 
A17: 13 | L17: =IF(K17="", "", K17/Veriler!$T$1) ->  | M17: =IF(E17<>"", "İthal Girdi", IF(Veriler!P17="", "", IF(Veriler!O17="H", "%0,5 üzerindedir", IF(Veriler!P17>0.1, "%10 sınırı aşılmıştır.", "Uygun")))) -> %0,5 üzerindedir | R17: =IFERROR(IF(L17<=0.005,IF(E17="",K17,0),IF(E17<>"",0,IF(O17="",0,IF(O17="H",0,IF(P17<Veriler!$F$2,K17*Veriler!$F$2,K17*P17)))))," ") -> 0 | S17: =IF(Veriler!P17<=0.1, R17, IF(AND(Veriler!P17>0.1, E17="", O17="E"), IF(P17>Veriler!$F$2, P17*R17, IF(P17<Veriler!$F$2, Veriler!$F$2*R17, P17*R17)), 0)) -> 0 | U17: =IFERROR(IF(N17="%10 sınırı aşılmıştır.",K17-S17,IFERROR(IF(E17="",IF(R17=1,0,IF(K17-R17=0,"",K17-R17)),IF(Veriler!I17="",K17,IF(K17*Veriler!I17=0,"",K17*Veriler!I17))),K17)),0) -> 
A18: 14 | L18: =IF(K18="", "", K18/Veriler!$T$1) ->  | M18: =IF(E18<>"", "İthal Girdi", IF(Veriler!P18="", "", IF(Veriler!O18="H", "%0,5 üzerindedir", IF(Veriler!P18>0.1, "%10 sınırı aşılmıştır.", "Uygun")))) -> %0,5 üzerindedir | R18: =IFERROR(IF(L18<=0.005,IF(E18="",K18,0),IF(E18<>"",0,IF(O18="",0,IF(O18="H",0,IF(P18<Veriler!$F$2,K18*Veriler!$F$2,K18*P18)))))," ") -> 0 | S18: =IF(Veriler!P18<=0.1, R18, IF(AND(Veriler!P18>0.1, E18="", O18="E"), IF(P18>Veriler!$F$2, P18*R18, IF(P18<Veriler!$F$2, Veriler!$F$2*R18, P18*R18)), 0)) -> 0 | U18: =IFERROR(IF(N18="%10 sınırı aşılmıştır.",K18-S18,IFERROR(IF(E18="",IF(R18=1,0,IF(K18-R18=0,"",K18-R18)),IF(Veriler!I18="",K18,IF(K18*Veriler!I18=0,"",K18*Veriler!I18))),K18)),0) -> 
B19: Dolaylı
A20: =A18+1 -> 15 | F20: =IF(AND(E20<>"",U20<>"",K20<>0),U20/K20,"") ->  | K20: =IF(AND(G20<>0, I20<>0, J20<>0), G20*I20*J20, "") ->  | L20: =IF(K20="", "", K20/Veriler!$T$1) ->  | M20: =IF(E20<>"", "İthal Girdi", IF(Veriler!P20="", "", IF(Veriler!O20="H", "%0,5 üzerindedir", IF(Veriler!P20>0.1, "%10 sınırı aşılmıştır.", "Uygun")))) -> %0,5 üzerindedir | N20: =IF(L20=""," ",M20) ->  | Q20: =IFERROR(IF(AND(S20<>"",K20<>"",K20<>0,S20<>0),S20/K20,"")," ") ->  | R20: =IFERROR(IF(L20<=0.005,IF(E20="",K20,0),IF(E20<>"",0,IF(O20="",0,IF(O20="H",0,IF(P20<Veriler!$F$2,K20*Veriler!$F$2,K20*P20)))))," ") -> 0 | S20: =IF(Veriler!P20<=0.1, R20, IF(AND(Veriler!P20>0.1, E20="", O20="E"), IF(P20>Veriler!$F$2, P20*R20, IF(P20<Veriler!$F$2, Veriler!$F$2*R20, P20*R20)), 0)) -> 0 | T20: =IF(S20=0," ",S20) ->  | U20: =IFERROR(IF(N20="%10 sınırı aşılmıştır.",K20-S20,IFERROR(IF(E20="",IF(R20=1,0,IF(K20-R20=0,"",K20-R20)),IF(Veriler!I20="",K20,IF(K20*Veriler!I20=0,"",K20*Veriler!I20))),K20)),0) -> 
A21: =A20+1 -> 16 | L21: =IF(K21="", "", K21/Veriler!$T$1) ->  | M21: =IF(E21<>"", "İthal Girdi", IF(Veriler!P21="", "", IF(Veriler!O21="H", "%0,5 üzerindedir", IF(Veriler!P21>0.1, "%10 sınırı aşılmıştır.", "Uygun")))) -> %0,5 üzerindedir | R21: =IFERROR(IF(L21<=0.005,IF(E21="",K21,0),IF(E21<>"",0,IF(O21="",0,IF(O21="H",0,IF(P21<Veriler!$F$2,K21*Veriler!$F$2,K21*P21)))))," ") -> 0 | S21: =IF(Veriler!P21<=0.1, R21, IF(AND(Veriler!P21>0.1, E21="", O21="E"), IF(P21>Veriler!$F$2, P21*R21, IF(P21<Veriler!$F$2, Veriler!$F$2*R21, P21*R21)), 0)) -> 0 | U21: =IFERROR(IF(N21="%10 sınırı aşılmıştır.",K21-S21,IFERROR(IF(E21="",IF(R21=1,0,IF(K21-R21=0,"",K21-R21)),IF(Veriler!I21="",K21,IF(K21*Veriler!I21=0,"",K21*Veriler!I21))),K21)),0) -> 
A22: =A21+1 -> 17 | L22: =IF(K22="", "", K22/Veriler!$T$1) ->  | M22: =IF(E22<>"", "İthal Girdi", IF(Veriler!P22="", "", IF(Veriler!O22="H", "%0,5 üzerindedir", IF(Veriler!P22>0.1, "%10 sınırı aşılmıştır.", "Uygun")))) -> %0,5 üzerindedir | R22: =IFERROR(IF(L22<=0.005,IF(E22="",K22,0),IF(E22<>"",0,IF(O22="",0,IF(O22="H",0,IF(P22<Veriler!$F$2,K22*Veriler!$F$2,K22*P22)))))," ") -> 0 | S22: =IF(Veriler!P22<=0.1, R22, IF(AND(Veriler!P22>0.1, E22="", O22="E"), IF(P22>Veriler!$F$2, P22*R22, IF(P22<Veriler!$F$2, Veriler!$F$2*R22, P22*R22)), 0)) -> 0 | U22: =IFERROR(IF(N22="%10 sınırı aşılmıştır.",K22-S22,IFERROR(IF(E22="",IF(R22=1,0,IF(K22-R22=0,"",K22-R22)),IF(Veriler!I22="",K22,IF(K22*Veriler!I22=0,"",K22*Veriler!I22))),K22)),0) -> 
A23: 18 | L23: =IF(K23="", "", K23/Veriler!$T$1) ->  | M23: =IF(E23<>"", "İthal Girdi", IF(Veriler!P23="", "", IF(Veriler!O23="H", "%0,5 üzerindedir", IF(Veriler!P23>0.1, "%10 sınırı aşılmıştır.", "Uygun")))) -> %0,5 üzerindedir | R23: =IFERROR(IF(L23<=0.005,IF(E23="",K23,0),IF(E23<>"",0,IF(O23="",0,IF(O23="H",0,IF(P23<Veriler!$F$2,K23*Veriler!$F$2,K23*P23)))))," ") -> 0 | S23: =IF(Veriler!P23<=0.1, R23, IF(AND(Veriler!P23>0.1, E23="", O23="E"), IF(P23>Veriler!$F$2, P23*R23, IF(P23<Veriler!$F$2, Veriler!$F$2*R23, P23*R23)), 0)) -> 0 | U23: =IFERROR(IF(N23="%10 sınırı aşılmıştır.",K23-S23,IFERROR(IF(E23="",IF(R23=1,0,IF(K23-R23=0,"",K23-R23)),IF(Veriler!I23="",K23,IF(K23*Veriler!I23=0,"",K23*Veriler!I23))),K23)),0) -> 
A24: 19 | L24: =IF(K24="", "", K24/Veriler!$T$1) ->  | M24: =IF(E24<>"", "İthal Girdi", IF(Veriler!P24="", "", IF(Veriler!O24="H", "%0,5 üzerindedir", IF(Veriler!P24>0.1, "%10 sınırı aşılmıştır.", "Uygun")))) -> %0,5 üzerindedir | R24: =IFERROR(IF(L24<=0.005,IF(E24="",K24,0),IF(E24<>"",0,IF(O24="",0,IF(O24="H",0,IF(P24<Veriler!$F$2,K24*Veriler!$F$2,K24*P24)))))," ") -> 0 | S24: =IF(Veriler!P24<=0.1, R24, IF(AND(Veriler!P24>0.1, E24="", O24="E"), IF(P24>Veriler!$F$2, P24*R24, IF(P24<Veriler!$F$2, Veriler!$F$2*R24, P24*R24)), 0)) -> 0 | U24: =IFERROR(IF(N24="%10 sınırı aşılmıştır.",K24-S24,IFERROR(IF(E24="",IF(R24=1,0,IF(K24-R24=0,"",K24-R24)),IF(Veriler!I24="",K24,IF(K24*Veriler!I24=0,"",K24*Veriler!I24))),K24)),0) -> 
A25: 20 | L25: =IF(K25="", "", K25/Veriler!$T$1) ->  | M25: =IF(E25<>"", "İthal Girdi", IF(Veriler!P25="", "", IF(Veriler!O25="H", "%0,5 üzerindedir", IF(Veriler!P25>0.1, "%10 sınırı aşılmıştır.", "Uygun")))) -> %0,5 üzerindedir | R25: =IFERROR(IF(L25<=0.005,IF(E25="",K25,0),IF(E25<>"",0,IF(O25="",0,IF(O25="H",0,IF(P25<Veriler!$F$2,K25*Veriler!$F$2,K25*P25)))))," ") -> 0 | S25: =IF(Veriler!P25<=0.1, R25, IF(AND(Veriler!P25>0.1, E25="", O25="E"), IF(P25>Veriler!$F$2, P25*R25, IF(P25<Veriler!$F$2, Veriler!$F$2*R25, P25*R25)), 0)) -> 0 | U25: =IFERROR(IF(N25="%10 sınırı aşılmıştır.",K25-S25,IFERROR(IF(E25="",IF(R25=1,0,IF(K25-R25=0,"",K25-R25)),IF(Veriler!I25="",K25,IF(K25*Veriler!I25=0,"",K25*Veriler!I25))),K25)),0) -> 
A26: 21 | L26: =IF(K26="", "", K26/Veriler!$T$1) ->  | M26: =IF(E26<>"", "İthal Girdi", IF(Veriler!P26="", "", IF(Veriler!O26="H", "%0,5 üzerindedir", IF(Veriler!P26>0.1, "%10 sınırı aşılmıştır.", "Uygun")))) -> %0,5 üzerindedir | R26: =IFERROR(IF(L26<=0.005,IF(E26="",K26,0),IF(E26<>"",0,IF(O26="",0,IF(O26="H",0,IF(P26<Veriler!$F$2,K26*Veriler!$F$2,K26*P26)))))," ") -> 0 | S26: =IF(Veriler!P26<=0.1, R26, IF(AND(Veriler!P26>0.1, E26="", O26="E"), IF(P26>Veriler!$F$2, P26*R26, IF(P26<Veriler!$F$2, Veriler!$F$2*R26, P26*R26)), 0)) -> 0 | U26: =IFERROR(IF(N26="%10 sınırı aşılmıştır.",K26-S26,IFERROR(IF(E26="",IF(R26=1,0,IF(K26-R26=0,"",K26-R26)),IF(Veriler!I26="",K26,IF(K26*Veriler!I26=0,"",K26*Veriler!I26))),K26)),0) -> 
A27: 22 | L27: =IF(K27="", "", K27/Veriler!$T$1) ->  | M27: =IF(E27<>"", "İthal Girdi", IF(Veriler!P27="", "", IF(Veriler!O27="H", "%0,5 üzerindedir", IF(Veriler!P27>0.1, "%10 sınırı aşılmıştır.", "Uygun")))) -> %0,5 üzerindedir | R27: =IFERROR(IF(L27<=0.005,IF(E27="",K27,0),IF(E27<>"",0,IF(O27="",0,IF(O27="H",0,IF(P27<Veriler!$F$2,K27*Veriler!$F$2,K27*P27)))))," ") -> 0 | S27: =IF(Veriler!P27<=0.1, R27, IF(AND(Veriler!P27>0.1, E27="", O27="E"), IF(P27>Veriler!$F$2, P27*R27, IF(P27<Veriler!$F$2, Veriler!$F$2*R27, P27*R27)), 0)) -> 0 | U27: =IFERROR(IF(N27="%10 sınırı aşılmıştır.",K27-S27,IFERROR(IF(E27="",IF(R27=1,0,IF(K27-R27=0,"",K27-R27)),IF(Veriler!I27="",K27,IF(K27*Veriler!I27=0,"",K27*Veriler!I27))),K27)),0) -> 
A28: 23 | L28: =IF(K28="", "", K28/Veriler!$T$1) ->  | M28: =IF(E28<>"", "İthal Girdi", IF(Veriler!P28="", "", IF(Veriler!O28="H", "%0,5 üzerindedir", IF(Veriler!P28>0.1, "%10 sınırı aşılmıştır.", "Uygun")))) -> %0,5 üzerindedir | R28: =IFERROR(IF(L28<=0.005,IF(E28="",K28,0),IF(E28<>"",0,IF(O28="",0,IF(O28="H",0,IF(P28<Veriler!$F$2,K28*Veriler!$F$2,K28*P28)))))," ") -> 0 | S28: =IF(Veriler!P28<=0.1, R28, IF(AND(Veriler!P28>0.1, E28="", O28="E"), IF(P28>Veriler!$F$2, P28*R28, IF(P28<Veriler!$F$2, Veriler!$F$2*R28, P28*R28)), 0)) -> 0 | U28: =IFERROR(IF(N28="%10 sınırı aşılmıştır.",K28-S28,IFERROR(IF(E28="",IF(R28=1,0,IF(K28-R28=0,"",K28-R28)),IF(Veriler!I28="",K28,IF(K28*Veriler!I28=0,"",K28*Veriler!I28))),K28)),0) -> 
A29: 24 | L29: =IF(K29="", "", K29/Veriler!$T$1) ->  | M29: =IF(E29<>"", "İthal Girdi", IF(Veriler!P29="", "", IF(Veriler!O29="H", "%0,5 üzerindedir", IF(Veriler!P29>0.1, "%10 sınırı aşılmıştır.", "Uygun")))) -> %0,5 üzerindedir | R29: =IFERROR(IF(L29<=0.005,IF(E29="",K29,0),IF(E29<>"",0,IF(O29="",0,IF(O29="H",0,IF(P29<Veriler!$F$2,K29*Veriler!$F$2,K29*P29)))))," ") -> 0 | S29: =IF(Veriler!P29<=0.1, R29, IF(AND(Veriler!P29>0.1, E29="", O29="E"), IF(P29>Veriler!$F$2, P29*R29, IF(P29<Veriler!$F$2, Veriler!$F$2*R29, P29*R29)), 0)) -> 0 | U29: =IFERROR(IF(N29="%10 sınırı aşılmıştır.",K29-S29,IFERROR(IF(E29="",IF(R29=1,0,IF(K29-R29=0,"",K29-R29)),IF(Veriler!I29="",K29,IF(K29*Veriler!I29=0,"",K29*Veriler!I29))),K29)),0) -> 
A30: 25 | L30: =IF(K30="", "", K30/Veriler!$T$1) ->  | M30: =IF(E30<>"", "İthal Girdi", IF(Veriler!P30="", "", IF(Veriler!O30="H", "%0,5 üzerindedir", IF(Veriler!P30>0.1, "%10 sınırı aşılmıştır.", "Uygun")))) -> %0,5 üzerindedir | R30: =IFERROR(IF(L30<=0.005,IF(E30="",K30,0),IF(E30<>"",0,IF(O30="",0,IF(O30="H",0,IF(P30<Veriler!$F$2,K30*Veriler!$F$2,K30*P30)))))," ") -> 0 | S30: =IF(Veriler!P30<=0.1, R30, IF(AND(Veriler!P30>0.1, E30="", O30="E"), IF(P30>Veriler!$F$2, P30*R30, IF(P30<Veriler!$F$2, Veriler!$F$2*R30, P30*R30)), 0)) -> 0 | U30: =IFERROR(IF(N30="%10 sınırı aşılmıştır.",K30-S30,IFERROR(IF(E30="",IF(R30=1,0,IF(K30-R30=0,"",K30-R30)),IF(Veriler!I30="",K30,IF(K30*Veriler!I30=0,"",K30*Veriler!I30))),K30)),0) -> 
A31: 26 | L31: =IF(K31="", "", K31/Veriler!$T$1) ->  | M31: =IF(E31<>"", "İthal Girdi", IF(Veriler!P31="", "", IF(Veriler!O31="H", "%0,5 üzerindedir", IF(Veriler!P31>0.1, "%10 sınırı aşılmıştır.", "Uygun")))) -> %0,5 üzerindedir | R31: =IFERROR(IF(L31<=0.005,IF(E31="",K31,0),IF(E31<>"",0,IF(O31="",0,IF(O31="H",0,IF(P31<Veriler!$F$2,K31*Veriler!$F$2,K31*P31)))))," ") -> 0 | S31: =IF(Veriler!P31<=0.1, R31, IF(AND(Veriler!P31>0.1, E31="", O31="E"), IF(P31>Veriler!$F$2, P31*R31, IF(P31<Veriler!$F$2, Veriler!$F$2*R31, P31*R31)), 0)) -> 0 | U31: =IFERROR(IF(N31="%10 sınırı aşılmıştır.",K31-S31,IFERROR(IF(E31="",IF(R31=1,0,IF(K31-R31=0,"",K31-R31)),IF(Veriler!I31="",K31,IF(K31*Veriler!I31=0,"",K31*Veriler!I31))),K31)),0) -> 
A32: 27 | L32: =IF(K32="", "", K32/Veriler!$T$1) ->  | M32: =IF(E32<>"", "İthal Girdi", IF(Veriler!P32="", "", IF(Veriler!O32="H", "%0,5 üzerindedir", IF(Veriler!P32>0.1, "%10 sınırı aşılmıştır.", "Uygun")))) -> %0,5 üzerindedir | R32: =IFERROR(IF(L32<=0.005,IF(E32="",K32,0),IF(E32<>"",0,IF(O32="",0,IF(O32="H",0,IF(P32<Veriler!$F$2,K32*Veriler!$F$2,K32*P32)))))," ") -> 0 | S32: =IF(Veriler!P32<=0.1, R32, IF(AND(Veriler!P32>0.1, E32="", O32="E"), IF(P32>Veriler!$F$2, P32*R32, IF(P32<Veriler!$F$2, Veriler!$F$2*R32, P32*R32)), 0)) -> 0 | U32: =IFERROR(IF(N32="%10 sınırı aşılmıştır.",K32-S32,IFERROR(IF(E32="",IF(R32=1,0,IF(K32-R32=0,"",K32-R32)),IF(Veriler!I32="",K32,IF(K32*Veriler!I32=0,"",K32*Veriler!I32))),K32)),0) -> 
A33: 28 | L33: =IF(K33="", "", K33/Veriler!$T$1) ->  | M33: =IF(E33<>"", "İthal Girdi", IF(Veriler!P33="", "", IF(Veriler!O33="H", "%0,5 üzerindedir", IF(Veriler!P33>0.1, "%10 sınırı aşılmıştır.", "Uygun")))) -> %0,5 üzerindedir | R33: =IFERROR(IF(L33<=0.005,IF(E33="",K33,0),IF(E33<>"",0,IF(O33="",0,IF(O33="H",0,IF(P33<Veriler!$F$2,K33*Veriler!$F$2,K33*P33)))))," ") -> 0 | S33: =IF(Veriler!P33<=0.1, R33, IF(AND(Veriler!P33>0.1, E33="", O33="E"), IF(P33>Veriler!$F$2, P33*R33, IF(P33<Veriler!$F$2, Veriler!$F$2*R33, P33*R33)), 0)) -> 0 | U33: =IFERROR(IF(N33="%10 sınırı aşılmıştır.",K33-S33,IFERROR(IF(E33="",IF(R33=1,0,IF(K33-R33=0,"",K33-R33)),IF(Veriler!I33="",K33,IF(K33*Veriler!I33=0,"",K33*Veriler!I33))),K33)),0) -> 
K34: =SUM(K5:K18,K20:K33) -> 0
R35: T1 | S35: T1 | T35: T1 | U35: T2
A36: Sayfa Toplamı (TL) *(Genel Dip Toplam Ek.3-D sayfasında otomatik hesaplanacaktır.) | R36: =SUM(R5:R18,R20:R33) -> 0 | S36: =IF(SUM(S5:S18,S20:S33)=0," ",SUM(S5:S18,S20:S33)) ->  | T36: =IF(SUM(T5:T18,T20:T33)=0," ",SUM(T5:T18,T20:T33)) ->  | U36: =IF(SUM(U5:U18,U20:U33)=0," ",SUM(U5:U18,U20:U33)) -> 
A38: =A76 -> R02
A39: YERLİ KATKI ORANI HESAP CETVELİ | O39: FALSE
A40: A) Nihai Ürün Doğrudan ve Dolaylı Malzeme Giderleri | T40: S | U40: =U2+1 -> 2
A41: Sıra No | B41: Malzeme adı / Faturadaki Ürün Adı | D41: Üretici Unvanı | E41: GTİP Kodu (İthal girdiler için) | F41: Gtip Katsayısı | G41: Miktar | H41: Birim | I41: Fiyatı (TL/Döviz) | J41: Döviz Kuru (TL ise 1 alınız) | K41: Fatura Tutarı (TL) | L41: Girdi Maliyet Yüzdesi (%) | M41: Girdi yüzdesi %0,5 altında olan girdiler için %10 sınır kontrolü | N41: Girdi yüzdesi %0,5 altında olan girdiler için %10 sınır kontrolü | O41: SSB/ Müstahsil (E/H) | P41: YKO (%) (Manuel girilmeli) | Q41: Geçerli Yerli Oranı (%) | R41: Yerli Maliyet Tutarı (T1) | S41: Yerli Maliyet Tutarı (T1) | T41: Yerli Maliyet Tutarı (T1) | U41: İthal Maliyet Tutarı (T2)
B42: Doğrudan Girdi (Dolaylı girdiniz varsa en son 25. sayfaya doldurunuz)
A43: =A33+1 -> 29 | F43: =IF(AND(E43<>"",U43<>"",K43<>0),U43/K43,"") ->  | K43: =IF(AND(G43<>0, I43<>0, J43<>0), G43*I43*J43, "") ->  | L43: =IF(K43="", "", K43/Veriler!$T$1) ->  | M43: =IF(E43<>"", "İthal Girdi", IF(Veriler!P43="", "", IF(Veriler!O43="H", "%0,5 üzerindedir", IF(Veriler!P43>0.1, "%10 sınırı aşılmıştır.", "Uygun")))) -> %0,5 üzerindedir | N43: =IF(L43=""," ",M43) ->  | Q43: =IFERROR(IF(AND(S43<>"",K43<>"",K43<>0,S43<>0),S43/K43,"")," ") ->  | R43: =IFERROR(IF(L43<=0.005,IF(E43="",K43,0),IF(E43<>"",0,IF(O43="",0,IF(O43="H",0,IF(P43<Veriler!$F$2,K43*Veriler!$F$2,K43*P43)))))," ") -> 0 | S43: =IF(Veriler!P43<=0.1, R43, IF(AND(Veriler!P43>0.1, E43="", O43="E"), IF(P43>Veriler!$F$2, P43*R43, IF(P43<Veriler!$F$2, Veriler!$F$2*R43, P43*R43)), 0)) -> 0 | T43: =IF(S43=0," ",S43) ->  | U43: =IFERROR(IF(N43="%10 sınırı aşılmıştır.",K43-S43,IFERROR(IF(E43="",IF(R43=1,0,IF(K43-R43=0,"",K43-R43)),IF(Veriler!I43="",K43,IF(K43*Veriler!I43=0,"",K43*Veriler!I43))),K43)),0) -> 
A44: =A43+1 -> 30 | L44: =IF(K44="", "", K44/Veriler!$T$1) ->  | M44: =IF(E44<>"", "İthal Girdi", IF(Veriler!P44="", "", IF(Veriler!O44="H", "%0,5 üzerindedir", IF(Veriler!P44>0.1, "%10 sınırı aşılmıştır.", "Uygun")))) -> %0,5 üzerindedir | R44: =IFERROR(IF(L44<=0.005,IF(E44="",K44,0),IF(E44<>"",0,IF(O44="",0,IF(O44="H",0,IF(P44<Veriler!$F$2,K44*Veriler!$F$2,K44*P44)))))," ") -> 0 | S44: =IF(Veriler!P44<=0.1, R44, IF(AND(Veriler!P44>0.1, E44="", O44="E"), IF(P44>Veriler!$F$2, P44*R44, IF(P44<Veriler!$F$2, Veriler!$F$2*R44, P44*R44)), 0)) -> 0 | U44: =IFERROR(IF(N44="%10 sınırı aşılmıştır.",K44-S44,IFERROR(IF(E44="",IF(R44=1,0,IF(K44-R44=0,"",K44-R44)),IF(Veriler!I44="",K44,IF(K44*Veriler!I44=0,"",K44*Veriler!I44))),K44)),0) -> 
A45: =A44+1 -> 31 | L45: =IF(K45="", "", K45/Veriler!$T$1) ->  | M45: =IF(E45<>"", "İthal Girdi", IF(Veriler!P45="", "", IF(Veriler!O45="H", "%0,5 üzerindedir", IF(Veriler!P45>0.1, "%10 sınırı aşılmıştır.", "Uygun")))) -> %0,5 üzerindedir | R45: =IFERROR(IF(L45<=0.005,IF(E45="",K45,0),IF(E45<>"",0,IF(O45="",0,IF(O45="H",0,IF(P45<Veriler!$F$2,K45*Veriler!$F$2,K45*P45)))))," ") -> 0 | S45: =IF(Veriler!P45<=0.1, R45, IF(AND(Veriler!P45>0.1, E45="", O45="E"), IF(P45>Veriler!$F$2, P45*R45, IF(P45<Veriler!$F$2, Veriler!$F$2*R45, P45*R45)), 0)) -> 0 | U45: =IFERROR(IF(N45="%10 sınırı aşılmıştır.",K45-S45,IFERROR(IF(E45="",IF(R45=1,0,IF(K45-R45=0,"",K45-R45)),IF(Veriler!I45="",K45,IF(K45*Veriler!I45=0,"",K45*Veriler!I45))),K45)),0) -> 
A46: 32 | L46: =IF(K46="", "", K46/Veriler!$T$1) ->  | M46: =IF(E46<>"", "İthal Girdi", IF(Veriler!P46="", "", IF(Veriler!O46="H", "%0,5 üzerindedir", IF(Veriler!P46>0.1, "%10 sınırı aşılmıştır.", "Uygun")))) -> %0,5 üzerindedir | R46: =IFERROR(IF(L46<=0.005,IF(E46="",K46,0),IF(E46<>"",0,IF(O46="",0,IF(O46="H",0,IF(P46<Veriler!$F$2,K46*Veriler!$F$2,K46*P46)))))," ") -> 0 | S46: =IF(Veriler!P46<=0.1, R46, IF(AND(Veriler!P46>0.1, E46="", O46="E"), IF(P46>Veriler!$F$2, P46*R46, IF(P46<Veriler!$F$2, Veriler!$F$2*R46, P46*R46)), 0)) -> 0 | U46: =IFERROR(IF(N46="%10 sınırı aşılmıştır.",K46-S46,IFERROR(IF(E46="",IF(R46=1,0,IF(K46-R46=0,"",K46-R46)),IF(Veriler!I46="",K46,IF(K46*Veriler!I46=0,"",K46*Veriler!I46))),K46)),0) -> 
A47: 33 | L47: =IF(K47="", "", K47/Veriler!$T$1) ->  | M47: =IF(E47<>"", "İthal Girdi", IF(Veriler!P47="", "", IF(Veriler!O47="H", "%0,5 üzerindedir", IF(Veriler!P47>0.1, "%10 sınırı aşılmıştır.", "Uygun")))) -> %0,5 üzerindedir | R47: =IFERROR(IF(L47<=0.005,IF(E47="",K47,0),IF(E47<>"",0,IF(O47="",0,IF(O47="H",0,IF(P47<Veriler!$F$2,K47*Veriler!$F$2,K47*P47)))))," ") -> 0 | S47: =IF(Veriler!P47<=0.1, R47, IF(AND(Veriler!P47>0.1, E47="", O47="E"), IF(P47>Veriler!$F$2, P47*R47, IF(P47<Veriler!$F$2, Veriler!$F$2*R47, P47*R47)), 0)) -> 0 | U47: =IFERROR(IF(N47="%10 sınırı aşılmıştır.",K47-S47,IFERROR(IF(E47="",IF(R47=1,0,IF(K47-R47=0,"",K47-R47)),IF(Veriler!I47="",K47,IF(K47*Veriler!I47=0,"",K47*Veriler!I47))),K47)),0) -> 
A48: 34 | L48: =IF(K48="", "", K48/Veriler!$T$1) ->  | M48: =IF(E48<>"", "İthal Girdi", IF(Veriler!P48="", "", IF(Veriler!O48="H", "%0,5 üzerindedir", IF(Veriler!P48>0.1, "%10 sınırı aşılmıştır.", "Uygun")))) -> %0,5 üzerindedir | R48: =IFERROR(IF(L48<=0.005,IF(E48="",K48,0),IF(E48<>"",0,IF(O48="",0,IF(O48="H",0,IF(P48<Veriler!$F$2,K48*Veriler!$F$2,K48*P48)))))," ") -> 0 | S48: =IF(Veriler!P48<=0.1, R48, IF(AND(Veriler!P48>0.1, E48="", O48="E"), IF(P48>Veriler!$F$2, P48*R48, IF(P48<Veriler!$F$2, Veriler!$F$2*R48, P48*R48)), 0)) -> 0 | U48: =IFERROR(IF(N48="%10 sınırı aşılmıştır.",K48-S48,IFERROR(IF(E48="",IF(R48=1,0,IF(K48-R48=0,"",K48-R48)),IF(Veriler!I48="",K48,IF(K48*Veriler!I48=0,"",K48*Veriler!I48))),K48)),0) -> 
A49: 35 | L49: =IF(K49="", "", K49/Veriler!$T$1) ->  | M49: =IF(E49<>"", "İthal Girdi", IF(Veriler!P49="", "", IF(Veriler!O49="H", "%0,5 üzerindedir", IF(Veriler!P49>0.1, "%10 sınırı aşılmıştır.", "Uygun")))) -> %0,5 üzerindedir | R49: =IFERROR(IF(L49<=0.005,IF(E49="",K49,0),IF(E49<>"",0,IF(O49="",0,IF(O49="H",0,IF(P49<Veriler!$F$2,K49*Veriler!$F$2,K49*P49)))))," ") -> 0 | S49: =IF(Veriler!P49<=0.1, R49, IF(AND(Veriler!P49>0.1, E49="", O49="E"), IF(P49>Veriler!$F$2, P49*R49, IF(P49<Veriler!$F$2, Veriler!$F$2*R49, P49*R49)), 0)) -> 0 | U49: =IFERROR(IF(N49="%10 sınırı aşılmıştır.",K49-S49,IFERROR(IF(E49="",IF(R49=1,0,IF(K49-R49=0,"",K49-R49)),IF(Veriler!I49="",K49,IF(K49*Veriler!I49=0,"",K49*Veriler!I49))),K49)),0) -> 
A50: 36 | L50: =IF(K50="", "", K50/Veriler!$T$1) ->  | M50: =IF(E50<>"", "İthal Girdi", IF(Veriler!P50="", "", IF(Veriler!O50="H", "%0,5 üzerindedir", IF(Veriler!P50>0.1, "%10 sınırı aşılmıştır.", "Uygun")))) -> %0,5 üzerindedir | R50: =IFERROR(IF(L50<=0.005,IF(E50="",K50,0),IF(E50<>"",0,IF(O50="",0,IF(O50="H",0,IF(P50<Veriler!$F$2,K50*Veriler!$F$2,K50*P50)))))," ") -> 0 | S50: =IF(Veriler!P50<=0.1, R50, IF(AND(Veriler!P50>0.1, E50="", O50="E"), IF(P50>Veriler!$F$2, P50*R50, IF(P50<Veriler!$F$2, Veriler!$F$2*R50, P50*R50)), 0)) -> 0 | U50: =IFERROR(IF(N50="%10 sınırı aşılmıştır.",K50-S50,IFERROR(IF(E50="",IF(R50=1,0,IF(K50-R50=0,"",K50-R50)),IF(Veriler!I50="",K50,IF(K50*Veriler!I50=0,"",K50*Veriler!I50))),K50)),0) -> 
A51: 37 | L51: =IF(K51="", "", K51/Veriler!$T$1) ->  | M51: =IF(E51<>"", "İthal Girdi", IF(Veriler!P51="", "", IF(Veriler!O51="H", "%0,5 üzerindedir", IF(Veriler!P51>0.1, "%10 sınırı aşılmıştır.", "Uygun")))) -> %0,5 üzerindedir | R51: =IFERROR(IF(L51<=0.005,IF(E51="",K51,0),IF(E51<>"",0,IF(O51="",0,IF(O51="H",0,IF(P51<Veriler!$F$2,K51*Veriler!$F$2,K51*P51)))))," ") -> 0 | S51: =IF(Veriler!P51<=0.1, R51, IF(AND(Veriler!P51>0.1, E51="", O51="E"), IF(P51>Veriler!$F$2, P51*R51, IF(P51<Veriler!$F$2, Veriler!$F$2*R51, P51*R51)), 0)) -> 0 | U51: =IFERROR(IF(N51="%10 sınırı aşılmıştır.",K51-S51,IFERROR(IF(E51="",IF(R51=1,0,IF(K51-R51=0,"",K51-R51)),IF(Veriler!I51="",K51,IF(K51*Veriler!I51=0,"",K51*Veriler!I51))),K51)),0) -> 
A52: 38 | L52: =IF(K52="", "", K52/Veriler!$T$1) ->  | M52: =IF(E52<>"", "İthal Girdi", IF(Veriler!P52="", "", IF(Veriler!O52="H", "%0,5 üzerindedir", IF(Veriler!P52>0.1, "%10 sınırı aşılmıştır.", "Uygun")))) -> %0,5 üzerindedir | R52: =IFERROR(IF(L52<=0.005,IF(E52="",K52,0),IF(E52<>"",0,IF(O52="",0,IF(O52="H",0,IF(P52<Veriler!$F$2,K52*Veriler!$F$2,K52*P52)))))," ") -> 0 | S52: =IF(Veriler!P52<=0.1, R52, IF(AND(Veriler!P52>0.1, E52="", O52="E"), IF(P52>Veriler!$F$2, P52*R52, IF(P52<Veriler!$F$2, Veriler!$F$2*R52, P52*R52)), 0)) -> 0 | U52: =IFERROR(IF(N52="%10 sınırı aşılmıştır.",K52-S52,IFERROR(IF(E52="",IF(R52=1,0,IF(K52-R52=0,"",K52-R52)),IF(Veriler!I52="",K52,IF(K52*Veriler!I52=0,"",K52*Veriler!I52))),K52)),0) -> 
A53: 39 | L53: =IF(K53="", "", K53/Veriler!$T$1) ->  | M53: =IF(E53<>"", "İthal Girdi", IF(Veriler!P53="", "", IF(Veriler!O53="H", "%0,5 üzerindedir", IF(Veriler!P53>0.1, "%10 sınırı aşılmıştır.", "Uygun")))) -> %0,5 üzerindedir | R53: =IFERROR(IF(L53<=0.005,IF(E53="",K53,0),IF(E53<>"",0,IF(O53="",0,IF(O53="H",0,IF(P53<Veriler!$F$2,K53*Veriler!$F$2,K53*P53)))))," ") -> 0 | S53: =IF(Veriler!P53<=0.1, R53, IF(AND(Veriler!P53>0.1, E53="", O53="E"), IF(P53>Veriler!$F$2, P53*R53, IF(P53<Veriler!$F$2, Veriler!$F$2*R53, P53*R53)), 0)) -> 0 | U53: =IFERROR(IF(N53="%10 sınırı aşılmıştır.",K53-S53,IFERROR(IF(E53="",IF(R53=1,0,IF(K53-R53=0,"",K53-R53)),IF(Veriler!I53="",K53,IF(K53*Veriler!I53=0,"",K53*Veriler!I53))),K53)),0) -> 
A54: 40 | L54: =IF(K54="", "", K54/Veriler!$T$1) ->  | M54: =IF(E54<>"", "İthal Girdi", IF(Veriler!P54="", "", IF(Veriler!O54="H", "%0,5 üzerindedir", IF(Veriler!P54>0.1, "%10 sınırı aşılmıştır.", "Uygun")))) -> %0,5 üzerindedir | R54: =IFERROR(IF(L54<=0.005,IF(E54="",K54,0),IF(E54<>"",0,IF(O54="",0,IF(O54="H",0,IF(P54<Veriler!$F$2,K54*Veriler!$F$2,K54*P54)))))," ") -> 0 | S54: =IF(Veriler!P54<=0.1, R54, IF(AND(Veriler!P54>0.1, E54="", O54="E"), IF(P54>Veriler!$F$2, P54*R54, IF(P54<Veriler!$F$2, Veriler!$F$2*R54, P54*R54)), 0)) -> 0 | U54: =IFERROR(IF(N54="%10 sınırı aşılmıştır.",K54-S54,IFERROR(IF(E54="",IF(R54=1,0,IF(K54-R54=0,"",K54-R54)),IF(Veriler!I54="",K54,IF(K54*Veriler!I54=0,"",K54*Veriler!I54))),K54)),0) -> 
A55: 41 | L55: =IF(K55="", "", K55/Veriler!$T$1) ->  | M55: =IF(E55<>"", "İthal Girdi", IF(Veriler!P55="", "", IF(Veriler!O55="H", "%0,5 üzerindedir", IF(Veriler!P55>0.1, "%10 sınırı aşılmıştır.", "Uygun")))) -> %0,5 üzerindedir | R55: =IFERROR(IF(L55<=0.005,IF(E55="",K55,0),IF(E55<>"",0,IF(O55="",0,IF(O55="H",0,IF(P55<Veriler!$F$2,K55*Veriler!$F$2,K55*P55)))))," ") -> 0 | S55: =IF(Veriler!P55<=0.1, R55, IF(AND(Veriler!P55>0.1, E55="", O55="E"), IF(P55>Veriler!$F$2, P55*R55, IF(P55<Veriler!$F$2, Veriler!$F$2*R55, P55*R55)), 0)) -> 0 | U55: =IFERROR(IF(N55="%10 sınırı aşılmıştır.",K55-S55,IFERROR(IF(E55="",IF(R55=1,0,IF(K55-R55=0,"",K55-R55)),IF(Veriler!I55="",K55,IF(K55*Veriler!I55=0,"",K55*Veriler!I55))),K55)),0) -> 
A56: 42 | L56: =IF(K56="", "", K56/Veriler!$T$1) ->  | M56: =IF(E56<>"", "İthal Girdi", IF(Veriler!P56="", "", IF(Veriler!O56="H", "%0,5 üzerindedir", IF(Veriler!P56>0.1, "%10 sınırı aşılmıştır.", "Uygun")))) -> %0,5 üzerindedir | R56: =IFERROR(IF(L56<=0.005,IF(E56="",K56,0),IF(E56<>"",0,IF(O56="",0,IF(O56="H",0,IF(P56<Veriler!$F$2,K56*Veriler!$F$2,K56*P56)))))," ") -> 0 | S56: =IF(Veriler!P56<=0.1, R56, IF(AND(Veriler!P56>0.1, E56="", O56="E"), IF(P56>Veriler!$F$2, P56*R56, IF(P56<Veriler!$F$2, Veriler!$F$2*R56, P56*R56)), 0)) -> 0 | U56: =IFERROR(IF(N56="%10 sınırı aşılmıştır.",K56-S56,IFERROR(IF(E56="",IF(R56=1,0,IF(K56-R56=0,"",K56-R56)),IF(Veriler!I56="",K56,IF(K56*Veriler!I56=0,"",K56*Veriler!I56))),K56)),0) -> 
B57: Dolaylı
A58: =A56+1 -> 43 | F58: =IF(AND(E58<>"",U58<>"",K58<>0),U58/K58,"") ->  | K58: =IF(AND(G58<>0, I58<>0, J58<>0), G58*I58*J58, "") ->  | L58: =IF(K58="", "", K58/Veriler!$T$1) ->  | M58: =IF(E58<>"", "İthal Girdi", IF(Veriler!P58="", "", IF(Veriler!O58="H", "%0,5 üzerindedir", IF(Veriler!P58>0.1, "%10 sınırı aşılmıştır.", "Uygun")))) -> %0,5 üzerindedir | N58: =IF(L58=""," ",M58) ->  | Q58: =IFERROR(IF(AND(S58<>"",K58<>"",K58<>0,S58<>0),S58/K58,"")," ") ->  | R58: =IFERROR(IF(L58<=0.005,IF(E58="",K58,0),IF(E58<>"",0,IF(O58="",0,IF(O58="H",0,IF(P58<Veriler!$F$2,K58*Veriler!$F$2,K58*P58)))))," ") -> 0 | S58: =IF(Veriler!P58<=0.1, R58, IF(AND(Veriler!P58>0.1, E58="", O58="E"), IF(P58>Veriler!$F$2, P58*R58, IF(P58<Veriler!$F$2, Veriler!$F$2*R58, P58*R58)), 0)) -> 0 | T58: =IF(S58=0," ",S58) ->  | U58: =IFERROR(IF(N58="%10 sınırı aşılmıştır.",K58-S58,IFERROR(IF(E58="",IF(R58=1,0,IF(K58-R58=0,"",K58-R58)),IF(Veriler!I58="",K58,IF(K58*Veriler!I58=0,"",K58*Veriler!I58))),K58)),0) -> 
A59: =A58+1 -> 44 | L59: =IF(K59="", "", K59/Veriler!$T$1) ->  | M59: =IF(E59<>"", "İthal Girdi", IF(Veriler!P59="", "", IF(Veriler!O59="H", "%0,5 üzerindedir", IF(Veriler!P59>0.1, "%10 sınırı aşılmıştır.", "Uygun")))) -> %0,5 üzerindedir | R59: =IFERROR(IF(L59<=0.005,IF(E59="",K59,0),IF(E59<>"",0,IF(O59="",0,IF(O59="H",0,IF(P59<Veriler!$F$2,K59*Veriler!$F$2,K59*P59)))))," ") -> 0 | S59: =IF(Veriler!P59<=0.1, R59, IF(AND(Veriler!P59>0.1, E59="", O59="E"), IF(P59>Veriler!$F$2, P59*R59, IF(P59<Veriler!$F$2, Veriler!$F$2*R59, P59*R59)), 0)) -> 0 | U59: =IFERROR(IF(N59="%10 sınırı aşılmıştır.",K59-S59,IFERROR(IF(E59="",IF(R59=1,0,IF(K59-R59=0,"",K59-R59)),IF(Veriler!I59="",K59,IF(K59*Veriler!I59=0,"",K59*Veriler!I59))),K59)),0) -> 
A60: =A59+1 -> 45 | L60: =IF(K60="", "", K60/Veriler!$T$1) ->  | M60: =IF(E60<>"", "İthal Girdi", IF(Veriler!P60="", "", IF(Veriler!O60="H", "%0,5 üzerindedir", IF(Veriler!P60>0.1, "%10 sınırı aşılmıştır.", "Uygun")))) -> %0,5 üzerindedir | R60: =IFERROR(IF(L60<=0.005,IF(E60="",K60,0),IF(E60<>"",0,IF(O60="",0,IF(O60="H",0,IF(P60<Veriler!$F$2,K60*Veriler!$F$2,K60*P60)))))," ") -> 0 | S60: =IF(Veriler!P60<=0.1, R60, IF(AND(Veriler!P60>0.1, E60="", O60="E"), IF(P60>Veriler!$F$2, P60*R60, IF(P60<Veriler!$F$2, Veriler!$F$2*R60, P60*R60)), 0)) -> 0 | U60: =IFERROR(IF(N60="%10 sınırı aşılmıştır.",K60-S60,IFERROR(IF(E60="",IF(R60=1,0,IF(K60-R60=0,"",K60-R60)),IF(Veriler!I60="",K60,IF(K60*Veriler!I60=0,"",K60*Veriler!I60))),K60)),0) -> 
A61: 46 | L61: =IF(K61="", "", K61/Veriler!$T$1) ->  | M61: =IF(E61<>"", "İthal Girdi", IF(Veriler!P61="", "", IF(Veriler!O61="H", "%0,5 üzerindedir", IF(Veriler!P61>0.1, "%10 sınırı aşılmıştır.", "Uygun")))) -> %0,5 üzerindedir | R61: =IFERROR(IF(L61<=0.005,IF(E61="",K61,0),IF(E61<>"",0,IF(O61="",0,IF(O61="H",0,IF(P61<Veriler!$F$2,K61*Veriler!$F$2,K61*P61)))))," ") -> 0 | S61: =IF(Veriler!P61<=0.1, R61, IF(AND(Veriler!P61>0.1, E61="", O61="E"), IF(P61>Veriler!$F$2, P61*R61, IF(P61<Veriler!$F$2, Veriler!$F$2*R61, P61*R61)), 0)) -> 0 | U61: =IFERROR(IF(N61="%10 sınırı aşılmıştır.",K61-S61,IFERROR(IF(E61="",IF(R61=1,0,IF(K61-R61=0,"",K61-R61)),IF(Veriler!I61="",K61,IF(K61*Veriler!I61=0,"",K61*Veriler!I61))),K61)),0) -> 
A62: 47 | L62: =IF(K62="", "", K62/Veriler!$T$1) ->  | M62: =IF(E62<>"", "İthal Girdi", IF(Veriler!P62="", "", IF(Veriler!O62="H", "%0,5 üzerindedir", IF(Veriler!P62>0.1, "%10 sınırı aşılmıştır.", "Uygun")))) -> %0,5 üzerindedir | R62: =IFERROR(IF(L62<=0.005,IF(E62="",K62,0),IF(E62<>"",0,IF(O62="",0,IF(O62="H",0,IF(P62<Veriler!$F$2,K62*Veriler!$F$2,K62*P62)))))," ") -> 0 | S62: =IF(Veriler!P62<=0.1, R62, IF(AND(Veriler!P62>0.1, E62="", O62="E"), IF(P62>Veriler!$F$2, P62*R62, IF(P62<Veriler!$F$2, Veriler!$F$2*R62, P62*R62)), 0)) -> 0 | U62: =IFERROR(IF(N62="%10 sınırı aşılmıştır.",K62-S62,IFERROR(IF(E62="",IF(R62=1,0,IF(K62-R62=0,"",K62-R62)),IF(Veriler!I62="",K62,IF(K62*Veriler!I62=0,"",K62*Veriler!I62))),K62)),0) -> 
A63: 48 | L63: =IF(K63="", "", K63/Veriler!$T$1) ->  | M63: =IF(E63<>"", "İthal Girdi", IF(Veriler!P63="", "", IF(Veriler!O63="H", "%0,5 üzerindedir", IF(Veriler!P63>0.1, "%10 sınırı aşılmıştır.", "Uygun")))) -> %0,5 üzerindedir | R63: =IFERROR(IF(L63<=0.005,IF(E63="",K63,0),IF(E63<>"",0,IF(O63="",0,IF(O63="H",0,IF(P63<Veriler!$F$2,K63*Veriler!$F$2,K63*P63)))))," ") -> 0 | S63: =IF(Veriler!P63<=0.1, R63, IF(AND(Veriler!P63>0.1, E63="", O63="E"), IF(P63>Veriler!$F$2, P63*R63, IF(P63<Veriler!$F$2, Veriler!$F$2*R63, P63*R63)), 0)) -> 0 | U63: =IFERROR(IF(N63="%10 sınırı aşılmıştır.",K63-S63,IFERROR(IF(E63="",IF(R63=1,0,IF(K63-R63=0,"",K63-R63)),IF(Veriler!I63="",K63,IF(K63*Veriler!I63=0,"",K63*Veriler!I63))),K63)),0) -> 
A64: 49 | L64: =IF(K64="", "", K64/Veriler!$T$1) ->  | M64: =IF(E64<>"", "İthal Girdi", IF(Veriler!P64="", "", IF(Veriler!O64="H", "%0,5 üzerindedir", IF(Veriler!P64>0.1, "%10 sınırı aşılmıştır.", "Uygun")))) -> %0,5 üzerindedir | R64: =IFERROR(IF(L64<=0.005,IF(E64="",K64,0),IF(E64<>"",0,IF(O64="",0,IF(O64="H",0,IF(P64<Veriler!$F$2,K64*Veriler!$F$2,K64*P64)))))," ") -> 0 | S64: =IF(Veriler!P64<=0.1, R64, IF(AND(Veriler!P64>0.1, E64="", O64="E"), IF(P64>Veriler!$F$2, P64*R64, IF(P64<Veriler!$F$2, Veriler!$F$2*R64, P64*R64)), 0)) -> 0 | U64: =IFERROR(IF(N64="%10 sınırı aşılmıştır.",K64-S64,IFERROR(IF(E64="",IF(R64=1,0,IF(K64-R64=0,"",K64-R64)),IF(Veriler!I64="",K64,IF(K64*Veriler!I64=0,"",K64*Veriler!I64))),K64)),0) -> 
A65: 50 | L65: =IF(K65="", "", K65/Veriler!$T$1) ->  | M65: =IF(E65<>"", "İthal Girdi", IF(Veriler!P65="", "", IF(Veriler!O65="H", "%0,5 üzerindedir", IF(Veriler!P65>0.1, "%10 sınırı aşılmıştır.", "Uygun")))) -> %0,5 üzerindedir | R65: =IFERROR(IF(L65<=0.005,IF(E65="",K65,0),IF(E65<>"",0,IF(O65="",0,IF(O65="H",0,IF(P65<Veriler!$F$2,K65*Veriler!$F$2,K65*P65)))))," ") -> 0 | S65: =IF(Veriler!P65<=0.1, R65, IF(AND(Veriler!P65>0.1, E65="", O65="E"), IF(P65>Veriler!$F$2, P65*R65, IF(P65<Veriler!$F$2, Veriler!$F$2*R65, P65*R65)), 0)) -> 0 | U65: =IFERROR(IF(N65="%10 sınırı aşılmıştır.",K65-S65,IFERROR(IF(E65="",IF(R65=1,0,IF(K65-R65=0,"",K65-R65)),IF(Veriler!I65="",K65,IF(K65*Veriler!I65=0,"",K65*Veriler!I65))),K65)),0) -> 
A66: 51 | L66: =IF(K66="", "", K66/Veriler!$T$1) ->  | M66: =IF(E66<>"", "İthal Girdi", IF(Veriler!P66="", "", IF(Veriler!O66="H", "%0,5 üzerindedir", IF(Veriler!P66>0.1, "%10 sınırı aşılmıştır.", "Uygun")))) -> %0,5 üzerindedir | R66: =IFERROR(IF(L66<=0.005,IF(E66="",K66,0),IF(E66<>"",0,IF(O66="",0,IF(O66="H",0,IF(P66<Veriler!$F$2,K66*Veriler!$F$2,K66*P66)))))," ") -> 0 | S66: =IF(Veriler!P66<=0.1, R66, IF(AND(Veriler!P66>0.1, E66="", O66="E"), IF(P66>Veriler!$F$2, P66*R66, IF(P66<Veriler!$F$2, Veriler!$F$2*R66, P66*R66)), 0)) -> 0 | U66: =IFERROR(IF(N66="%10 sınırı aşılmıştır.",K66-S66,IFERROR(IF(E66="",IF(R66=1,0,IF(K66-R66=0,"",K66-R66)),IF(Veriler!I66="",K66,IF(K66*Veriler!I66=0,"",K66*Veriler!I66))),K66)),0) -> 
A67: 52 | L67: =IF(K67="", "", K67/Veriler!$T$1) ->  | M67: =IF(E67<>"", "İthal Girdi", IF(Veriler!P67="", "", IF(Veriler!O67="H", "%0,5 üzerindedir", IF(Veriler!P67>0.1, "%10 sınırı aşılmıştır.", "Uygun")))) -> %0,5 üzerindedir | R67: =IFERROR(IF(L67<=0.005,IF(E67="",K67,0),IF(E67<>"",0,IF(O67="",0,IF(O67="H",0,IF(P67<Veriler!$F$2,K67*Veriler!$F$2,K67*P67)))))," ") -> 0 | S67: =IF(Veriler!P67<=0.1, R67, IF(AND(Veriler!P67>0.1, E67="", O67="E"), IF(P67>Veriler!$F$2, P67*R67, IF(P67<Veriler!$F$2, Veriler!$F$2*R67, P67*R67)), 0)) -> 0 | U67: =IFERROR(IF(N67="%10 sınırı aşılmıştır.",K67-S67,IFERROR(IF(E67="",IF(R67=1,0,IF(K67-R67=0,"",K67-R67)),IF(Veriler!I67="",K67,IF(K67*Veriler!I67=0,"",K67*Veriler!I67))),K67)),0) -> 
A68: 53 | L68: =IF(K68="", "", K68/Veriler!$T$1) ->  | M68: =IF(E68<>"", "İthal Girdi", IF(Veriler!P68="", "", IF(Veriler!O68="H", "%0,5 üzerindedir", IF(Veriler!P68>0.1, "%10 sınırı aşılmıştır.", "Uygun")))) -> %0,5 üzerindedir | R68: =IFERROR(IF(L68<=0.005,IF(E68="",K68,0),IF(E68<>"",0,IF(O68="",0,IF(O68="H",0,IF(P68<Veriler!$F$2,K68*Veriler!$F$2,K68*P68)))))," ") -> 0 | S68: =IF(Veriler!P68<=0.1, R68, IF(AND(Veriler!P68>0.1, E68="", O68="E"), IF(P68>Veriler!$F$2, P68*R68, IF(P68<Veriler!$F$2, Veriler!$F$2*R68, P68*R68)), 0)) -> 0 | U68: =IFERROR(IF(N68="%10 sınırı aşılmıştır.",K68-S68,IFERROR(IF(E68="",IF(R68=1,0,IF(K68-R68=0,"",K68-R68)),IF(Veriler!I68="",K68,IF(K68*Veriler!I68=0,"",K68*Veriler!I68))),K68)),0) -> 
A69: 54 | L69: =IF(K69="", "", K69/Veriler!$T$1) ->  | M69: =IF(E69<>"", "İthal Girdi", IF(Veriler!P69="", "", IF(Veriler!O69="H", "%0,5 üzerindedir", IF(Veriler!P69>0.1, "%10 sınırı aşılmıştır.", "Uygun")))) -> %0,5 üzerindedir | R69: =IFERROR(IF(L69<=0.005,IF(E69="",K69,0),IF(E69<>"",0,IF(O69="",0,IF(O69="H",0,IF(P69<Veriler!$F$2,K69*Veriler!$F$2,K69*P69)))))," ") -> 0 | S69: =IF(Veriler!P69<=0.1, R69, IF(AND(Veriler!P69>0.1, E69="", O69="E"), IF(P69>Veriler!$F$2, P69*R69, IF(P69<Veriler!$F$2, Veriler!$F$2*R69, P69*R69)), 0)) -> 0 | U69: =IFERROR(IF(N69="%10 sınırı aşılmıştır.",K69-S69,IFERROR(IF(E69="",IF(R69=1,0,IF(K69-R69=0,"",K69-R69)),IF(Veriler!I69="",K69,IF(K69*Veriler!I69=0,"",K69*Veriler!I69))),K69)),0) -> 
A70: 55 | L70: =IF(K70="", "", K70/Veriler!$T$1) ->  | M70: =IF(E70<>"", "İthal Girdi", IF(Veriler!P70="", "", IF(Veriler!O70="H", "%0,5 üzerindedir", IF(Veriler!P70>0.1, "%10 sınırı aşılmıştır.", "Uygun")))) -> %0,5 üzerindedir | R70: =IFERROR(IF(L70<=0.005,IF(E70="",K70,0),IF(E70<>"",0,IF(O70="",0,IF(O70="H",0,IF(P70<Veriler!$F$2,K70*Veriler!$F$2,K70*P70)))))," ") -> 0 | S70: =IF(Veriler!P70<=0.1, R70, IF(AND(Veriler!P70>0.1, E70="", O70="E"), IF(P70>Veriler!$F$2, P70*R70, IF(P70<Veriler!$F$2, Veriler!$F$2*R70, P70*R70)), 0)) -> 0 | U70: =IFERROR(IF(N70="%10 sınırı aşılmıştır.",K70-S70,IFERROR(IF(E70="",IF(R70=1,0,IF(K70-R70=0,"",K70-R70)),IF(Veriler!I70="",K70,IF(K70*Veriler!I70=0,"",K70*Veriler!I70))),K70)),0) -> 
A71: 56 | L71: =IF(K71="", "", K71/Veriler!$T$1) ->  | M71: =IF(E71<>"", "İthal Girdi", IF(Veriler!P71="", "", IF(Veriler!O71="H", "%0,5 üzerindedir", IF(Veriler!P71>0.1, "%10 sınırı aşılmıştır.", "Uygun")))) -> %0,5 üzerindedir | R71: =IFERROR(IF(L71<=0.005,IF(E71="",K71,0),IF(E71<>"",0,IF(O71="",0,IF(O71="H",0,IF(P71<Veriler!$F$2,K71*Veriler!$F$2,K71*P71)))))," ") -> 0 | S71: =IF(Veriler!P71<=0.1, R71, IF(AND(Veriler!P71>0.1, E71="", O71="E"), IF(P71>Veriler!$F$2, P71*R71, IF(P71<Veriler!$F$2, Veriler!$F$2*R71, P71*R71)), 0)) -> 0 | U71: =IFERROR(IF(N71="%10 sınırı aşılmıştır.",K71-S71,IFERROR(IF(E71="",IF(R71=1,0,IF(K71-R71=0,"",K71-R71)),IF(Veriler!I71="",K71,IF(K71*Veriler!I71=0,"",K71*Veriler!I71))),K71)),0) -> 
K72: =SUM(K43:K56,K58:K71) -> 0
R73: T1 | S73: T1 | T73: T1 | U73: T2
A74: Sayfa Toplamı (TL) *(Genel Dip Toplam Ek.3-D sayfasında otomatik hesaplanacaktır.) | R74: =SUM(R36,R43:R56,R58:R71) -> 0 | S74: =IF(SUM(S43:S56,S58:S71)=0," ",SUM(S43:S56,S58:S71)) ->  | T74: =IF(SUM(T43:T56,T58:T71)=0," ",SUM(T43:T56,T58:T71)) ->  | U74: =IF(SUM(U43:U56,U58:U71)=0," ",SUM(U43:U56,U58:U71)) -> 
A76: =A114 -> R02
A77: YERLİ KATKI ORANI HESAP CETVELİ | O77: FALSE
A78: A) Nihai Ürün Doğrudan ve Dolaylı Malzeme Giderleri | T78: S | U78: =U40+1 -> 3
A79: Sıra No | B79: Malzeme adı / Faturadaki Ürün Adı | D79: Üretici Unvanı | E79: GTİP Kodu (İthal girdiler için) | F79: Gtip Katsayısı | G79: Miktar | H79: Birim | I79: Fiyatı (TL/Döviz) | J79: Döviz Kuru (TL ise 1 alınız) | K79: Fatura Tutarı (TL) | L79: Girdi Maliyet Yüzdesi (%) | M79: Girdi yüzdesi %0,5 altında olan girdiler için %10 sınır kontrolü | N79: Girdi yüzdesi %0,5 altında olan girdiler için %10 sınır kontrolü | O79: SSB/ Müstahsil (E/H) | P79: YKO (%) (Manuel girilmeli) | Q79: Geçerli Yerli Oranı (%) | R79: Yerli Maliyet Tutarı (T1) | S79: Yerli Maliyet Tutarı (T1) | T79: Yerli Maliyet Tutarı (T1) | U79: İthal Maliyet Tutarı (T2)
B80: Doğrudan Girdi (Dolaylı girdiniz varsa en son 25. sayfaya doldurunuz)
A81: =A71+1 -> 57 | F81: =IF(AND(E81<>"",U81<>"",K81<>0),U81/K81,"") ->  | K81: =IF(AND(G81<>0, I81<>0, J81<>0), G81*I81*J81, "") ->  | L81: =IF(K81="", "", K81/Veriler!$T$1) ->  | M81: =IF(E81<>"", "İthal Girdi", IF(Veriler!P81="", "", IF(Veriler!O81="H", "%0,5 üzerindedir", IF(Veriler!P81>0.1, "%10 sınırı aşılmıştır.", "Uygun")))) -> %0,5 üzerindedir | N81: =IF(L81=""," ",M81) ->  | Q81: =IFERROR(IF(AND(S81<>"",K81<>"",K81<>0,S81<>0),S81/K81,"")," ") ->  | R81: =IFERROR(IF(L81<=0.005,IF(E81="",K81,0),IF(E81<>"",0,IF(O81="",0,IF(O81="H",0,IF(P81<Veriler!$F$2,K81*Veriler!$F$2,K81*P81)))))," ") -> 0 | S81: =IF(Veriler!P81<=0.1, R81, IF(AND(Veriler!P81>0.1, E81="", O81="E"), IF(P81>Veriler!$F$2, P81*R81, IF(P81<Veriler!$F$2, Veriler!$F$2*R81, P81*R81)), 0)) -> 0 | T81: =IF(S81=0," ",S81) ->  | U81: =IFERROR(IF(N81="%10 sınırı aşılmıştır.",K81-S81,IFERROR(IF(E81="",IF(R81=1,0,IF(K81-R81=0,"",K81-R81)),IF(Veriler!I81="",K81,IF(K81*Veriler!I81=0,"",K81*Veriler!I81))),K81)),0) -> 
A82: =A81+1 -> 58 | L82: =IF(K82="", "", K82/Veriler!$T$1) ->  | M82: =IF(E82<>"", "İthal Girdi", IF(Veriler!P82="", "", IF(Veriler!O82="H", "%0,5 üzerindedir", IF(Veriler!P82>0.1, "%10 sınırı aşılmıştır.", "Uygun")))) -> %0,5 üzerindedir | R82: =IFERROR(IF(L82<=0.005,IF(E82="",K82,0),IF(E82<>"",0,IF(O82="",0,IF(O82="H",0,IF(P82<Veriler!$F$2,K82*Veriler!$F$2,K82*P82)))))," ") -> 0 | S82: =IF(Veriler!P82<=0.1, R82, IF(AND(Veriler!P82>0.1, E82="", O82="E"), IF(P82>Veriler!$F$2, P82*R82, IF(P82<Veriler!$F$2, Veriler!$F$2*R82, P82*R82)), 0)) -> 0 | U82: =IFERROR(IF(N82="%10 sınırı aşılmıştır.",K82-S82,IFERROR(IF(E82="",IF(R82=1,0,IF(K82-R82=0,"",K82-R82)),IF(Veriler!I82="",K82,IF(K82*Veriler!I82=0,"",K82*Veriler!I82))),K82)),0) -> 
A83: =A82+1 -> 59 | L83: =IF(K83="", "", K83/Veriler!$T$1) ->  | M83: =IF(E83<>"", "İthal Girdi", IF(Veriler!P83="", "", IF(Veriler!O83="H", "%0,5 üzerindedir", IF(Veriler!P83>0.1, "%10 sınırı aşılmıştır.", "Uygun")))) -> %0,5 üzerindedir | R83: =IFERROR(IF(L83<=0.005,IF(E83="",K83,0),IF(E83<>"",0,IF(O83="",0,IF(O83="H",0,IF(P83<Veriler!$F$2,K83*Veriler!$F$2,K83*P83)))))," ") -> 0 | S83: =IF(Veriler!P83<=0.1, R83, IF(AND(Veriler!P83>0.1, E83="", O83="E"), IF(P83>Veriler!$F$2, P83*R83, IF(P83<Veriler!$F$2, Veriler!$F$2*R83, P83*R83)), 0)) -> 0 | U83: =IFERROR(IF(N83="%10 sınırı aşılmıştır.",K83-S83,IFERROR(IF(E83="",IF(R83=1,0,IF(K83-R83=0,"",K83-R83)),IF(Veriler!I83="",K83,IF(K83*Veriler!I83=0,"",K83*Veriler!I83))),K83)),0) -> 
A84: 60 | L84: =IF(K84="", "", K84/Veriler!$T$1) ->  | M84: =IF(E84<>"", "İthal Girdi", IF(Veriler!P84="", "", IF(Veriler!O84="H", "%0,5 üzerindedir", IF(Veriler!P84>0.1, "%10 sınırı aşılmıştır.", "Uygun")))) -> %0,5 üzerindedir | R84: =IFERROR(IF(L84<=0.005,IF(E84="",K84,0),IF(E84<>"",0,IF(O84="",0,IF(O84="H",0,IF(P84<Veriler!$F$2,K84*Veriler!$F$2,K84*P84)))))," ") -> 0 | S84: =IF(Veriler!P84<=0.1, R84, IF(AND(Veriler!P84>0.1, E84="", O84="E"), IF(P84>Veriler!$F$2, P84*R84, IF(P84<Veriler!$F$2, Veriler!$F$2*R84, P84*R84)), 0)) -> 0 | U84: =IFERROR(IF(N84="%10 sınırı aşılmıştır.",K84-S84,IFERROR(IF(E84="",IF(R84=1,0,IF(K84-R84=0,"",K84-R84)),IF(Veriler!I84="",K84,IF(K84*Veriler!I84=0,"",K84*Veriler!I84))),K84)),0) -> 
A85: 61 | L85: =IF(K85="", "", K85/Veriler!$T$1) ->  | M85: =IF(E85<>"", "İthal Girdi", IF(Veriler!P85="", "", IF(Veriler!O85="H", "%0,5 üzerindedir", IF(Veriler!P85>0.1, "%10 sınırı aşılmıştır.", "Uygun")))) -> %0,5 üzerindedir | R85: =IFERROR(IF(L85<=0.005,IF(E85="",K85,0),IF(E85<>"",0,IF(O85="",0,IF(O85="H",0,IF(P85<Veriler!$F$2,K85*Veriler!$F$2,K85*P85)))))," ") -> 0 | S85: =IF(Veriler!P85<=0.1, R85, IF(AND(Veriler!P85>0.1, E85="", O85="E"), IF(P85>Veriler!$F$2, P85*R85, IF(P85<Veriler!$F$2, Veriler!$F$2*R85, P85*R85)), 0)) -> 0 | U85: =IFERROR(IF(N85="%10 sınırı aşılmıştır.",K85-S85,IFERROR(IF(E85="",IF(R85=1,0,IF(K85-R85=0,"",K85-R85)),IF(Veriler!I85="",K85,IF(K85*Veriler!I85=0,"",K85*Veriler!I85))),K85)),0) -> 
A86: 62 | L86: =IF(K86="", "", K86/Veriler!$T$1) ->  | M86: =IF(E86<>"", "İthal Girdi", IF(Veriler!P86="", "", IF(Veriler!O86="H", "%0,5 üzerindedir", IF(Veriler!P86>0.1, "%10 sınırı aşılmıştır.", "Uygun")))) -> %0,5 üzerindedir | R86: =IFERROR(IF(L86<=0.005,IF(E86="",K86,0),IF(E86<>"",0,IF(O86="",0,IF(O86="H",0,IF(P86<Veriler!$F$2,K86*Veriler!$F$2,K86*P86)))))," ") -> 0 | S86: =IF(Veriler!P86<=0.1, R86, IF(AND(Veriler!P86>0.1, E86="", O86="E"), IF(P86>Veriler!$F$2, P86*R86, IF(P86<Veriler!$F$2, Veriler!$F$2*R86, P86*R86)), 0)) -> 0 | U86: =IFERROR(IF(N86="%10 sınırı aşılmıştır.",K86-S86,IFERROR(IF(E86="",IF(R86=1,0,IF(K86-R86=0,"",K86-R86)),IF(Veriler!I86="",K86,IF(K86*Veriler!I86=0,"",K86*Veriler!I86))),K86)),0) -> 
A87: 63 | L87: =IF(K87="", "", K87/Veriler!$T$1) ->  | M87: =IF(E87<>"", "İthal Girdi", IF(Veriler!P87="", "", IF(Veriler!O87="H", "%0,5 üzerindedir", IF(Veriler!P87>0.1, "%10 sınırı aşılmıştır.", "Uygun")))) -> %0,5 üzerindedir | R87: =IFERROR(IF(L87<=0.005,IF(E87="",K87,0),IF(E87<>"",0,IF(O87="",0,IF(O87="H",0,IF(P87<Veriler!$F$2,K87*Veriler!$F$2,K87*P87)))))," ") -> 0 | S87: =IF(Veriler!P87<=0.1, R87, IF(AND(Veriler!P87>0.1, E87="", O87="E"), IF(P87>Veriler!$F$2, P87*R87, IF(P87<Veriler!$F$2, Veriler!$F$2*R87, P87*R87)), 0)) -> 0 | U87: =IFERROR(IF(N87="%10 sınırı aşılmıştır.",K87-S87,IFERROR(IF(E87="",IF(R87=1,0,IF(K87-R87=0,"",K87-R87)),IF(Veriler!I87="",K87,IF(K87*Veriler!I87=0,"",K87*Veriler!I87))),K87)),0) -> 
A88: 64 | L88: =IF(K88="", "", K88/Veriler!$T$1) ->  | M88: =IF(E88<>"", "İthal Girdi", IF(Veriler!P88="", "", IF(Veriler!O88="H", "%0,5 üzerindedir", IF(Veriler!P88>0.1, "%10 sınırı aşılmıştır.", "Uygun")))) -> %0,5 üzerindedir | R88: =IFERROR(IF(L88<=0.005,IF(E88="",K88,0),IF(E88<>"",0,IF(O88="",0,IF(O88="H",0,IF(P88<Veriler!$F$2,K88*Veriler!$F$2,K88*P88)))))," ") -> 0 | S88: =IF(Veriler!P88<=0.1, R88, IF(AND(Veriler!P88>0.1, E88="", O88="E"), IF(P88>Veriler!$F$2, P88*R88, IF(P88<Veriler!$F$2, Veriler!$F$2*R88, P88*R88)), 0)) -> 0 | U88: =IFERROR(IF(N88="%10 sınırı aşılmıştır.",K88-S88,IFERROR(IF(E88="",IF(R88=1,0,IF(K88-R88=0,"",K88-R88)),IF(Veriler!I88="",K88,IF(K88*Veriler!I88=0,"",K88*Veriler!I88))),K88)),0) -> 
A89: 65 | L89: =IF(K89="", "", K89/Veriler!$T$1) ->  | M89: =IF(E89<>"", "İthal Girdi", IF(Veriler!P89="", "", IF(Veriler!O89="H", "%0,5 üzerindedir", IF(Veriler!P89>0.1, "%10 sınırı aşılmıştır.", "Uygun")))) -> %0,5 üzerindedir | R89: =IFERROR(IF(L89<=0.005,IF(E89="",K89,0),IF(E89<>"",0,IF(O89="",0,IF(O89="H",0,IF(P89<Veriler!$F$2,K89*Veriler!$F$2,K89*P89)))))," ") -> 0 | S89: =IF(Veriler!P89<=0.1, R89, IF(AND(Veriler!P89>0.1, E89="", O89="E"), IF(P89>Veriler!$F$2, P89*R89, IF(P89<Veriler!$F$2, Veriler!$F$2*R89, P89*R89)), 0)) -> 0 | U89: =IFERROR(IF(N89="%10 sınırı aşılmıştır.",K89-S89,IFERROR(IF(E89="",IF(R89=1,0,IF(K89-R89=0,"",K89-R89)),IF(Veriler!I89="",K89,IF(K89*Veriler!I89=0,"",K89*Veriler!I89))),K89)),0) -> 
A90: 66 | L90: =IF(K90="", "", K90/Veriler!$T$1) ->  | M90: =IF(E90<>"", "İthal Girdi", IF(Veriler!P90="", "", IF(Veriler!O90="H", "%0,5 üzerindedir", IF(Veriler!P90>0.1, "%10 sınırı aşılmıştır.", "Uygun")))) -> %0,5 üzerindedir | R90: =IFERROR(IF(L90<=0.005,IF(E90="",K90,0),IF(E90<>"",0,IF(O90="",0,IF(O90="H",0,IF(P90<Veriler!$F$2,K90*Veriler!$F$2,K90*P90)))))," ") -> 0 | S90: =IF(Veriler!P90<=0.1, R90, IF(AND(Veriler!P90>0.1, E90="", O90="E"), IF(P90>Veriler!$F$2, P90*R90, IF(P90<Veriler!$F$2, Veriler!$F$2*R90, P90*R90)), 0)) -> 0 | U90: =IFERROR(IF(N90="%10 sınırı aşılmıştır.",K90-S90,IFERROR(IF(E90="",IF(R90=1,0,IF(K90-R90=0,"",K90-R90)),IF(Veriler!I90="",K90,IF(K90*Veriler!I90=0,"",K90*Veriler!I90))),K90)),0) -> 
A91: 67 | L91: =IF(K91="", "", K91/Veriler!$T$1) ->  | M91: =IF(E91<>"", "İthal Girdi", IF(Veriler!P91="", "", IF(Veriler!O91="H", "%0,5 üzerindedir", IF(Veriler!P91>0.1, "%10 sınırı aşılmıştır.", "Uygun")))) -> %0,5 üzerindedir | R91: =IFERROR(IF(L91<=0.005,IF(E91="",K91,0),IF(E91<>"",0,IF(O91="",0,IF(O91="H",0,IF(P91<Veriler!$F$2,K91*Veriler!$F$2,K91*P91)))))," ") -> 0 | S91: =IF(Veriler!P91<=0.1, R91, IF(AND(Veriler!P91>0.1, E91="", O91="E"), IF(P91>Veriler!$F$2, P91*R91, IF(P91<Veriler!$F$2, Veriler!$F$2*R91, P91*R91)), 0)) -> 0 | U91: =IFERROR(IF(N91="%10 sınırı aşılmıştır.",K91-S91,IFERROR(IF(E91="",IF(R91=1,0,IF(K91-R91=0,"",K91-R91)),IF(Veriler!I91="",K91,IF(K91*Veriler!I91=0,"",K91*Veriler!I91))),K91)),0) -> 
A92: 68 | L92: =IF(K92="", "", K92/Veriler!$T$1) ->  | M92: =IF(E92<>"", "İthal Girdi", IF(Veriler!P92="", "", IF(Veriler!O92="H", "%0,5 üzerindedir", IF(Veriler!P92>0.1, "%10 sınırı aşılmıştır.", "Uygun")))) -> %0,5 üzerindedir | R92: =IFERROR(IF(L92<=0.005,IF(E92="",K92,0),IF(E92<>"",0,IF(O92="",0,IF(O92="H",0,IF(P92<Veriler!$F$2,K92*Veriler!$F$2,K92*P92)))))," ") -> 0 | S92: =IF(Veriler!P92<=0.1, R92, IF(AND(Veriler!P92>0.1, E92="", O92="E"), IF(P92>Veriler!$F$2, P92*R92, IF(P92<Veriler!$F$2, Veriler!$F$2*R92, P92*R92)), 0)) -> 0 | U92: =IFERROR(IF(N92="%10 sınırı aşılmıştır.",K92-S92,IFERROR(IF(E92="",IF(R92=1,0,IF(K92-R92=0,"",K92-R92)),IF(Veriler!I92="",K92,IF(K92*Veriler!I92=0,"",K92*Veriler!I92))),K92)),0) -> 
A93: 69 | L93: =IF(K93="", "", K93/Veriler!$T$1) ->  | M93: =IF(E93<>"", "İthal Girdi", IF(Veriler!P93="", "", IF(Veriler!O93="H", "%0,5 üzerindedir", IF(Veriler!P93>0.1, "%10 sınırı aşılmıştır.", "Uygun")))) -> %0,5 üzerindedir | R93: =IFERROR(IF(L93<=0.005,IF(E93="",K93,0),IF(E93<>"",0,IF(O93="",0,IF(O93="H",0,IF(P93<Veriler!$F$2,K93*Veriler!$F$2,K93*P93)))))," ") -> 0 | S93: =IF(Veriler!P93<=0.1, R93, IF(AND(Veriler!P93>0.1, E93="", O93="E"), IF(P93>Veriler!$F$2, P93*R93, IF(P93<Veriler!$F$2, Veriler!$F$2*R93, P93*R93)), 0)) -> 0 | U93: =IFERROR(IF(N93="%10 sınırı aşılmıştır.",K93-S93,IFERROR(IF(E93="",IF(R93=1,0,IF(K93-R93=0,"",K93-R93)),IF(Veriler!I93="",K93,IF(K93*Veriler!I93=0,"",K93*Veriler!I93))),K93)),0) -> 
A94: 70 | L94: =IF(K94="", "", K94/Veriler!$T$1) ->  | M94: =IF(E94<>"", "İthal Girdi", IF(Veriler!P94="", "", IF(Veriler!O94="H", "%0,5 üzerindedir", IF(Veriler!P94>0.1, "%10 sınırı aşılmıştır.", "Uygun")))) -> %0,5 üzerindedir | R94: =IFERROR(IF(L94<=0.005,IF(E94="",K94,0),IF(E94<>"",0,IF(O94="",0,IF(O94="H",0,IF(P94<Veriler!$F$2,K94*Veriler!$F$2,K94*P94)))))," ") -> 0 | S94: =IF(Veriler!P94<=0.1, R94, IF(AND(Veriler!P94>0.1, E94="", O94="E"), IF(P94>Veriler!$F$2, P94*R94, IF(P94<Veriler!$F$2, Veriler!$F$2*R94, P94*R94)), 0)) -> 0 | U94: =IFERROR(IF(N94="%10 sınırı aşılmıştır.",K94-S94,IFERROR(IF(E94="",IF(R94=1,0,IF(K94-R94=0,"",K94-R94)),IF(Veriler!I94="",K94,IF(K94*Veriler!I94=0,"",K94*Veriler!I94))),K94)),0) -> 
B95: Dolaylı
A96: =A94+1 -> 71 | F96: =IF(AND(E96<>"",U96<>"",K96<>0),U96/K96,"") ->  | K96: =IF(AND(G96<>0, I96<>0, J96<>0), G96*I96*J96, "") ->  | L96: =IF(K96="", "", K96/Veriler!$T$1) ->  | M96: =IF(E96<>"", "İthal Girdi", IF(Veriler!P96="", "", IF(Veriler!O96="H", "%0,5 üzerindedir", IF(Veriler!P96>0.1, "%10 sınırı aşılmıştır.", "Uygun")))) -> %0,5 üzerindedir | N96: =IF(L96=""," ",M96) ->  | Q96: =IFERROR(IF(AND(S96<>"",K96<>"",K96<>0,S96<>0),S96/K96,"")," ") ->  | R96: =IFERROR(IF(L96<=0.005,IF(E96="",K96,0),IF(E96<>"",0,IF(O96="",0,IF(O96="H",0,IF(P96<Veriler!$F$2,K96*Veriler!$F$2,K96*P96)))))," ") -> 0 | S96: =IF(Veriler!P96<=0.1, R96, IF(AND(Veriler!P96>0.1, E96="", O96="E"), IF(P96>Veriler!$F$2, P96*R96, IF(P96<Veriler!$F$2, Veriler!$F$2*R96, P96*R96)), 0)) -> 0 | T96: =IF(S96=0," ",S96) ->  | U96: =IFERROR(IF(N96="%10 sınırı aşılmıştır.",K96-S96,IFERROR(IF(E96="",IF(R96=1,0,IF(K96-R96=0,"",K96-R96)),IF(Veriler!I96="",K96,IF(K96*Veriler!I96=0,"",K96*Veriler!I96))),K96)),0) -> 
A97: =A96+1 -> 72 | L97: =IF(K97="", "", K97/Veriler!$T$1) ->  | M97: =IF(E97<>"", "İthal Girdi", IF(Veriler!P97="", "", IF(Veriler!O97="H", "%0,5 üzerindedir", IF(Veriler!P97>0.1, "%10 sınırı aşılmıştır.", "Uygun")))) -> %0,5 üzerindedir | R97: =IFERROR(IF(L97<=0.005,IF(E97="",K97,0),IF(E97<>"",0,IF(O97="",0,IF(O97="H",0,IF(P97<Veriler!$F$2,K97*Veriler!$F$2,K97*P97)))))," ") -> 0 | S97: =IF(Veriler!P97<=0.1, R97, IF(AND(Veriler!P97>0.1, E97="", O97="E"), IF(P97>Veriler!$F$2, P97*R97, IF(P97<Veriler!$F$2, Veriler!$F$2*R97, P97*R97)), 0)) -> 0 | U97: =IFERROR(IF(N97="%10 sınırı aşılmıştır.",K97-S97,IFERROR(IF(E97="",IF(R97=1,0,IF(K97-R97=0,"",K97-R97)),IF(Veriler!I97="",K97,IF(K97*Veriler!I97=0,"",K97*Veriler!I97))),K97)),0) -> 
A98: =A97+1 -> 73 | L98: =IF(K98="", "", K98/Veriler!$T$1) ->  | M98: =IF(E98<>"", "İthal Girdi", IF(Veriler!P98="", "", IF(Veriler!O98="H", "%0,5 üzerindedir", IF(Veriler!P98>0.1, "%10 sınırı aşılmıştır.", "Uygun")))) -> %0,5 üzerindedir | R98: =IFERROR(IF(L98<=0.005,IF(E98="",K98,0),IF(E98<>"",0,IF(O98="",0,IF(O98="H",0,IF(P98<Veriler!$F$2,K98*Veriler!$F$2,K98*P98)))))," ") -> 0 | S98: =IF(Veriler!P98<=0.1, R98, IF(AND(Veriler!P98>0.1, E98="", O98="E"), IF(P98>Veriler!$F$2, P98*R98, IF(P98<Veriler!$F$2, Veriler!$F$2*R98, P98*R98)), 0)) -> 0 | U98: =IFERROR(IF(N98="%10 sınırı aşılmıştır.",K98-S98,IFERROR(IF(E98="",IF(R98=1,0,IF(K98-R98=0,"",K98-R98)),IF(Veriler!I98="",K98,IF(K98*Veriler!I98=0,"",K98*Veriler!I98))),K98)),0) -> 
A99: 74 | L99: =IF(K99="", "", K99/Veriler!$T$1) ->  | M99: =IF(E99<>"", "İthal Girdi", IF(Veriler!P99="", "", IF(Veriler!O99="H", "%0,5 üzerindedir", IF(Veriler!P99>0.1, "%10 sınırı aşılmıştır.", "Uygun")))) -> %0,5 üzerindedir | R99: =IFERROR(IF(L99<=0.005,IF(E99="",K99,0),IF(E99<>"",0,IF(O99="",0,IF(O99="H",0,IF(P99<Veriler!$F$2,K99*Veriler!$F$2,K99*P99)))))," ") -> 0 | S99: =IF(Veriler!P99<=0.1, R99, IF(AND(Veriler!P99>0.1, E99="", O99="E"), IF(P99>Veriler!$F$2, P99*R99, IF(P99<Veriler!$F$2, Veriler!$F$2*R99, P99*R99)), 0)) -> 0 | U99: =IFERROR(IF(N99="%10 sınırı aşılmıştır.",K99-S99,IFERROR(IF(E99="",IF(R99=1,0,IF(K99-R99=0,"",K99-R99)),IF(Veriler!I99="",K99,IF(K99*Veriler!I99=0,"",K99*Veriler!I99))),K99)),0) -> 
A100: 75 | L100: =IF(K100="", "", K100/Veriler!$T$1) ->  | M100: =IF(E100<>"", "İthal Girdi", IF(Veriler!P100="", "", IF(Veriler!O100="H", "%0,5 üzerindedir", IF(Veriler!P100>0.1, "%10 sınırı aşılmıştır.", "Uygun")))) -> %0,5 üzerindedir | R100: =IFERROR(IF(L100<=0.005,IF(E100="",K100,0),IF(E100<>"",0,IF(O100="",0,IF(O100="H",0,IF(P100<Veriler!$F$2,K100*Veriler!$F$2,K100*P100)))))," ") -> 0 | S100: =IF(Veriler!P100<=0.1, R100, IF(AND(Veriler!P100>0.1, E100="", O100="E"), IF(P100>Veriler!$F$2, P100*R100, IF(P100<Veriler!$F$2, Veriler!$F$2*R100, P100*R100)), 0)) -> 0 | U100: =IFERROR(IF(N100="%10 sınırı aşılmıştır.",K100-S100,IFERROR(IF(E100="",IF(R100=1,0,IF(K100-R100=0,"",K100-R100)),IF(Veriler!I100="",K100,IF(K100*Veriler!I100=0,"",K100*Veriler!I100))),K100)),0) -> 
A101: 76 | L101: =IF(K101="", "", K101/Veriler!$T$1) ->  | M101: =IF(E101<>"", "İthal Girdi", IF(Veriler!P101="", "", IF(Veriler!O101="H", "%0,5 üzerindedir", IF(Veriler!P101>0.1, "%10 sınırı aşılmıştır.", "Uygun")))) -> %0,5 üzerindedir | R101: =IFERROR(IF(L101<=0.005,IF(E101="",K101,0),IF(E101<>"",0,IF(O101="",0,IF(O101="H",0,IF(P101<Veriler!$F$2,K101*Veriler!$F$2,K101*P101)))))," ") -> 0 | S101: =IF(Veriler!P101<=0.1, R101, IF(AND(Veriler!P101>0.1, E101="", O101="E"), IF(P101>Veriler!$F$2, P101*R101, IF(P101<Veriler!$F$2, Veriler!$F$2*R101, P101*R101)), 0)) -> 0 | U101: =IFERROR(IF(N101="%10 sınırı aşılmıştır.",K101-S101,IFERROR(IF(E101="",IF(R101=1,0,IF(K101-R101=0,"",K101-R101)),IF(Veriler!I101="",K101,IF(K101*Veriler!I101=0,"",K101*Veriler!I101))),K101)),0) -> 
A102: 77 | L102: =IF(K102="", "", K102/Veriler!$T$1) ->  | M102: =IF(E102<>"", "İthal Girdi", IF(Veriler!P102="", "", IF(Veriler!O102="H", "%0,5 üzerindedir", IF(Veriler!P102>0.1, "%10 sınırı aşılmıştır.", "Uygun")))) -> %0,5 üzerindedir | R102: =IFERROR(IF(L102<=0.005,IF(E102="",K102,0),IF(E102<>"",0,IF(O102="",0,IF(O102="H",0,IF(P102<Veriler!$F$2,K102*Veriler!$F$2,K102*P102)))))," ") -> 0 | S102: =IF(Veriler!P102<=0.1, R102, IF(AND(Veriler!P102>0.1, E102="", O102="E"), IF(P102>Veriler!$F$2, P102*R102, IF(P102<Veriler!$F$2, Veriler!$F$2*R102, P102*R102)), 0)) -> 0 | U102: =IFERROR(IF(N102="%10 sınırı aşılmıştır.",K102-S102,IFERROR(IF(E102="",IF(R102=1,0,IF(K102-R102=0,"",K102-R102)),IF(Veriler!I102="",K102,IF(K102*Veriler!I102=0,"",K102*Veriler!I102))),K102)),0) -> 
A103: 78 | L103: =IF(K103="", "", K103/Veriler!$T$1) ->  | M103: =IF(E103<>"", "İthal Girdi", IF(Veriler!P103="", "", IF(Veriler!O103="H", "%0,5 üzerindedir", IF(Veriler!P103>0.1, "%10 sınırı aşılmıştır.", "Uygun")))) -> %0,5 üzerindedir | R103: =IFERROR(IF(L103<=0.005,IF(E103="",K103,0),IF(E103<>"",0,IF(O103="",0,IF(O103="H",0,IF(P103<Veriler!$F$2,K103*Veriler!$F$2,K103*P103)))))," ") -> 0 | S103: =IF(Veriler!P103<=0.1, R103, IF(AND(Veriler!P103>0.1, E103="", O103="E"), IF(P103>Veriler!$F$2, P103*R103, IF(P103<Veriler!$F$2, Veriler!$F$2*R103, P103*R103)), 0)) -> 0 | U103: =IFERROR(IF(N103="%10 sınırı aşılmıştır.",K103-S103,IFERROR(IF(E103="",IF(R103=1,0,IF(K103-R103=0,"",K103-R103)),IF(Veriler!I103="",K103,IF(K103*Veriler!I103=0,"",K103*Veriler!I103))),K103)),0) -> 
A104: 79 | L104: =IF(K104="", "", K104/Veriler!$T$1) ->  | M104: =IF(E104<>"", "İthal Girdi", IF(Veriler!P104="", "", IF(Veriler!O104="H", "%0,5 üzerindedir", IF(Veriler!P104>0.1, "%10 sınırı aşılmıştır.", "Uygun")))) -> %0,5 üzerindedir | R104: =IFERROR(IF(L104<=0.005,IF(E104="",K104,0),IF(E104<>"",0,IF(O104="",0,IF(O104="H",0,IF(P104<Veriler!$F$2,K104*Veriler!$F$2,K104*P104)))))," ") -> 0 | S104: =IF(Veriler!P104<=0.1, R104, IF(AND(Veriler!P104>0.1, E104="", O104="E"), IF(P104>Veriler!$F$2, P104*R104, IF(P104<Veriler!$F$2, Veriler!$F$2*R104, P104*R104)), 0)) -> 0 | U104: =IFERROR(IF(N104="%10 sınırı aşılmıştır.",K104-S104,IFERROR(IF(E104="",IF(R104=1,0,IF(K104-R104=0,"",K104-R104)),IF(Veriler!I104="",K104,IF(K104*Veriler!I104=0,"",K104*Veriler!I104))),K104)),0) -> 
A105: 80 | L105: =IF(K105="", "", K105/Veriler!$T$1) ->  | M105: =IF(E105<>"", "İthal Girdi", IF(Veriler!P105="", "", IF(Veriler!O105="H", "%0,5 üzerindedir", IF(Veriler!P105>0.1, "%10 sınırı aşılmıştır.", "Uygun")))) -> %0,5 üzerindedir | R105: =IFERROR(IF(L105<=0.005,IF(E105="",K105,0),IF(E105<>"",0,IF(O105="",0,IF(O105="H",0,IF(P105<Veriler!$F$2,K105*Veriler!$F$2,K105*P105)))))," ") -> 0 | S105: =IF(Veriler!P105<=0.1, R105, IF(AND(Veriler!P105>0.1, E105="", O105="E"), IF(P105>Veriler!$F$2, P105*R105, IF(P105<Veriler!$F$2, Veriler!$F$2*R105, P105*R105)), 0)) -> 0 | U105: =IFERROR(IF(N105="%10 sınırı aşılmıştır.",K105-S105,IFERROR(IF(E105="",IF(R105=1,0,IF(K105-R105=0,"",K105-R105)),IF(Veriler!I105="",K105,IF(K105*Veriler!I105=0,"",K105*Veriler!I105))),K105)),0) -> 
A106: 81 | L106: =IF(K106="", "", K106/Veriler!$T$1) ->  | M106: =IF(E106<>"", "İthal Girdi", IF(Veriler!P106="", "", IF(Veriler!O106="H", "%0,5 üzerindedir", IF(Veriler!P106>0.1, "%10 sınırı aşılmıştır.", "Uygun")))) -> %0,5 üzerindedir | R106: =IFERROR(IF(L106<=0.005,IF(E106="",K106,0),IF(E106<>"",0,IF(O106="",0,IF(O106="H",0,IF(P106<Veriler!$F$2,K106*Veriler!$F$2,K106*P106)))))," ") -> 0 | S106: =IF(Veriler!P106<=0.1, R106, IF(AND(Veriler!P106>0.1, E106="", O106="E"), IF(P106>Veriler!$F$2, P106*R106, IF(P106<Veriler!$F$2, Veriler!$F$2*R106, P106*R106)), 0)) -> 0 | U106: =IFERROR(IF(N106="%10 sınırı aşılmıştır.",K106-S106,IFERROR(IF(E106="",IF(R106=1,0,IF(K106-R106=0,"",K106-R106)),IF(Veriler!I106="",K106,IF(K106*Veriler!I106=0,"",K106*Veriler!I106))),K106)),0) -> 
A107: 82 | L107: =IF(K107="", "", K107/Veriler!$T$1) ->  | M107: =IF(E107<>"", "İthal Girdi", IF(Veriler!P107="", "", IF(Veriler!O107="H", "%0,5 üzerindedir", IF(Veriler!P107>0.1, "%10 sınırı aşılmıştır.", "Uygun")))) -> %0,5 üzerindedir | R107: =IFERROR(IF(L107<=0.005,IF(E107="",K107,0),IF(E107<>"",0,IF(O107="",0,IF(O107="H",0,IF(P107<Veriler!$F$2,K107*Veriler!$F$2,K107*P107)))))," ") -> 0 | S107: =IF(Veriler!P107<=0.1, R107, IF(AND(Veriler!P107>0.1, E107="", O107="E"), IF(P107>Veriler!$F$2, P107*R107, IF(P107<Veriler!$F$2, Veriler!$F$2*R107, P107*R107)), 0)) -> 0 | U107: =IFERROR(IF(N107="%10 sınırı aşılmıştır.",K107-S107,IFERROR(IF(E107="",IF(R107=1,0,IF(K107-R107=0,"",K107-R107)),IF(Veriler!I107="",K107,IF(K107*Veriler!I107=0,"",K107*Veriler!I107))),K107)),0) -> 
A108: 83 | L108: =IF(K108="", "", K108/Veriler!$T$1) ->  | M108: =IF(E108<>"", "İthal Girdi", IF(Veriler!P108="", "", IF(Veriler!O108="H", "%0,5 üzerindedir", IF(Veriler!P108>0.1, "%10 sınırı aşılmıştır.", "Uygun")))) -> %0,5 üzerindedir | R108: =IFERROR(IF(L108<=0.005,IF(E108="",K108,0),IF(E108<>"",0,IF(O108="",0,IF(O108="H",0,IF(P108<Veriler!$F$2,K108*Veriler!$F$2,K108*P108)))))," ") -> 0 | S108: =IF(Veriler!P108<=0.1, R108, IF(AND(Veriler!P108>0.1, E108="", O108="E"), IF(P108>Veriler!$F$2, P108*R108, IF(P108<Veriler!$F$2, Veriler!$F$2*R108, P108*R108)), 0)) -> 0 | U108: =IFERROR(IF(N108="%10 sınırı aşılmıştır.",K108-S108,IFERROR(IF(E108="",IF(R108=1,0,IF(K108-R108=0,"",K108-R108)),IF(Veriler!I108="",K108,IF(K108*Veriler!I108=0,"",K108*Veriler!I108))),K108)),0) -> 
A109: 84 | L109: =IF(K109="", "", K109/Veriler!$T$1) ->  | M109: =IF(E109<>"", "İthal Girdi", IF(Veriler!P109="", "", IF(Veriler!O109="H", "%0,5 üzerindedir", IF(Veriler!P109>0.1, "%10 sınırı aşılmıştır.", "Uygun")))) -> %0,5 üzerindedir | R109: =IFERROR(IF(L109<=0.005,IF(E109="",K109,0),IF(E109<>"",0,IF(O109="",0,IF(O109="H",0,IF(P109<Veriler!$F$2,K109*Veriler!$F$2,K109*P109)))))," ") -> 0 | S109: =IF(Veriler!P109<=0.1, R109, IF(AND(Veriler!P109>0.1, E109="", O109="E"), IF(P109>Veriler!$F$2, P109*R109, IF(P109<Veriler!$F$2, Veriler!$F$2*R109, P109*R109)), 0)) -> 0 | U109: =IFERROR(IF(N109="%10 sınırı aşılmıştır.",K109-S109,IFERROR(IF(E109="",IF(R109=1,0,IF(K109-R109=0,"",K109-R109)),IF(Veriler!I109="",K109,IF(K109*Veriler!I109=0,"",K109*Veriler!I109))),K109)),0) -> 
K110: =SUM(K81:K94,K96:K109) -> 0
R111: T1 | S111: T1 | T111: T1 | U111: T2
A112: Sayfa Toplamı (TL) *(Genel Dip Toplam Ek.3-D sayfasında otomatik hesaplanacaktır.) | R112: =IF(SUM(R74,R81:R94,R96:R109)=0,"",SUM(R74,R81:R94,R96:R109)) ->  | S112: =IF(SUM(S81:S94,S96:S109)=0," ",SUM(S81:S94,S96:S109)) ->  | T112: =IF(SUM(T81:T94,T96:T109)=0," ",SUM(T81:T94,T96:T109)) ->  | U112: =IF(SUM(U81:U94,U96:U109)=0," ",SUM(U81:U94,U96:U109)) -> 
A114: =A152 -> R02
A115: YERLİ KATKI ORANI HESAP CETVELİ | O115: FALSE
A116: A) Nihai Ürün Doğrudan ve Dolaylı Malzeme Giderleri | T116: S | U116: =U78+1 -> 4
A117: Sıra No | B117: Malzeme adı / Faturadaki Ürün Adı | D117: Üretici Unvanı | E117: GTİP Kodu (İthal girdiler için) | F117: Gtip Katsayısı | G117: Miktar | H117: Birim | I117: Fiyatı (TL/Döviz) | J117: Döviz Kuru (TL ise 1 alınız) | K117: Fatura Tutarı (TL) | L117: Girdi Maliyet Yüzdesi (%) | M117: Girdi yüzdesi %0,5 altında olan girdiler için %10 sınır kontrolü | N117: Girdi yüzdesi %0,5 altında olan girdiler için %10 sınır kontrolü | O117: SSB/ Müstahsil (E/H) | P117: YKO (%) (Manuel girilmeli) | Q117: Geçerli Yerli Oranı (%) | R117: Yerli Maliyet Tutarı (T1) | S117: Yerli Maliyet Tutarı (T1) | T117: Yerli Maliyet Tutarı (T1) | U117: İthal Maliyet Tutarı (T2)
B118: Doğrudan Girdi (Dolaylı girdiniz varsa en son 25. sayfaya doldurunuz)
A119: =A109+1 -> 85 | F119: =IF(AND(E119<>"",U119<>"",K119<>0),U119/K119,"") ->  | K119: =IF(AND(G119<>0, I119<>0, J119<>0), G119*I119*J119, "") ->  | L119: =IF(K119="", "", K119/Veriler!$T$1) ->  | M119: =IF(E119<>"", "İthal Girdi", IF(Veriler!P119="", "", IF(Veriler!O119="H", "%0,5 üzerindedir", IF(Veriler!P119>0.1, "%10 sınırı aşılmıştır.", "Uygun")))) -> %0,5 üzerindedir | N119: =IF(L119=""," ",M119) ->  | Q119: =IFERROR(IF(AND(S119<>"",K119<>"",K119<>0,S119<>0),S119/K119,"")," ") ->  | R119: =IFERROR(IF(L119<=0.005,IF(E119="",K119,0),IF(E119<>"",0,IF(O119="",0,IF(O119="H",0,IF(P119<Veriler!$F$2,K119*Veriler!$F$2,K119*P119)))))," ") -> 0 | S119: =IF(Veriler!P119<=0.1, R119, IF(AND(Veriler!P119>0.1, E119="", O119="E"), IF(P119>Veriler!$F$2, P119*R119, IF(P119<Veriler!$F$2, Veriler!$F$2*R119, P119*R119)), 0)) -> 0 | T119: =IF(S119=0," ",S119) ->  | U119: =IFERROR(IF(N119="%10 sınırı aşılmıştır.",K119-S119,IFERROR(IF(E119="",IF(R119=1,0,IF(K119-R119=0,"",K119-R119)),IF(Veriler!I119="",K119,IF(K119*Veriler!I119=0,"",K119*Veriler!I119))),K119)),0) -> 
A120: =A119+1 -> 86 | L120: =IF(K120="", "", K120/Veriler!$T$1) ->  | M120: =IF(E120<>"", "İthal Girdi", IF(Veriler!P120="", "", IF(Veriler!O120="H", "%0,5 üzerindedir", IF(Veriler!P120>0.1, "%10 sınırı aşılmıştır.", "Uygun")))) -> %0,5 üzerindedir | R120: =IFERROR(IF(L120<=0.005,IF(E120="",K120,0),IF(E120<>"",0,IF(O120="",0,IF(O120="H",0,IF(P120<Veriler!$F$2,K120*Veriler!$F$2,K120*P120)))))," ") -> 0 | S120: =IF(Veriler!P120<=0.1, R120, IF(AND(Veriler!P120>0.1, E120="", O120="E"), IF(P120>Veriler!$F$2, P120*R120, IF(P120<Veriler!$F$2, Veriler!$F$2*R120, P120*R120)), 0)) -> 0 | U120: =IFERROR(IF(N120="%10 sınırı aşılmıştır.",K120-S120,IFERROR(IF(E120="",IF(R120=1,0,IF(K120-R120=0,"",K120-R120)),IF(Veriler!I120="",K120,IF(K120*Veriler!I120=0,"",K120*Veriler!I120))),K120)),0) -> 
A121: =A120+1 -> 87 | L121: =IF(K121="", "", K121/Veriler!$T$1) ->  | M121: =IF(E121<>"", "İthal Girdi", IF(Veriler!P121="", "", IF(Veriler!O121="H", "%0,5 üzerindedir", IF(Veriler!P121>0.1, "%10 sınırı aşılmıştır.", "Uygun")))) -> %0,5 üzerindedir | R121: =IFERROR(IF(L121<=0.005,IF(E121="",K121,0),IF(E121<>"",0,IF(O121="",0,IF(O121="H",0,IF(P121<Veriler!$F$2,K121*Veriler!$F$2,K121*P121)))))," ") -> 0 | S121: =IF(Veriler!P121<=0.1, R121, IF(AND(Veriler!P121>0.1, E121="", O121="E"), IF(P121>Veriler!$F$2, P121*R121, IF(P121<Veriler!$F$2, Veriler!$F$2*R121, P121*R121)), 0)) -> 0 | U121: =IFERROR(IF(N121="%10 sınırı aşılmıştır.",K121-S121,IFERROR(IF(E121="",IF(R121=1,0,IF(K121-R121=0,"",K121-R121)),IF(Veriler!I121="",K121,IF(K121*Veriler!I121=0,"",K121*Veriler!I121))),K121)),0) -> 
A122: 88 | L122: =IF(K122="", "", K122/Veriler!$T$1) ->  | M122: =IF(E122<>"", "İthal Girdi", IF(Veriler!P122="", "", IF(Veriler!O122="H", "%0,5 üzerindedir", IF(Veriler!P122>0.1, "%10 sınırı aşılmıştır.", "Uygun")))) -> %0,5 üzerindedir | R122: =IFERROR(IF(L122<=0.005,IF(E122="",K122,0),IF(E122<>"",0,IF(O122="",0,IF(O122="H",0,IF(P122<Veriler!$F$2,K122*Veriler!$F$2,K122*P122)))))," ") -> 0 | S122: =IF(Veriler!P122<=0.1, R122, IF(AND(Veriler!P122>0.1, E122="", O122="E"), IF(P122>Veriler!$F$2, P122*R122, IF(P122<Veriler!$F$2, Veriler!$F$2*R122, P122*R122)), 0)) -> 0 | U122: =IFERROR(IF(N122="%10 sınırı aşılmıştır.",K122-S122,IFERROR(IF(E122="",IF(R122=1,0,IF(K122-R122=0,"",K122-R122)),IF(Veriler!I122="",K122,IF(K122*Veriler!I122=0,"",K122*Veriler!I122))),K122)),0) -> 
A123: 89 | L123: =IF(K123="", "", K123/Veriler!$T$1) ->  | M123: =IF(E123<>"", "İthal Girdi", IF(Veriler!P123="", "", IF(Veriler!O123="H", "%0,5 üzerindedir", IF(Veriler!P123>0.1, "%10 sınırı aşılmıştır.", "Uygun")))) -> %0,5 üzerindedir | R123: =IFERROR(IF(L123<=0.005,IF(E123="",K123,0),IF(E123<>"",0,IF(O123="",0,IF(O123="H",0,IF(P123<Veriler!$F$2,K123*Veriler!$F$2,K123*P123)))))," ") -> 0 | S123: =IF(Veriler!P123<=0.1, R123, IF(AND(Veriler!P123>0.1, E123="", O123="E"), IF(P123>Veriler!$F$2, P123*R123, IF(P123<Veriler!$F$2, Veriler!$F$2*R123, P123*R123)), 0)) -> 0 | U123: =IFERROR(IF(N123="%10 sınırı aşılmıştır.",K123-S123,IFERROR(IF(E123="",IF(R123=1,0,IF(K123-R123=0,"",K123-R123)),IF(Veriler!I123="",K123,IF(K123*Veriler!I123=0,"",K123*Veriler!I123))),K123)),0) -> 
A124: 90 | L124: =IF(K124="", "", K124/Veriler!$T$1) ->  | M124: =IF(E124<>"", "İthal Girdi", IF(Veriler!P124="", "", IF(Veriler!O124="H", "%0,5 üzerindedir", IF(Veriler!P124>0.1, "%10 sınırı aşılmıştır.", "Uygun")))) -> %0,5 üzerindedir | R124: =IFERROR(IF(L124<=0.005,IF(E124="",K124,0),IF(E124<>"",0,IF(O124="",0,IF(O124="H",0,IF(P124<Veriler!$F$2,K124*Veriler!$F$2,K124*P124)))))," ") -> 0 | S124: =IF(Veriler!P124<=0.1, R124, IF(AND(Veriler!P124>0.1, E124="", O124="E"), IF(P124>Veriler!$F$2, P124*R124, IF(P124<Veriler!$F$2, Veriler!$F$2*R124, P124*R124)), 0)) -> 0 | U124: =IFERROR(IF(N124="%10 sınırı aşılmıştır.",K124-S124,IFERROR(IF(E124="",IF(R124=1,0,IF(K124-R124=0,"",K124-R124)),IF(Veriler!I124="",K124,IF(K124*Veriler!I124=0,"",K124*Veriler!I124))),K124)),0) -> 
A125: 91 | L125: =IF(K125="", "", K125/Veriler!$T$1) ->  | M125: =IF(E125<>"", "İthal Girdi", IF(Veriler!P125="", "", IF(Veriler!O125="H", "%0,5 üzerindedir", IF(Veriler!P125>0.1, "%10 sınırı aşılmıştır.", "Uygun")))) -> %0,5 üzerindedir | R125: =IFERROR(IF(L125<=0.005,IF(E125="",K125,0),IF(E125<>"",0,IF(O125="",0,IF(O125="H",0,IF(P125<Veriler!$F$2,K125*Veriler!$F$2,K125*P125)))))," ") -> 0 | S125: =IF(Veriler!P125<=0.1, R125, IF(AND(Veriler!P125>0.1, E125="", O125="E"), IF(P125>Veriler!$F$2, P125*R125, IF(P125<Veriler!$F$2, Veriler!$F$2*R125, P125*R125)), 0)) -> 0 | U125: =IFERROR(IF(N125="%10 sınırı aşılmıştır.",K125-S125,IFERROR(IF(E125="",IF(R125=1,0,IF(K125-R125=0,"",K125-R125)),IF(Veriler!I125="",K125,IF(K125*Veriler!I125=0,"",K125*Veriler!I125))),K125)),0) -> 
A126: 92 | L126: =IF(K126="", "", K126/Veriler!$T$1) ->  | M126: =IF(E126<>"", "İthal Girdi", IF(Veriler!P126="", "", IF(Veriler!O126="H", "%0,5 üzerindedir", IF(Veriler!P126>0.1, "%10 sınırı aşılmıştır.", "Uygun")))) -> %0,5 üzerindedir | R126: =IFERROR(IF(L126<=0.005,IF(E126="",K126,0),IF(E126<>"",0,IF(O126="",0,IF(O126="H",0,IF(P126<Veriler!$F$2,K126*Veriler!$F$2,K126*P126)))))," ") -> 0 | S126: =IF(Veriler!P126<=0.1, R126, IF(AND(Veriler!P126>0.1, E126="", O126="E"), IF(P126>Veriler!$F$2, P126*R126, IF(P126<Veriler!$F$2, Veriler!$F$2*R126, P126*R126)), 0)) -> 0 | U126: =IFERROR(IF(N126="%10 sınırı aşılmıştır.",K126-S126,IFERROR(IF(E126="",IF(R126=1,0,IF(K126-R126=0,"",K126-R126)),IF(Veriler!I126="",K126,IF(K126*Veriler!I126=0,"",K126*Veriler!I126))),K126)),0) -> 
A127: 93 | L127: =IF(K127="", "", K127/Veriler!$T$1) ->  | M127: =IF(E127<>"", "İthal Girdi", IF(Veriler!P127="", "", IF(Veriler!O127="H", "%0,5 üzerindedir", IF(Veriler!P127>0.1, "%10 sınırı aşılmıştır.", "Uygun")))) -> %0,5 üzerindedir | R127: =IFERROR(IF(L127<=0.005,IF(E127="",K127,0),IF(E127<>"",0,IF(O127="",0,IF(O127="H",0,IF(P127<Veriler!$F$2,K127*Veriler!$F$2,K127*P127)))))," ") -> 0 | S127: =IF(Veriler!P127<=0.1, R127, IF(AND(Veriler!P127>0.1, E127="", O127="E"), IF(P127>Veriler!$F$2, P127*R127, IF(P127<Veriler!$F$2, Veriler!$F$2*R127, P127*R127)), 0)) -> 0 | U127: =IFERROR(IF(N127="%10 sınırı aşılmıştır.",K127-S127,IFERROR(IF(E127="",IF(R127=1,0,IF(K127-R127=0,"",K127-R127)),IF(Veriler!I127="",K127,IF(K127*Veriler!I127=0,"",K127*Veriler!I127))),K127)),0) -> 
A128: 94 | L128: =IF(K128="", "", K128/Veriler!$T$1) ->  | M128: =IF(E128<>"", "İthal Girdi", IF(Veriler!P128="", "", IF(Veriler!O128="H", "%0,5 üzerindedir", IF(Veriler!P128>0.1, "%10 sınırı aşılmıştır.", "Uygun")))) -> %0,5 üzerindedir | R128: =IFERROR(IF(L128<=0.005,IF(E128="",K128,0),IF(E128<>"",0,IF(O128="",0,IF(O128="H",0,IF(P128<Veriler!$F$2,K128*Veriler!$F$2,K128*P128)))))," ") -> 0 | S128: =IF(Veriler!P128<=0.1, R128, IF(AND(Veriler!P128>0.1, E128="", O128="E"), IF(P128>Veriler!$F$2, P128*R128, IF(P128<Veriler!$F$2, Veriler!$F$2*R128, P128*R128)), 0)) -> 0 | U128: =IFERROR(IF(N128="%10 sınırı aşılmıştır.",K128-S128,IFERROR(IF(E128="",IF(R128=1,0,IF(K128-R128=0,"",K128-R128)),IF(Veriler!I128="",K128,IF(K128*Veriler!I128=0,"",K128*Veriler!I128))),K128)),0) -> 
A129: 95 | L129: =IF(K129="", "", K129/Veriler!$T$1) ->  | M129: =IF(E129<>"", "İthal Girdi", IF(Veriler!P129="", "", IF(Veriler!O129="H", "%0,5 üzerindedir", IF(Veriler!P129>0.1, "%10 sınırı aşılmıştır.", "Uygun")))) -> %0,5 üzerindedir | R129: =IFERROR(IF(L129<=0.005,IF(E129="",K129,0),IF(E129<>"",0,IF(O129="",0,IF(O129="H",0,IF(P129<Veriler!$F$2,K129*Veriler!$F$2,K129*P129)))))," ") -> 0 | S129: =IF(Veriler!P129<=0.1, R129, IF(AND(Veriler!P129>0.1, E129="", O129="E"), IF(P129>Veriler!$F$2, P129*R129, IF(P129<Veriler!$F$2, Veriler!$F$2*R129, P129*R129)), 0)) -> 0 | U129: =IFERROR(IF(N129="%10 sınırı aşılmıştır.",K129-S129,IFERROR(IF(E129="",IF(R129=1,0,IF(K129-R129=0,"",K129-R129)),IF(Veriler!I129="",K129,IF(K129*Veriler!I129=0,"",K129*Veriler!I129))),K129)),0) -> 
A130: 96 | L130: =IF(K130="", "", K130/Veriler!$T$1) ->  | M130: =IF(E130<>"", "İthal Girdi", IF(Veriler!P130="", "", IF(Veriler!O130="H", "%0,5 üzerindedir", IF(Veriler!P130>0.1, "%10 sınırı aşılmıştır.", "Uygun")))) -> %0,5 üzerindedir | R130: =IFERROR(IF(L130<=0.005,IF(E130="",K130,0),IF(E130<>"",0,IF(O130="",0,IF(O130="H",0,IF(P130<Veriler!$F$2,K130*Veriler!$F$2,K130*P130)))))," ") -> 0 | S130: =IF(Veriler!P130<=0.1, R130, IF(AND(Veriler!P130>0.1, E130="", O130="E"), IF(P130>Veriler!$F$2, P130*R130, IF(P130<Veriler!$F$2, Veriler!$F$2*R130, P130*R130)), 0)) -> 0 | U130: =IFERROR(IF(N130="%10 sınırı aşılmıştır.",K130-S130,IFERROR(IF(E130="",IF(R130=1,0,IF(K130-R130=0,"",K130-R130)),IF(Veriler!I130="",K130,IF(K130*Veriler!I130=0,"",K130*Veriler!I130))),K130)),0) -> 
A131: 97 | L131: =IF(K131="", "", K131/Veriler!$T$1) ->  | M131: =IF(E131<>"", "İthal Girdi", IF(Veriler!P131="", "", IF(Veriler!O131="H", "%0,5 üzerindedir", IF(Veriler!P131>0.1, "%10 sınırı aşılmıştır.", "Uygun")))) -> %0,5 üzerindedir | R131: =IFERROR(IF(L131<=0.005,IF(E131="",K131,0),IF(E131<>"",0,IF(O131="",0,IF(O131="H",0,IF(P131<Veriler!$F$2,K131*Veriler!$F$2,K131*P131)))))," ") -> 0 | S131: =IF(Veriler!P131<=0.1, R131, IF(AND(Veriler!P131>0.1, E131="", O131="E"), IF(P131>Veriler!$F$2, P131*R131, IF(P131<Veriler!$F$2, Veriler!$F$2*R131, P131*R131)), 0)) -> 0 | U131: =IFERROR(IF(N131="%10 sınırı aşılmıştır.",K131-S131,IFERROR(IF(E131="",IF(R131=1,0,IF(K131-R131=0,"",K131-R131)),IF(Veriler!I131="",K131,IF(K131*Veriler!I131=0,"",K131*Veriler!I131))),K131)),0) -> 
A132: 98 | L132: =IF(K132="", "", K132/Veriler!$T$1) ->  | M132: =IF(E132<>"", "İthal Girdi", IF(Veriler!P132="", "", IF(Veriler!O132="H", "%0,5 üzerindedir", IF(Veriler!P132>0.1, "%10 sınırı aşılmıştır.", "Uygun")))) -> %0,5 üzerindedir | R132: =IFERROR(IF(L132<=0.005,IF(E132="",K132,0),IF(E132<>"",0,IF(O132="",0,IF(O132="H",0,IF(P132<Veriler!$F$2,K132*Veriler!$F$2,K132*P132)))))," ") -> 0 | S132: =IF(Veriler!P132<=0.1, R132, IF(AND(Veriler!P132>0.1, E132="", O132="E"), IF(P132>Veriler!$F$2, P132*R132, IF(P132<Veriler!$F$2, Veriler!$F$2*R132, P132*R132)), 0)) -> 0 | U132: =IFERROR(IF(N132="%10 sınırı aşılmıştır.",K132-S132,IFERROR(IF(E132="",IF(R132=1,0,IF(K132-R132=0,"",K132-R132)),IF(Veriler!I132="",K132,IF(K132*Veriler!I132=0,"",K132*Veriler!I132))),K132)),0) -> 
B133: Dolaylı
A134: =A132+1 -> 99 | F134: =IF(AND(E134<>"",U134<>"",K134<>0),U134/K134,"") ->  | K134: =IF(AND(G134<>0, I134<>0, J134<>0), G134*I134*J134, "") ->  | L134: =IF(K134="", "", K134/Veriler!$T$1) ->  | M134: =IF(E134<>"", "İthal Girdi", IF(Veriler!P134="", "", IF(Veriler!O134="H", "%0,5 üzerindedir", IF(Veriler!P134>0.1, "%10 sınırı aşılmıştır.", "Uygun")))) -> %0,5 üzerindedir | N134: =IF(L134=""," ",M134) ->  | Q134: =IFERROR(IF(AND(S134<>"",K134<>"",K134<>0,S134<>0),S134/K134,"")," ") ->  | R134: =IFERROR(IF(L134<=0.005,IF(E134="",K134,0),IF(E134<>"",0,IF(O134="",0,IF(O134="H",0,IF(P134<Veriler!$F$2,K134*Veriler!$F$2,K134*P134)))))," ") -> 0 | S134: =IF(Veriler!P134<=0.1, R134, IF(AND(Veriler!P134>0.1, E134="", O134="E"), IF(P134>Veriler!$F$2, P134*R134, IF(P134<Veriler!$F$2, Veriler!$F$2*R134, P134*R134)), 0)) -> 0 | T134: =IF(S134=0," ",S134) ->  | U134: =IFERROR(IF(N134="%10 sınırı aşılmıştır.",K134-S134,IFERROR(IF(E134="",IF(R134=1,0,IF(K134-R134=0,"",K134-R134)),IF(Veriler!I134="",K134,IF(K134*Veriler!I134=0,"",K134*Veriler!I134))),K134)),0) -> 
A135: =A134+1 -> 100 | L135: =IF(K135="", "", K135/Veriler!$T$1) ->  | M135: =IF(E135<>"", "İthal Girdi", IF(Veriler!P135="", "", IF(Veriler!O135="H", "%0,5 üzerindedir", IF(Veriler!P135>0.1, "%10 sınırı aşılmıştır.", "Uygun")))) -> %0,5 üzerindedir | R135: =IFERROR(IF(L135<=0.005,IF(E135="",K135,0),IF(E135<>"",0,IF(O135="",0,IF(O135="H",0,IF(P135<Veriler!$F$2,K135*Veriler!$F$2,K135*P135)))))," ") -> 0 | S135: =IF(Veriler!P135<=0.1, R135, IF(AND(Veriler!P135>0.1, E135="", O135="E"), IF(P135>Veriler!$F$2, P135*R135, IF(P135<Veriler!$F$2, Veriler!$F$2*R135, P135*R135)), 0)) -> 0 | U135: =IFERROR(IF(N135="%10 sınırı aşılmıştır.",K135-S135,IFERROR(IF(E135="",IF(R135=1,0,IF(K135-R135=0,"",K135-R135)),IF(Veriler!I135="",K135,IF(K135*Veriler!I135=0,"",K135*Veriler!I135))),K135)),0) -> 
A136: =A135+1 -> 101 | L136: =IF(K136="", "", K136/Veriler!$T$1) ->  | M136: =IF(E136<>"", "İthal Girdi", IF(Veriler!P136="", "", IF(Veriler!O136="H", "%0,5 üzerindedir", IF(Veriler!P136>0.1, "%10 sınırı aşılmıştır.", "Uygun")))) -> %0,5 üzerindedir | R136: =IFERROR(IF(L136<=0.005,IF(E136="",K136,0),IF(E136<>"",0,IF(O136="",0,IF(O136="H",0,IF(P136<Veriler!$F$2,K136*Veriler!$F$2,K136*P136)))))," ") -> 0 | S136: =IF(Veriler!P136<=0.1, R136, IF(AND(Veriler!P136>0.1, E136="", O136="E"), IF(P136>Veriler!$F$2, P136*R136, IF(P136<Veriler!$F$2, Veriler!$F$2*R136, P136*R136)), 0)) -> 0 | U136: =IFERROR(IF(N136="%10 sınırı aşılmıştır.",K136-S136,IFERROR(IF(E136="",IF(R136=1,0,IF(K136-R136=0,"",K136-R136)),IF(Veriler!I136="",K136,IF(K136*Veriler!I136=0,"",K136*Veriler!I136))),K136)),0) -> 
A137: 102 | L137: =IF(K137="", "", K137/Veriler!$T$1) ->  | M137: =IF(E137<>"", "İthal Girdi", IF(Veriler!P137="", "", IF(Veriler!O137="H", "%0,5 üzerindedir", IF(Veriler!P137>0.1, "%10 sınırı aşılmıştır.", "Uygun")))) -> %0,5 üzerindedir | R137: =IFERROR(IF(L137<=0.005,IF(E137="",K137,0),IF(E137<>"",0,IF(O137="",0,IF(O137="H",0,IF(P137<Veriler!$F$2,K137*Veriler!$F$2,K137*P137)))))," ") -> 0 | S137: =IF(Veriler!P137<=0.1, R137, IF(AND(Veriler!P137>0.1, E137="", O137="E"), IF(P137>Veriler!$F$2, P137*R137, IF(P137<Veriler!$F$2, Veriler!$F$2*R137, P137*R137)), 0)) -> 0 | U137: =IFERROR(IF(N137="%10 sınırı aşılmıştır.",K137-S137,IFERROR(IF(E137="",IF(R137=1,0,IF(K137-R137=0,"",K137-R137)),IF(Veriler!I137="",K137,IF(K137*Veriler!I137=0,"",K137*Veriler!I137))),K137)),0) -> 
A138: 103 | L138: =IF(K138="", "", K138/Veriler!$T$1) ->  | M138: =IF(E138<>"", "İthal Girdi", IF(Veriler!P138="", "", IF(Veriler!O138="H", "%0,5 üzerindedir", IF(Veriler!P138>0.1, "%10 sınırı aşılmıştır.", "Uygun")))) -> %0,5 üzerindedir | R138: =IFERROR(IF(L138<=0.005,IF(E138="",K138,0),IF(E138<>"",0,IF(O138="",0,IF(O138="H",0,IF(P138<Veriler!$F$2,K138*Veriler!$F$2,K138*P138)))))," ") -> 0 | S138: =IF(Veriler!P138<=0.1, R138, IF(AND(Veriler!P138>0.1, E138="", O138="E"), IF(P138>Veriler!$F$2, P138*R138, IF(P138<Veriler!$F$2, Veriler!$F$2*R138, P138*R138)), 0)) -> 0 | U138: =IFERROR(IF(N138="%10 sınırı aşılmıştır.",K138-S138,IFERROR(IF(E138="",IF(R138=1,0,IF(K138-R138=0,"",K138-R138)),IF(Veriler!I138="",K138,IF(K138*Veriler!I138=0,"",K138*Veriler!I138))),K138)),0) -> 
A139: 104 | L139: =IF(K139="", "", K139/Veriler!$T$1) ->  | M139: =IF(E139<>"", "İthal Girdi", IF(Veriler!P139="", "", IF(Veriler!O139="H", "%0,5 üzerindedir", IF(Veriler!P139>0.1, "%10 sınırı aşılmıştır.", "Uygun")))) -> %0,5 üzerindedir | R139: =IFERROR(IF(L139<=0.005,IF(E139="",K139,0),IF(E139<>"",0,IF(O139="",0,IF(O139="H",0,IF(P139<Veriler!$F$2,K139*Veriler!$F$2,K139*P139)))))," ") -> 0 | S139: =IF(Veriler!P139<=0.1, R139, IF(AND(Veriler!P139>0.1, E139="", O139="E"), IF(P139>Veriler!$F$2, P139*R139, IF(P139<Veriler!$F$2, Veriler!$F$2*R139, P139*R139)), 0)) -> 0 | U139: =IFERROR(IF(N139="%10 sınırı aşılmıştır.",K139-S139,IFERROR(IF(E139="",IF(R139=1,0,IF(K139-R139=0,"",K139-R139)),IF(Veriler!I139="",K139,IF(K139*Veriler!I139=0,"",K139*Veriler!I139))),K139)),0) -> 
A140: 105 | L140: =IF(K140="", "", K140/Veriler!$T$1) ->  | M140: =IF(E140<>"", "İthal Girdi", IF(Veriler!P140="", "", IF(Veriler!O140="H", "%0,5 üzerindedir", IF(Veriler!P140>0.1, "%10 sınırı aşılmıştır.", "Uygun")))) -> %0,5 üzerindedir | R140: =IFERROR(IF(L140<=0.005,IF(E140="",K140,0),IF(E140<>"",0,IF(O140="",0,IF(O140="H",0,IF(P140<Veriler!$F$2,K140*Veriler!$F$2,K140*P140)))))," ") -> 0 | S140: =IF(Veriler!P140<=0.1, R140, IF(AND(Veriler!P140>0.1, E140="", O140="E"), IF(P140>Veriler!$F$2, P140*R140, IF(P140<Veriler!$F$2, Veriler!$F$2*R140, P140*R140)), 0)) -> 0 | U140: =IFERROR(IF(N140="%10 sınırı aşılmıştır.",K140-S140,IFERROR(IF(E140="",IF(R140=1,0,IF(K140-R140=0,"",K140-R140)),IF(Veriler!I140="",K140,IF(K140*Veriler!I140=0,"",K140*Veriler!I140))),K140)),0) -> 
A141: 106 | L141: =IF(K141="", "", K141/Veriler!$T$1) ->  | M141: =IF(E141<>"", "İthal Girdi", IF(Veriler!P141="", "", IF(Veriler!O141="H", "%0,5 üzerindedir", IF(Veriler!P141>0.1, "%10 sınırı aşılmıştır.", "Uygun")))) -> %0,5 üzerindedir | R141: =IFERROR(IF(L141<=0.005,IF(E141="",K141,0),IF(E141<>"",0,IF(O141="",0,IF(O141="H",0,IF(P141<Veriler!$F$2,K141*Veriler!$F$2,K141*P141)))))," ") -> 0 | S141: =IF(Veriler!P141<=0.1, R141, IF(AND(Veriler!P141>0.1, E141="", O141="E"), IF(P141>Veriler!$F$2, P141*R141, IF(P141<Veriler!$F$2, Veriler!$F$2*R141, P141*R141)), 0)) -> 0 | U141: =IFERROR(IF(N141="%10 sınırı aşılmıştır.",K141-S141,IFERROR(IF(E141="",IF(R141=1,0,IF(K141-R141=0,"",K141-R141)),IF(Veriler!I141="",K141,IF(K141*Veriler!I141=0,"",K141*Veriler!I141))),K141)),0) -> 
A142: 107 | L142: =IF(K142="", "", K142/Veriler!$T$1) ->  | M142: =IF(E142<>"", "İthal Girdi", IF(Veriler!P142="", "", IF(Veriler!O142="H", "%0,5 üzerindedir", IF(Veriler!P142>0.1, "%10 sınırı aşılmıştır.", "Uygun")))) -> %0,5 üzerindedir | R142: =IFERROR(IF(L142<=0.005,IF(E142="",K142,0),IF(E142<>"",0,IF(O142="",0,IF(O142="H",0,IF(P142<Veriler!$F$2,K142*Veriler!$F$2,K142*P142)))))," ") -> 0 | S142: =IF(Veriler!P142<=0.1, R142, IF(AND(Veriler!P142>0.1, E142="", O142="E"), IF(P142>Veriler!$F$2, P142*R142, IF(P142<Veriler!$F$2, Veriler!$F$2*R142, P142*R142)), 0)) -> 0 | U142: =IFERROR(IF(N142="%10 sınırı aşılmıştır.",K142-S142,IFERROR(IF(E142="",IF(R142=1,0,IF(K142-R142=0,"",K142-R142)),IF(Veriler!I142="",K142,IF(K142*Veriler!I142=0,"",K142*Veriler!I142))),K142)),0) -> 
A143: 108 | L143: =IF(K143="", "", K143/Veriler!$T$1) ->  | M143: =IF(E143<>"", "İthal Girdi", IF(Veriler!P143="", "", IF(Veriler!O143="H", "%0,5 üzerindedir", IF(Veriler!P143>0.1, "%10 sınırı aşılmıştır.", "Uygun")))) -> %0,5 üzerindedir | R143: =IFERROR(IF(L143<=0.005,IF(E143="",K143,0),IF(E143<>"",0,IF(O143="",0,IF(O143="H",0,IF(P143<Veriler!$F$2,K143*Veriler!$F$2,K143*P143)))))," ") -> 0 | S143: =IF(Veriler!P143<=0.1, R143, IF(AND(Veriler!P143>0.1, E143="", O143="E"), IF(P143>Veriler!$F$2, P143*R143, IF(P143<Veriler!$F$2, Veriler!$F$2*R143, P143*R143)), 0)) -> 0 | U143: =IFERROR(IF(N143="%10 sınırı aşılmıştır.",K143-S143,IFERROR(IF(E143="",IF(R143=1,0,IF(K143-R143=0,"",K143-R143)),IF(Veriler!I143="",K143,IF(K143*Veriler!I143=0,"",K143*Veriler!I143))),K143)),0) -> 
A144: 109 | L144: =IF(K144="", "", K144/Veriler!$T$1) ->  | M144: =IF(E144<>"", "İthal Girdi", IF(Veriler!P144="", "", IF(Veriler!O144="H", "%0,5 üzerindedir", IF(Veriler!P144>0.1, "%10 sınırı aşılmıştır.", "Uygun")))) -> %0,5 üzerindedir | R144: =IFERROR(IF(L144<=0.005,IF(E144="",K144,0),IF(E144<>"",0,IF(O144="",0,IF(O144="H",0,IF(P144<Veriler!$F$2,K144*Veriler!$F$2,K144*P144)))))," ") -> 0 | S144: =IF(Veriler!P144<=0.1, R144, IF(AND(Veriler!P144>0.1, E144="", O144="E"), IF(P144>Veriler!$F$2, P144*R144, IF(P144<Veriler!$F$2, Veriler!$F$2*R144, P144*R144)), 0)) -> 0 | U144: =IFERROR(IF(N144="%10 sınırı aşılmıştır.",K144-S144,IFERROR(IF(E144="",IF(R144=1,0,IF(K144-R144=0,"",K144-R144)),IF(Veriler!I144="",K144,IF(K144*Veriler!I144=0,"",K144*Veriler!I144))),K144)),0) -> 
A145: 110 | L145: =IF(K145="", "", K145/Veriler!$T$1) ->  | M145: =IF(E145<>"", "İthal Girdi", IF(Veriler!P145="", "", IF(Veriler!O145="H", "%0,5 üzerindedir", IF(Veriler!P145>0.1, "%10 sınırı aşılmıştır.", "Uygun")))) -> %0,5 üzerindedir | R145: =IFERROR(IF(L145<=0.005,IF(E145="",K145,0),IF(E145<>"",0,IF(O145="",0,IF(O145="H",0,IF(P145<Veriler!$F$2,K145*Veriler!$F$2,K145*P145)))))," ") -> 0 | S145: =IF(Veriler!P145<=0.1, R145, IF(AND(Veriler!P145>0.1, E145="", O145="E"), IF(P145>Veriler!$F$2, P145*R145, IF(P145<Veriler!$F$2, Veriler!$F$2*R145, P145*R145)), 0)) -> 0 | U145: =IFERROR(IF(N145="%10 sınırı aşılmıştır.",K145-S145,IFERROR(IF(E145="",IF(R145=1,0,IF(K145-R145=0,"",K145-R145)),IF(Veriler!I145="",K145,IF(K145*Veriler!I145=0,"",K145*Veriler!I145))),K145)),0) -> 
A146: 111 | L146: =IF(K146="", "", K146/Veriler!$T$1) ->  | M146: =IF(E146<>"", "İthal Girdi", IF(Veriler!P146="", "", IF(Veriler!O146="H", "%0,5 üzerindedir", IF(Veriler!P146>0.1, "%10 sınırı aşılmıştır.", "Uygun")))) -> %0,5 üzerindedir | R146: =IFERROR(IF(L146<=0.005,IF(E146="",K146,0),IF(E146<>"",0,IF(O146="",0,IF(O146="H",0,IF(P146<Veriler!$F$2,K146*Veriler!$F$2,K146*P146)))))," ") -> 0 | S146: =IF(Veriler!P146<=0.1, R146, IF(AND(Veriler!P146>0.1, E146="", O146="E"), IF(P146>Veriler!$F$2, P146*R146, IF(P146<Veriler!$F$2, Veriler!$F$2*R146, P146*R146)), 0)) -> 0 | U146: =IFERROR(IF(N146="%10 sınırı aşılmıştır.",K146-S146,IFERROR(IF(E146="",IF(R146=1,0,IF(K146-R146=0,"",K146-R146)),IF(Veriler!I146="",K146,IF(K146*Veriler!I146=0,"",K146*Veriler!I146))),K146)),0) -> 
A147: 112 | L147: =IF(K147="", "", K147/Veriler!$T$1) ->  | M147: =IF(E147<>"", "İthal Girdi", IF(Veriler!P147="", "", IF(Veriler!O147="H", "%0,5 üzerindedir", IF(Veriler!P147>0.1, "%10 sınırı aşılmıştır.", "Uygun")))) -> %0,5 üzerindedir | R147: =IFERROR(IF(L147<=0.005,IF(E147="",K147,0),IF(E147<>"",0,IF(O147="",0,IF(O147="H",0,IF(P147<Veriler!$F$2,K147*Veriler!$F$2,K147*P147)))))," ") -> 0 | S147: =IF(Veriler!P147<=0.1, R147, IF(AND(Veriler!P147>0.1, E147="", O147="E"), IF(P147>Veriler!$F$2, P147*R147, IF(P147<Veriler!$F$2, Veriler!$F$2*R147, P147*R147)), 0)) -> 0 | U147: =IFERROR(IF(N147="%10 sınırı aşılmıştır.",K147-S147,IFERROR(IF(E147="",IF(R147=1,0,IF(K147-R147=0,"",K147-R147)),IF(Veriler!I147="",K147,IF(K147*Veriler!I147=0,"",K147*Veriler!I147))),K147)),0) -> 
K148: =SUM(K119:K132,K134:K147) -> 0
R149: T1 | S149: T1 | T149: T1 | U149: T2
A150: Sayfa Toplamı (TL) *(Genel Dip Toplam Ek.3-D sayfasında otomatik hesaplanacaktır.) | R150: =IF(SUM(R112,R119:R132,R134:R147)=0,"",SUM(R112,R119:R132,R134:R147)) ->  | S150: =IF(SUM(S119:S132,S134:S147)=0," ",SUM(S119:S132,S134:S147)) ->  | T150: =IF(SUM(T119:T132,T134:T147)=0," ",SUM(T119:T132,T134:T147)) ->  | U150: =IF(SUM(U119:U132,U134:U147)=0," ",SUM(U119:U132,U134:U147)) -> 
A152: =A190 -> R02
A153: YERLİ KATKI ORANI HESAP CETVELİ | O153: FALSE
A154: A) Nihai Ürün Doğrudan ve Dolaylı Malzeme Giderleri | T154: S | U154: =U116+1 -> 5
A155: Sıra No | B155: Malzeme adı / Faturadaki Ürün Adı | D155: Üretici Unvanı | E155: GTİP Kodu (İthal girdiler için) | F155: Gtip Katsayısı | G155: Miktar | H155: Birim | I155: Fiyatı (TL/Döviz) | J155: Döviz Kuru (TL ise 1 alınız) | K155: Fatura Tutarı (TL) | L155: Girdi Maliyet Yüzdesi (%) | M155: Girdi yüzdesi %0,5 altında olan girdiler için %10 sınır kontrolü | N155: Girdi yüzdesi %0,5 altında olan girdiler için %10 sınır kontrolü | O155: SSB/ Müstahsil (E/H) | P155: YKO (%) (Manuel girilmeli) | Q155: Geçerli Yerli Oranı (%) | R155: Yerli Maliyet Tutarı (T1) | S155: Yerli Maliyet Tutarı (T1) | T155: Yerli Maliyet Tutarı (T1) | U155: İthal Maliyet Tutarı (T2)
B156: Doğrudan Girdi (Dolaylı girdiniz varsa en son 25. sayfaya doldurunuz)
A157: =A147+1 -> 113 | F157: =IF(AND(E157<>"",U157<>"",K157<>0),U157/K157,"") ->  | K157: =IF(AND(G157<>0, I157<>0, J157<>0), G157*I157*J157, "") ->  | L157: =IF(K157="", "", K157/Veriler!$T$1) ->  | M157: =IF(E157<>"", "İthal Girdi", IF(Veriler!P157="", "", IF(Veriler!O157="H", "%0,5 üzerindedir", IF(Veriler!P157>0.1, "%10 sınırı aşılmıştır.", "Uygun")))) -> %0,5 üzerindedir | N157: =IF(L157=""," ",M157) ->  | Q157: =IFERROR(IF(AND(S157<>"",K157<>"",K157<>0,S157<>0),S157/K157,"")," ") ->  | R157: =IFERROR(IF(L157<=0.005,IF(E157="",K157,0),IF(E157<>"",0,IF(O157="",0,IF(O157="H",0,IF(P157<Veriler!$F$2,K157*Veriler!$F$2,K157*P157)))))," ") -> 0 | S157: =IF(Veriler!P157<=0.1, R157, IF(AND(Veriler!P157>0.1, E157="", O157="E"), IF(P157>Veriler!$F$2, P157*R157, IF(P157<Veriler!$F$2, Veriler!$F$2*R157, P157*R157)), 0)) -> 0 | T157: =IF(S157=0," ",S157) ->  | U157: =IFERROR(IF(N157="%10 sınırı aşılmıştır.",K157-S157,IFERROR(IF(E157="",IF(R157=1,0,IF(K157-R157=0,"",K157-R157)),IF(Veriler!I157="",K157,IF(K157*Veriler!I157=0,"",K157*Veriler!I157))),K157)),0) -> 
A158: =A157+1 -> 114 | L158: =IF(K158="", "", K158/Veriler!$T$1) ->  | M158: =IF(E158<>"", "İthal Girdi", IF(Veriler!P158="", "", IF(Veriler!O158="H", "%0,5 üzerindedir", IF(Veriler!P158>0.1, "%10 sınırı aşılmıştır.", "Uygun")))) -> %0,5 üzerindedir | R158: =IFERROR(IF(L158<=0.005,IF(E158="",K158,0),IF(E158<>"",0,IF(O158="",0,IF(O158="H",0,IF(P158<Veriler!$F$2,K158*Veriler!$F$2,K158*P158)))))," ") -> 0 | S158: =IF(Veriler!P158<=0.1, R158, IF(AND(Veriler!P158>0.1, E158="", O158="E"), IF(P158>Veriler!$F$2, P158*R158, IF(P158<Veriler!$F$2, Veriler!$F$2*R158, P158*R158)), 0)) -> 0 | U158: =IFERROR(IF(N158="%10 sınırı aşılmıştır.",K158-S158,IFERROR(IF(E158="",IF(R158=1,0,IF(K158-R158=0,"",K158-R158)),IF(Veriler!I158="",K158,IF(K158*Veriler!I158=0,"",K158*Veriler!I158))),K158)),0) -> 
A159: =A158+1 -> 115 | L159: =IF(K159="", "", K159/Veriler!$T$1) ->  | M159: =IF(E159<>"", "İthal Girdi", IF(Veriler!P159="", "", IF(Veriler!O159="H", "%0,5 üzerindedir", IF(Veriler!P159>0.1, "%10 sınırı aşılmıştır.", "Uygun")))) -> %0,5 üzerindedir | R159: =IFERROR(IF(L159<=0.005,IF(E159="",K159,0),IF(E159<>"",0,IF(O159="",0,IF(O159="H",0,IF(P159<Veriler!$F$2,K159*Veriler!$F$2,K159*P159)))))," ") -> 0 | S159: =IF(Veriler!P159<=0.1, R159, IF(AND(Veriler!P159>0.1, E159="", O159="E"), IF(P159>Veriler!$F$2, P159*R159, IF(P159<Veriler!$F$2, Veriler!$F$2*R159, P159*R159)), 0)) -> 0 | U159: =IFERROR(IF(N159="%10 sınırı aşılmıştır.",K159-S159,IFERROR(IF(E159="",IF(R159=1,0,IF(K159-R159=0,"",K159-R159)),IF(Veriler!I159="",K159,IF(K159*Veriler!I159=0,"",K159*Veriler!I159))),K159)),0) -> 
A160: 116 | L160: =IF(K160="", "", K160/Veriler!$T$1) ->  | M160: =IF(E160<>"", "İthal Girdi", IF(Veriler!P160="", "", IF(Veriler!O160="H", "%0,5 üzerindedir", IF(Veriler!P160>0.1, "%10 sınırı aşılmıştır.", "Uygun")))) -> %0,5 üzerindedir | R160: =IFERROR(IF(L160<=0.005,IF(E160="",K160,0),IF(E160<>"",0,IF(O160="",0,IF(O160="H",0,IF(P160<Veriler!$F$2,K160*Veriler!$F$2,K160*P160)))))," ") -> 0 | S160: =IF(Veriler!P160<=0.1, R160, IF(AND(Veriler!P160>0.1, E160="", O160="E"), IF(P160>Veriler!$F$2, P160*R160, IF(P160<Veriler!$F$2, Veriler!$F$2*R160, P160*R160)), 0)) -> 0 | U160: =IFERROR(IF(N160="%10 sınırı aşılmıştır.",K160-S160,IFERROR(IF(E160="",IF(R160=1,0,IF(K160-R160=0,"",K160-R160)),IF(Veriler!I160="",K160,IF(K160*Veriler!I160=0,"",K160*Veriler!I160))),K160)),0) -> 
A161: 117 | L161: =IF(K161="", "", K161/Veriler!$T$1) ->  | M161: =IF(E161<>"", "İthal Girdi", IF(Veriler!P161="", "", IF(Veriler!O161="H", "%0,5 üzerindedir", IF(Veriler!P161>0.1, "%10 sınırı aşılmıştır.", "Uygun")))) -> %0,5 üzerindedir | R161: =IFERROR(IF(L161<=0.005,IF(E161="",K161,0),IF(E161<>"",0,IF(O161="",0,IF(O161="H",0,IF(P161<Veriler!$F$2,K161*Veriler!$F$2,K161*P161)))))," ") -> 0 | S161: =IF(Veriler!P161<=0.1, R161, IF(AND(Veriler!P161>0.1, E161="", O161="E"), IF(P161>Veriler!$F$2, P161*R161, IF(P161<Veriler!$F$2, Veriler!$F$2*R161, P161*R161)), 0)) -> 0 | U161: =IFERROR(IF(N161="%10 sınırı aşılmıştır.",K161-S161,IFERROR(IF(E161="",IF(R161=1,0,IF(K161-R161=0,"",K161-R161)),IF(Veriler!I161="",K161,IF(K161*Veriler!I161=0,"",K161*Veriler!I161))),K161)),0) -> 
A162: 118 | L162: =IF(K162="", "", K162/Veriler!$T$1) ->  | M162: =IF(E162<>"", "İthal Girdi", IF(Veriler!P162="", "", IF(Veriler!O162="H", "%0,5 üzerindedir", IF(Veriler!P162>0.1, "%10 sınırı aşılmıştır.", "Uygun")))) -> %0,5 üzerindedir | R162: =IFERROR(IF(L162<=0.005,IF(E162="",K162,0),IF(E162<>"",0,IF(O162="",0,IF(O162="H",0,IF(P162<Veriler!$F$2,K162*Veriler!$F$2,K162*P162)))))," ") -> 0 | S162: =IF(Veriler!P162<=0.1, R162, IF(AND(Veriler!P162>0.1, E162="", O162="E"), IF(P162>Veriler!$F$2, P162*R162, IF(P162<Veriler!$F$2, Veriler!$F$2*R162, P162*R162)), 0)) -> 0 | U162: =IFERROR(IF(N162="%10 sınırı aşılmıştır.",K162-S162,IFERROR(IF(E162="",IF(R162=1,0,IF(K162-R162=0,"",K162-R162)),IF(Veriler!I162="",K162,IF(K162*Veriler!I162=0,"",K162*Veriler!I162))),K162)),0) -> 
A163: 119 | L163: =IF(K163="", "", K163/Veriler!$T$1) ->  | M163: =IF(E163<>"", "İthal Girdi", IF(Veriler!P163="", "", IF(Veriler!O163="H", "%0,5 üzerindedir", IF(Veriler!P163>0.1, "%10 sınırı aşılmıştır.", "Uygun")))) -> %0,5 üzerindedir | R163: =IFERROR(IF(L163<=0.005,IF(E163="",K163,0),IF(E163<>"",0,IF(O163="",0,IF(O163="H",0,IF(P163<Veriler!$F$2,K163*Veriler!$F$2,K163*P163)))))," ") -> 0 | S163: =IF(Veriler!P163<=0.1, R163, IF(AND(Veriler!P163>0.1, E163="", O163="E"), IF(P163>Veriler!$F$2, P163*R163, IF(P163<Veriler!$F$2, Veriler!$F$2*R163, P163*R163)), 0)) -> 0 | U163: =IFERROR(IF(N163="%10 sınırı aşılmıştır.",K163-S163,IFERROR(IF(E163="",IF(R163=1,0,IF(K163-R163=0,"",K163-R163)),IF(Veriler!I163="",K163,IF(K163*Veriler!I163=0,"",K163*Veriler!I163))),K163)),0) -> 
A164: 120 | L164: =IF(K164="", "", K164/Veriler!$T$1) ->  | M164: =IF(E164<>"", "İthal Girdi", IF(Veriler!P164="", "", IF(Veriler!O164="H", "%0,5 üzerindedir", IF(Veriler!P164>0.1, "%10 sınırı aşılmıştır.", "Uygun")))) -> %0,5 üzerindedir | R164: =IFERROR(IF(L164<=0.005,IF(E164="",K164,0),IF(E164<>"",0,IF(O164="",0,IF(O164="H",0,IF(P164<Veriler!$F$2,K164*Veriler!$F$2,K164*P164)))))," ") -> 0 | S164: =IF(Veriler!P164<=0.1, R164, IF(AND(Veriler!P164>0.1, E164="", O164="E"), IF(P164>Veriler!$F$2, P164*R164, IF(P164<Veriler!$F$2, Veriler!$F$2*R164, P164*R164)), 0)) -> 0 | U164: =IFERROR(IF(N164="%10 sınırı aşılmıştır.",K164-S164,IFERROR(IF(E164="",IF(R164=1,0,IF(K164-R164=0,"",K164-R164)),IF(Veriler!I164="",K164,IF(K164*Veriler!I164=0,"",K164*Veriler!I164))),K164)),0) -> 
A165: 121 | L165: =IF(K165="", "", K165/Veriler!$T$1) ->  | M165: =IF(E165<>"", "İthal Girdi", IF(Veriler!P165="", "", IF(Veriler!O165="H", "%0,5 üzerindedir", IF(Veriler!P165>0.1, "%10 sınırı aşılmıştır.", "Uygun")))) -> %0,5 üzerindedir | R165: =IFERROR(IF(L165<=0.005,IF(E165="",K165,0),IF(E165<>"",0,IF(O165="",0,IF(O165="H",0,IF(P165<Veriler!$F$2,K165*Veriler!$F$2,K165*P165)))))," ") -> 0 | S165: =IF(Veriler!P165<=0.1, R165, IF(AND(Veriler!P165>0.1, E165="", O165="E"), IF(P165>Veriler!$F$2, P165*R165, IF(P165<Veriler!$F$2, Veriler!$F$2*R165, P165*R165)), 0)) -> 0 | U165: =IFERROR(IF(N165="%10 sınırı aşılmıştır.",K165-S165,IFERROR(IF(E165="",IF(R165=1,0,IF(K165-R165=0,"",K165-R165)),IF(Veriler!I165="",K165,IF(K165*Veriler!I165=0,"",K165*Veriler!I165))),K165)),0) -> 
A166: 122 | L166: =IF(K166="", "", K166/Veriler!$T$1) ->  | M166: =IF(E166<>"", "İthal Girdi", IF(Veriler!P166="", "", IF(Veriler!O166="H", "%0,5 üzerindedir", IF(Veriler!P166>0.1, "%10 sınırı aşılmıştır.", "Uygun")))) -> %0,5 üzerindedir | R166: =IFERROR(IF(L166<=0.005,IF(E166="",K166,0),IF(E166<>"",0,IF(O166="",0,IF(O166="H",0,IF(P166<Veriler!$F$2,K166*Veriler!$F$2,K166*P166)))))," ") -> 0 | S166: =IF(Veriler!P166<=0.1, R166, IF(AND(Veriler!P166>0.1, E166="", O166="E"), IF(P166>Veriler!$F$2, P166*R166, IF(P166<Veriler!$F$2, Veriler!$F$2*R166, P166*R166)), 0)) -> 0 | U166: =IFERROR(IF(N166="%10 sınırı aşılmıştır.",K166-S166,IFERROR(IF(E166="",IF(R166=1,0,IF(K166-R166=0,"",K166-R166)),IF(Veriler!I166="",K166,IF(K166*Veriler!I166=0,"",K166*Veriler!I166))),K166)),0) -> 
A167: 123 | L167: =IF(K167="", "", K167/Veriler!$T$1) ->  | M167: =IF(E167<>"", "İthal Girdi", IF(Veriler!P167="", "", IF(Veriler!O167="H", "%0,5 üzerindedir", IF(Veriler!P167>0.1, "%10 sınırı aşılmıştır.", "Uygun")))) -> %0,5 üzerindedir | R167: =IFERROR(IF(L167<=0.005,IF(E167="",K167,0),IF(E167<>"",0,IF(O167="",0,IF(O167="H",0,IF(P167<Veriler!$F$2,K167*Veriler!$F$2,K167*P167)))))," ") -> 0 | S167: =IF(Veriler!P167<=0.1, R167, IF(AND(Veriler!P167>0.1, E167="", O167="E"), IF(P167>Veriler!$F$2, P167*R167, IF(P167<Veriler!$F$2, Veriler!$F$2*R167, P167*R167)), 0)) -> 0 | U167: =IFERROR(IF(N167="%10 sınırı aşılmıştır.",K167-S167,IFERROR(IF(E167="",IF(R167=1,0,IF(K167-R167=0,"",K167-R167)),IF(Veriler!I167="",K167,IF(K167*Veriler!I167=0,"",K167*Veriler!I167))),K167)),0) -> 
A168: 124 | L168: =IF(K168="", "", K168/Veriler!$T$1) ->  | M168: =IF(E168<>"", "İthal Girdi", IF(Veriler!P168="", "", IF(Veriler!O168="H", "%0,5 üzerindedir", IF(Veriler!P168>0.1, "%10 sınırı aşılmıştır.", "Uygun")))) -> %0,5 üzerindedir | R168: =IFERROR(IF(L168<=0.005,IF(E168="",K168,0),IF(E168<>"",0,IF(O168="",0,IF(O168="H",0,IF(P168<Veriler!$F$2,K168*Veriler!$F$2,K168*P168)))))," ") -> 0 | S168: =IF(Veriler!P168<=0.1, R168, IF(AND(Veriler!P168>0.1, E168="", O168="E"), IF(P168>Veriler!$F$2, P168*R168, IF(P168<Veriler!$F$2, Veriler!$F$2*R168, P168*R168)), 0)) -> 0 | U168: =IFERROR(IF(N168="%10 sınırı aşılmıştır.",K168-S168,IFERROR(IF(E168="",IF(R168=1,0,IF(K168-R168=0,"",K168-R168)),IF(Veriler!I168="",K168,IF(K168*Veriler!I168=0,"",K168*Veriler!I168))),K168)),0) -> 
A169: 125 | L169: =IF(K169="", "", K169/Veriler!$T$1) ->  | M169: =IF(E169<>"", "İthal Girdi", IF(Veriler!P169="", "", IF(Veriler!O169="H", "%0,5 üzerindedir", IF(Veriler!P169>0.1, "%10 sınırı aşılmıştır.", "Uygun")))) -> %0,5 üzerindedir | R169: =IFERROR(IF(L169<=0.005,IF(E169="",K169,0),IF(E169<>"",0,IF(O169="",0,IF(O169="H",0,IF(P169<Veriler!$F$2,K169*Veriler!$F$2,K169*P169)))))," ") -> 0 | S169: =IF(Veriler!P169<=0.1, R169, IF(AND(Veriler!P169>0.1, E169="", O169="E"), IF(P169>Veriler!$F$2, P169*R169, IF(P169<Veriler!$F$2, Veriler!$F$2*R169, P169*R169)), 0)) -> 0 | U169: =IFERROR(IF(N169="%10 sınırı aşılmıştır.",K169-S169,IFERROR(IF(E169="",IF(R169=1,0,IF(K169-R169=0,"",K169-R169)),IF(Veriler!I169="",K169,IF(K169*Veriler!I169=0,"",K169*Veriler!I169))),K169)),0) -> 
A170: 126 | L170: =IF(K170="", "", K170/Veriler!$T$1) ->  | M170: =IF(E170<>"", "İthal Girdi", IF(Veriler!P170="", "", IF(Veriler!O170="H", "%0,5 üzerindedir", IF(Veriler!P170>0.1, "%10 sınırı aşılmıştır.", "Uygun")))) -> %0,5 üzerindedir | R170: =IFERROR(IF(L170<=0.005,IF(E170="",K170,0),IF(E170<>"",0,IF(O170="",0,IF(O170="H",0,IF(P170<Veriler!$F$2,K170*Veriler!$F$2,K170*P170)))))," ") -> 0 | S170: =IF(Veriler!P170<=0.1, R170, IF(AND(Veriler!P170>0.1, E170="", O170="E"), IF(P170>Veriler!$F$2, P170*R170, IF(P170<Veriler!$F$2, Veriler!$F$2*R170, P170*R170)), 0)) -> 0 | U170: =IFERROR(IF(N170="%10 sınırı aşılmıştır.",K170-S170,IFERROR(IF(E170="",IF(R170=1,0,IF(K170-R170=0,"",K170-R170)),IF(Veriler!I170="",K170,IF(K170*Veriler!I170=0,"",K170*Veriler!I170))),K170)),0) -> 
B171: Dolaylı
A172: =A170+1 -> 127 | F172: =IF(AND(E172<>"",U172<>"",K172<>0),U172/K172,"") ->  | K172: =IF(AND(G172<>0, I172<>0, J172<>0), G172*I172*J172, "") ->  | L172: =IF(K172="", "", K172/Veriler!$T$1) ->  | M172: =IF(E172<>"", "İthal Girdi", IF(Veriler!P172="", "", IF(Veriler!O172="H", "%0,5 üzerindedir", IF(Veriler!P172>0.1, "%10 sınırı aşılmıştır.", "Uygun")))) -> %0,5 üzerindedir | N172: =IF(L172=""," ",M172) ->  | Q172: =IFERROR(IF(AND(S172<>"",K172<>"",K172<>0,S172<>0),S172/K172,"")," ") ->  | R172: =IFERROR(IF(L172<=0.005,IF(E172="",K172,0),IF(E172<>"",0,IF(O172="",0,IF(O172="H",0,IF(P172<Veriler!$F$2,K172*Veriler!$F$2,K172*P172)))))," ") -> 0 | S172: =IF(Veriler!P172<=0.1, R172, IF(AND(Veriler!P172>0.1, E172="", O172="E"), IF(P172>Veriler!$F$2, P172*R172, IF(P172<Veriler!$F$2, Veriler!$F$2*R172, P172*R172)), 0)) -> 0 | T172: =IF(S172=0," ",S172) ->  | U172: =IFERROR(IF(N172="%10 sınırı aşılmıştır.",K172-S172,IFERROR(IF(E172="",IF(R172=1,0,IF(K172-R172=0,"",K172-R172)),IF(Veriler!I172="",K172,IF(K172*Veriler!I172=0,"",K172*Veriler!I172))),K172)),0) -> 
A173: =A172+1 -> 128 | L173: =IF(K173="", "", K173/Veriler!$T$1) ->  | M173: =IF(E173<>"", "İthal Girdi", IF(Veriler!P173="", "", IF(Veriler!O173="H", "%0,5 üzerindedir", IF(Veriler!P173>0.1, "%10 sınırı aşılmıştır.", "Uygun")))) -> %0,5 üzerindedir | R173: =IFERROR(IF(L173<=0.005,IF(E173="",K173,0),IF(E173<>"",0,IF(O173="",0,IF(O173="H",0,IF(P173<Veriler!$F$2,K173*Veriler!$F$2,K173*P173)))))," ") -> 0 | S173: =IF(Veriler!P173<=0.1, R173, IF(AND(Veriler!P173>0.1, E173="", O173="E"), IF(P173>Veriler!$F$2, P173*R173, IF(P173<Veriler!$F$2, Veriler!$F$2*R173, P173*R173)), 0)) -> 0 | U173: =IFERROR(IF(N173="%10 sınırı aşılmıştır.",K173-S173,IFERROR(IF(E173="",IF(R173=1,0,IF(K173-R173=0,"",K173-R173)),IF(Veriler!I173="",K173,IF(K173*Veriler!I173=0,"",K173*Veriler!I173))),K173)),0) -> 
A174: =A173+1 -> 129 | L174: =IF(K174="", "", K174/Veriler!$T$1) ->  | M174: =IF(E174<>"", "İthal Girdi", IF(Veriler!P174="", "", IF(Veriler!O174="H", "%0,5 üzerindedir", IF(Veriler!P174>0.1, "%10 sınırı aşılmıştır.", "Uygun")))) -> %0,5 üzerindedir | R174: =IFERROR(IF(L174<=0.005,IF(E174="",K174,0),IF(E174<>"",0,IF(O174="",0,IF(O174="H",0,IF(P174<Veriler!$F$2,K174*Veriler!$F$2,K174*P174)))))," ") -> 0 | S174: =IF(Veriler!P174<=0.1, R174, IF(AND(Veriler!P174>0.1, E174="", O174="E"), IF(P174>Veriler!$F$2, P174*R174, IF(P174<Veriler!$F$2, Veriler!$F$2*R174, P174*R174)), 0)) -> 0 | U174: =IFERROR(IF(N174="%10 sınırı aşılmıştır.",K174-S174,IFERROR(IF(E174="",IF(R174=1,0,IF(K174-R174=0,"",K174-R174)),IF(Veriler!I174="",K174,IF(K174*Veriler!I174=0,"",K174*Veriler!I174))),K174)),0) -> 
A175: 130 | L175: =IF(K175="", "", K175/Veriler!$T$1) ->  | M175: =IF(E175<>"", "İthal Girdi", IF(Veriler!P175="", "", IF(Veriler!O175="H", "%0,5 üzerindedir", IF(Veriler!P175>0.1, "%10 sınırı aşılmıştır.", "Uygun")))) -> %0,5 üzerindedir | R175: =IFERROR(IF(L175<=0.005,IF(E175="",K175,0),IF(E175<>"",0,IF(O175="",0,IF(O175="H",0,IF(P175<Veriler!$F$2,K175*Veriler!$F$2,K175*P175)))))," ") -> 0 | S175: =IF(Veriler!P175<=0.1, R175, IF(AND(Veriler!P175>0.1, E175="", O175="E"), IF(P175>Veriler!$F$2, P175*R175, IF(P175<Veriler!$F$2, Veriler!$F$2*R175, P175*R175)), 0)) -> 0 | U175: =IFERROR(IF(N175="%10 sınırı aşılmıştır.",K175-S175,IFERROR(IF(E175="",IF(R175=1,0,IF(K175-R175=0,"",K175-R175)),IF(Veriler!I175="",K175,IF(K175*Veriler!I175=0,"",K175*Veriler!I175))),K175)),0) -> 
A176: 131 | L176: =IF(K176="", "", K176/Veriler!$T$1) ->  | M176: =IF(E176<>"", "İthal Girdi", IF(Veriler!P176="", "", IF(Veriler!O176="H", "%0,5 üzerindedir", IF(Veriler!P176>0.1, "%10 sınırı aşılmıştır.", "Uygun")))) -> %0,5 üzerindedir | R176: =IFERROR(IF(L176<=0.005,IF(E176="",K176,0),IF(E176<>"",0,IF(O176="",0,IF(O176="H",0,IF(P176<Veriler!$F$2,K176*Veriler!$F$2,K176*P176)))))," ") -> 0 | S176: =IF(Veriler!P176<=0.1, R176, IF(AND(Veriler!P176>0.1, E176="", O176="E"), IF(P176>Veriler!$F$2, P176*R176, IF(P176<Veriler!$F$2, Veriler!$F$2*R176, P176*R176)), 0)) -> 0 | U176: =IFERROR(IF(N176="%10 sınırı aşılmıştır.",K176-S176,IFERROR(IF(E176="",IF(R176=1,0,IF(K176-R176=0,"",K176-R176)),IF(Veriler!I176="",K176,IF(K176*Veriler!I176=0,"",K176*Veriler!I176))),K176)),0) -> 
A177: 132 | L177: =IF(K177="", "", K177/Veriler!$T$1) ->  | M177: =IF(E177<>"", "İthal Girdi", IF(Veriler!P177="", "", IF(Veriler!O177="H", "%0,5 üzerindedir", IF(Veriler!P177>0.1, "%10 sınırı aşılmıştır.", "Uygun")))) -> %0,5 üzerindedir | R177: =IFERROR(IF(L177<=0.005,IF(E177="",K177,0),IF(E177<>"",0,IF(O177="",0,IF(O177="H",0,IF(P177<Veriler!$F$2,K177*Veriler!$F$2,K177*P177)))))," ") -> 0 | S177: =IF(Veriler!P177<=0.1, R177, IF(AND(Veriler!P177>0.1, E177="", O177="E"), IF(P177>Veriler!$F$2, P177*R177, IF(P177<Veriler!$F$2, Veriler!$F$2*R177, P177*R177)), 0)) -> 0 | U177: =IFERROR(IF(N177="%10 sınırı aşılmıştır.",K177-S177,IFERROR(IF(E177="",IF(R177=1,0,IF(K177-R177=0,"",K177-R177)),IF(Veriler!I177="",K177,IF(K177*Veriler!I177=0,"",K177*Veriler!I177))),K177)),0) -> 
A178: 133 | L178: =IF(K178="", "", K178/Veriler!$T$1) ->  | M178: =IF(E178<>"", "İthal Girdi", IF(Veriler!P178="", "", IF(Veriler!O178="H", "%0,5 üzerindedir", IF(Veriler!P178>0.1, "%10 sınırı aşılmıştır.", "Uygun")))) -> %0,5 üzerindedir | R178: =IFERROR(IF(L178<=0.005,IF(E178="",K178,0),IF(E178<>"",0,IF(O178="",0,IF(O178="H",0,IF(P178<Veriler!$F$2,K178*Veriler!$F$2,K178*P178)))))," ") -> 0 | S178: =IF(Veriler!P178<=0.1, R178, IF(AND(Veriler!P178>0.1, E178="", O178="E"), IF(P178>Veriler!$F$2, P178*R178, IF(P178<Veriler!$F$2, Veriler!$F$2*R178, P178*R178)), 0)) -> 0 | U178: =IFERROR(IF(N178="%10 sınırı aşılmıştır.",K178-S178,IFERROR(IF(E178="",IF(R178=1,0,IF(K178-R178=0,"",K178-R178)),IF(Veriler!I178="",K178,IF(K178*Veriler!I178=0,"",K178*Veriler!I178))),K178)),0) -> 
A179: 134 | L179: =IF(K179="", "", K179/Veriler!$T$1) ->  | M179: =IF(E179<>"", "İthal Girdi", IF(Veriler!P179="", "", IF(Veriler!O179="H", "%0,5 üzerindedir", IF(Veriler!P179>0.1, "%10 sınırı aşılmıştır.", "Uygun")))) -> %0,5 üzerindedir | R179: =IFERROR(IF(L179<=0.005,IF(E179="",K179,0),IF(E179<>"",0,IF(O179="",0,IF(O179="H",0,IF(P179<Veriler!$F$2,K179*Veriler!$F$2,K179*P179)))))," ") -> 0 | S179: =IF(Veriler!P179<=0.1, R179, IF(AND(Veriler!P179>0.1, E179="", O179="E"), IF(P179>Veriler!$F$2, P179*R179, IF(P179<Veriler!$F$2, Veriler!$F$2*R179, P179*R179)), 0)) -> 0 | U179: =IFERROR(IF(N179="%10 sınırı aşılmıştır.",K179-S179,IFERROR(IF(E179="",IF(R179=1,0,IF(K179-R179=0,"",K179-R179)),IF(Veriler!I179="",K179,IF(K179*Veriler!I179=0,"",K179*Veriler!I179))),K179)),0) -> 
A180: 135 | L180: =IF(K180="", "", K180/Veriler!$T$1) ->  | M180: =IF(E180<>"", "İthal Girdi", IF(Veriler!P180="", "", IF(Veriler!O180="H", "%0,5 üzerindedir", IF(Veriler!P180>0.1, "%10 sınırı aşılmıştır.", "Uygun")))) -> %0,5 üzerindedir | R180: =IFERROR(IF(L180<=0.005,IF(E180="",K180,0),IF(E180<>"",0,IF(O180="",0,IF(O180="H",0,IF(P180<Veriler!$F$2,K180*Veriler!$F$2,K180*P180)))))," ") -> 0 | S180: =IF(Veriler!P180<=0.1, R180, IF(AND(Veriler!P180>0.1, E180="", O180="E"), IF(P180>Veriler!$F$2, P180*R180, IF(P180<Veriler!$F$2, Veriler!$F$2*R180, P180*R180)), 0)) -> 0 | U180: =IFERROR(IF(N180="%10 sınırı aşılmıştır.",K180-S180,IFERROR(IF(E180="",IF(R180=1,0,IF(K180-R180=0,"",K180-R180)),IF(Veriler!I180="",K180,IF(K180*Veriler!I180=0,"",K180*Veriler!I180))),K180)),0) -> 
A181: 136 | L181: =IF(K181="", "", K181/Veriler!$T$1) ->  | M181: =IF(E181<>"", "İthal Girdi", IF(Veriler!P181="", "", IF(Veriler!O181="H", "%0,5 üzerindedir", IF(Veriler!P181>0.1, "%10 sınırı aşılmıştır.", "Uygun")))) -> %0,5 üzerindedir | R181: =IFERROR(IF(L181<=0.005,IF(E181="",K181,0),IF(E181<>"",0,IF(O181="",0,IF(O181="H",0,IF(P181<Veriler!$F$2,K181*Veriler!$F$2,K181*P181)))))," ") -> 0 | S181: =IF(Veriler!P181<=0.1, R181, IF(AND(Veriler!P181>0.1, E181="", O181="E"), IF(P181>Veriler!$F$2, P181*R181, IF(P181<Veriler!$F$2, Veriler!$F$2*R181, P181*R181)), 0)) -> 0 | U181: =IFERROR(IF(N181="%10 sınırı aşılmıştır.",K181-S181,IFERROR(IF(E181="",IF(R181=1,0,IF(K181-R181=0,"",K181-R181)),IF(Veriler!I181="",K181,IF(K181*Veriler!I181=0,"",K181*Veriler!I181))),K181)),0) -> 
A182: 137 | L182: =IF(K182="", "", K182/Veriler!$T$1) ->  | M182: =IF(E182<>"", "İthal Girdi", IF(Veriler!P182="", "", IF(Veriler!O182="H", "%0,5 üzerindedir", IF(Veriler!P182>0.1, "%10 sınırı aşılmıştır.", "Uygun")))) -> %0,5 üzerindedir | R182: =IFERROR(IF(L182<=0.005,IF(E182="",K182,0),IF(E182<>"",0,IF(O182="",0,IF(O182="H",0,IF(P182<Veriler!$F$2,K182*Veriler!$F$2,K182*P182)))))," ") -> 0 | S182: =IF(Veriler!P182<=0.1, R182, IF(AND(Veriler!P182>0.1, E182="", O182="E"), IF(P182>Veriler!$F$2, P182*R182, IF(P182<Veriler!$F$2, Veriler!$F$2*R182, P182*R182)), 0)) -> 0 | U182: =IFERROR(IF(N182="%10 sınırı aşılmıştır.",K182-S182,IFERROR(IF(E182="",IF(R182=1,0,IF(K182-R182=0,"",K182-R182)),IF(Veriler!I182="",K182,IF(K182*Veriler!I182=0,"",K182*Veriler!I182))),K182)),0) -> 
A183: 138 | L183: =IF(K183="", "", K183/Veriler!$T$1) ->  | M183: =IF(E183<>"", "İthal Girdi", IF(Veriler!P183="", "", IF(Veriler!O183="H", "%0,5 üzerindedir", IF(Veriler!P183>0.1, "%10 sınırı aşılmıştır.", "Uygun")))) -> %0,5 üzerindedir | R183: =IFERROR(IF(L183<=0.005,IF(E183="",K183,0),IF(E183<>"",0,IF(O183="",0,IF(O183="H",0,IF(P183<Veriler!$F$2,K183*Veriler!$F$2,K183*P183)))))," ") -> 0 | S183: =IF(Veriler!P183<=0.1, R183, IF(AND(Veriler!P183>0.1, E183="", O183="E"), IF(P183>Veriler!$F$2, P183*R183, IF(P183<Veriler!$F$2, Veriler!$F$2*R183, P183*R183)), 0)) -> 0 | U183: =IFERROR(IF(N183="%10 sınırı aşılmıştır.",K183-S183,IFERROR(IF(E183="",IF(R183=1,0,IF(K183-R183=0,"",K183-R183)),IF(Veriler!I183="",K183,IF(K183*Veriler!I183=0,"",K183*Veriler!I183))),K183)),0) -> 
A184: 139 | L184: =IF(K184="", "", K184/Veriler!$T$1) ->  | M184: =IF(E184<>"", "İthal Girdi", IF(Veriler!P184="", "", IF(Veriler!O184="H", "%0,5 üzerindedir", IF(Veriler!P184>0.1, "%10 sınırı aşılmıştır.", "Uygun")))) -> %0,5 üzerindedir | R184: =IFERROR(IF(L184<=0.005,IF(E184="",K184,0),IF(E184<>"",0,IF(O184="",0,IF(O184="H",0,IF(P184<Veriler!$F$2,K184*Veriler!$F$2,K184*P184)))))," ") -> 0 | S184: =IF(Veriler!P184<=0.1, R184, IF(AND(Veriler!P184>0.1, E184="", O184="E"), IF(P184>Veriler!$F$2, P184*R184, IF(P184<Veriler!$F$2, Veriler!$F$2*R184, P184*R184)), 0)) -> 0 | U184: =IFERROR(IF(N184="%10 sınırı aşılmıştır.",K184-S184,IFERROR(IF(E184="",IF(R184=1,0,IF(K184-R184=0,"",K184-R184)),IF(Veriler!I184="",K184,IF(K184*Veriler!I184=0,"",K184*Veriler!I184))),K184)),0) -> 
A185: 140 | L185: =IF(K185="", "", K185/Veriler!$T$1) ->  | M185: =IF(E185<>"", "İthal Girdi", IF(Veriler!P185="", "", IF(Veriler!O185="H", "%0,5 üzerindedir", IF(Veriler!P185>0.1, "%10 sınırı aşılmıştır.", "Uygun")))) -> %0,5 üzerindedir | R185: =IFERROR(IF(L185<=0.005,IF(E185="",K185,0),IF(E185<>"",0,IF(O185="",0,IF(O185="H",0,IF(P185<Veriler!$F$2,K185*Veriler!$F$2,K185*P185)))))," ") -> 0 | S185: =IF(Veriler!P185<=0.1, R185, IF(AND(Veriler!P185>0.1, E185="", O185="E"), IF(P185>Veriler!$F$2, P185*R185, IF(P185<Veriler!$F$2, Veriler!$F$2*R185, P185*R185)), 0)) -> 0 | U185: =IFERROR(IF(N185="%10 sınırı aşılmıştır.",K185-S185,IFERROR(IF(E185="",IF(R185=1,0,IF(K185-R185=0,"",K185-R185)),IF(Veriler!I185="",K185,IF(K185*Veriler!I185=0,"",K185*Veriler!I185))),K185)),0) -> 
K186: =SUM(K157:K170,K172:K185) -> 0
R187: T1 | S187: T1 | T187: T1 | U187: T2
A188: Sayfa Toplamı (TL) *(Genel Dip Toplam Ek.3-D sayfasında otomatik hesaplanacaktır.) | R188: =IF(SUM(R150,R157:R170,R172:R185)=0,"",SUM(R150,R157:R170,R172:R185)) ->  | S188: =IF(SUM(S157:S170,S172:S185)=0," ",SUM(S157:S170,S172:S185)) ->  | T188: =IF(SUM(T157:T170,T172:T185)=0," ",SUM(T157:T170,T172:T185)) ->  | U188: =IF(SUM(U157:U170,U172:U185)=0," ",SUM(U157:U170,U172:U185)) -> 
A190: =A228 -> R02
A191: YERLİ KATKI ORANI HESAP CETVELİ | O191: FALSE
A192: A) Nihai Ürün Doğrudan ve Dolaylı Malzeme Giderleri | T192: S | U192: =U154+1 -> 6
A193: Sıra No | B193: Malzeme adı / Faturadaki Ürün Adı | D193: Üretici Unvanı | E193: GTİP Kodu (İthal girdiler için) | F193: Gtip Katsayısı | G193: Miktar | H193: Birim | I193: Fiyatı (TL/Döviz) | J193: Döviz Kuru (TL ise 1 alınız) | K193: Fatura Tutarı (TL) | L193: Girdi Maliyet Yüzdesi (%) | M193: Girdi yüzdesi %0,5 altında olan girdiler için %10 sınır kontrolü | N193: Girdi yüzdesi %0,5 altında olan girdiler için %10 sınır kontrolü | O193: SSB/ Müstahsil (E/H) | P193: YKO (%) (Manuel girilmeli) | Q193: Geçerli Yerli Oranı (%) | R193: Yerli Maliyet Tutarı (T1) | S193: Yerli Maliyet Tutarı (T1) | T193: Yerli Maliyet Tutarı (T1) | U193: İthal Maliyet Tutarı (T2)
B194: Doğrudan Girdi (Dolaylı girdiniz varsa en son 25. sayfaya doldurunuz)
A195: =A185+1 -> 141 | F195: =IF(AND(E195<>"",U195<>"",K195<>0),U195/K195,"") ->  | K195: =IF(AND(G195<>0, I195<>0, J195<>0), G195*I195*J195, "") ->  | L195: =IF(K195="", "", K195/Veriler!$T$1) ->  | M195: =IF(E195<>"", "İthal Girdi", IF(Veriler!P195="", "", IF(Veriler!O195="H", "%0,5 üzerindedir", IF(Veriler!P195>0.1, "%10 sınırı aşılmıştır.", "Uygun")))) -> %0,5 üzerindedir | N195: =IF(L195=""," ",M195) ->  | Q195: =IFERROR(IF(AND(S195<>"",K195<>"",K195<>0,S195<>0),S195/K195,"")," ") ->  | R195: =IFERROR(IF(L195<=0.005,IF(E195="",K195,0),IF(E195<>"",0,IF(O195="",0,IF(O195="H",0,IF(P195<Veriler!$F$2,K195*Veriler!$F$2,K195*P195)))))," ") -> 0 | S195: =IF(Veriler!P195<=0.1, R195, IF(AND(Veriler!P195>0.1, E195="", O195="E"), IF(P195>Veriler!$F$2, P195*R195, IF(P195<Veriler!$F$2, Veriler!$F$2*R195, P195*R195)), 0)) -> 0 | T195: =IF(S195=0," ",S195) ->  | U195: =IFERROR(IF(N195="%10 sınırı aşılmıştır.",K195-S195,IFERROR(IF(E195="",IF(R195=1,0,IF(K195-R195=0,"",K195-R195)),IF(Veriler!I195="",K195,IF(K195*Veriler!I195=0,"",K195*Veriler!I195))),K195)),0) -> 
A196: =A195+1 -> 142 | L196: =IF(K196="", "", K196/Veriler!$T$1) ->  | M196: =IF(E196<>"", "İthal Girdi", IF(Veriler!P196="", "", IF(Veriler!O196="H", "%0,5 üzerindedir", IF(Veriler!P196>0.1, "%10 sınırı aşılmıştır.", "Uygun")))) -> %0,5 üzerindedir | R196: =IFERROR(IF(L196<=0.005,IF(E196="",K196,0),IF(E196<>"",0,IF(O196="",0,IF(O196="H",0,IF(P196<Veriler!$F$2,K196*Veriler!$F$2,K196*P196)))))," ") -> 0 | S196: =IF(Veriler!P196<=0.1, R196, IF(AND(Veriler!P196>0.1, E196="", O196="E"), IF(P196>Veriler!$F$2, P196*R196, IF(P196<Veriler!$F$2, Veriler!$F$2*R196, P196*R196)), 0)) -> 0 | U196: =IFERROR(IF(N196="%10 sınırı aşılmıştır.",K196-S196,IFERROR(IF(E196="",IF(R196=1,0,IF(K196-R196=0,"",K196-R196)),IF(Veriler!I196="",K196,IF(K196*Veriler!I196=0,"",K196*Veriler!I196))),K196)),0) -> 
A197: =A196+1 -> 143 | L197: =IF(K197="", "", K197/Veriler!$T$1) ->  | M197: =IF(E197<>"", "İthal Girdi", IF(Veriler!P197="", "", IF(Veriler!O197="H", "%0,5 üzerindedir", IF(Veriler!P197>0.1, "%10 sınırı aşılmıştır.", "Uygun")))) -> %0,5 üzerindedir | R197: =IFERROR(IF(L197<=0.005,IF(E197="",K197,0),IF(E197<>"",0,IF(O197="",0,IF(O197="H",0,IF(P197<Veriler!$F$2,K197*Veriler!$F$2,K197*P197)))))," ") -> 0 | S197: =IF(Veriler!P197<=0.1, R197, IF(AND(Veriler!P197>0.1, E197="", O197="E"), IF(P197>Veriler!$F$2, P197*R197, IF(P197<Veriler!$F$2, Veriler!$F$2*R197, P197*R197)), 0)) -> 0 | U197: =IFERROR(IF(N197="%10 sınırı aşılmıştır.",K197-S197,IFERROR(IF(E197="",IF(R197=1,0,IF(K197-R197=0,"",K197-R197)),IF(Veriler!I197="",K197,IF(K197*Veriler!I197=0,"",K197*Veriler!I197))),K197)),0) -> 
A198: 144 | L198: =IF(K198="", "", K198/Veriler!$T$1) ->  | M198: =IF(E198<>"", "İthal Girdi", IF(Veriler!P198="", "", IF(Veriler!O198="H", "%0,5 üzerindedir", IF(Veriler!P198>0.1, "%10 sınırı aşılmıştır.", "Uygun")))) -> %0,5 üzerindedir | R198: =IFERROR(IF(L198<=0.005,IF(E198="",K198,0),IF(E198<>"",0,IF(O198="",0,IF(O198="H",0,IF(P198<Veriler!$F$2,K198*Veriler!$F$2,K198*P198)))))," ") -> 0 | S198: =IF(Veriler!P198<=0.1, R198, IF(AND(Veriler!P198>0.1, E198="", O198="E"), IF(P198>Veriler!$F$2, P198*R198, IF(P198<Veriler!$F$2, Veriler!$F$2*R198, P198*R198)), 0)) -> 0 | U198: =IFERROR(IF(N198="%10 sınırı aşılmıştır.",K198-S198,IFERROR(IF(E198="",IF(R198=1,0,IF(K198-R198=0,"",K198-R198)),IF(Veriler!I198="",K198,IF(K198*Veriler!I198=0,"",K198*Veriler!I198))),K198)),0) -> 
A199: 145 | L199: =IF(K199="", "", K199/Veriler!$T$1) ->  | M199: =IF(E199<>"", "İthal Girdi", IF(Veriler!P199="", "", IF(Veriler!O199="H", "%0,5 üzerindedir", IF(Veriler!P199>0.1, "%10 sınırı aşılmıştır.", "Uygun")))) -> %0,5 üzerindedir | R199: =IFERROR(IF(L199<=0.005,IF(E199="",K199,0),IF(E199<>"",0,IF(O199="",0,IF(O199="H",0,IF(P199<Veriler!$F$2,K199*Veriler!$F$2,K199*P199)))))," ") -> 0 | S199: =IF(Veriler!P199<=0.1, R199, IF(AND(Veriler!P199>0.1, E199="", O199="E"), IF(P199>Veriler!$F$2, P199*R199, IF(P199<Veriler!$F$2, Veriler!$F$2*R199, P199*R199)), 0)) -> 0 | U199: =IFERROR(IF(N199="%10 sınırı aşılmıştır.",K199-S199,IFERROR(IF(E199="",IF(R199=1,0,IF(K199-R199=0,"",K199-R199)),IF(Veriler!I199="",K199,IF(K199*Veriler!I199=0,"",K199*Veriler!I199))),K199)),0) -> 
A200: 146 | L200: =IF(K200="", "", K200/Veriler!$T$1) ->  | M200: =IF(E200<>"", "İthal Girdi", IF(Veriler!P200="", "", IF(Veriler!O200="H", "%0,5 üzerindedir", IF(Veriler!P200>0.1, "%10 sınırı aşılmıştır.", "Uygun")))) -> %0,5 üzerindedir | R200: =IFERROR(IF(L200<=0.005,IF(E200="",K200,0),IF(E200<>"",0,IF(O200="",0,IF(O200="H",0,IF(P200<Veriler!$F$2,K200*Veriler!$F$2,K200*P200)))))," ") -> 0 | S200: =IF(Veriler!P200<=0.1, R200, IF(AND(Veriler!P200>0.1, E200="", O200="E"), IF(P200>Veriler!$F$2, P200*R200, IF(P200<Veriler!$F$2, Veriler!$F$2*R200, P200*R200)), 0)) -> 0 | U200: =IFERROR(IF(N200="%10 sınırı aşılmıştır.",K200-S200,IFERROR(IF(E200="",IF(R200=1,0,IF(K200-R200=0,"",K200-R200)),IF(Veriler!I200="",K200,IF(K200*Veriler!I200=0,"",K200*Veriler!I200))),K200)),0) -> 
A201: 147 | L201: =IF(K201="", "", K201/Veriler!$T$1) ->  | M201: =IF(E201<>"", "İthal Girdi", IF(Veriler!P201="", "", IF(Veriler!O201="H", "%0,5 üzerindedir", IF(Veriler!P201>0.1, "%10 sınırı aşılmıştır.", "Uygun")))) -> %0,5 üzerindedir | R201: =IFERROR(IF(L201<=0.005,IF(E201="",K201,0),IF(E201<>"",0,IF(O201="",0,IF(O201="H",0,IF(P201<Veriler!$F$2,K201*Veriler!$F$2,K201*P201)))))," ") -> 0 | S201: =IF(Veriler!P201<=0.1, R201, IF(AND(Veriler!P201>0.1, E201="", O201="E"), IF(P201>Veriler!$F$2, P201*R201, IF(P201<Veriler!$F$2, Veriler!$F$2*R201, P201*R201)), 0)) -> 0 | U201: =IFERROR(IF(N201="%10 sınırı aşılmıştır.",K201-S201,IFERROR(IF(E201="",IF(R201=1,0,IF(K201-R201=0,"",K201-R201)),IF(Veriler!I201="",K201,IF(K201*Veriler!I201=0,"",K201*Veriler!I201))),K201)),0) -> 
A202: 148 | L202: =IF(K202="", "", K202/Veriler!$T$1) ->  | M202: =IF(E202<>"", "İthal Girdi", IF(Veriler!P202="", "", IF(Veriler!O202="H", "%0,5 üzerindedir", IF(Veriler!P202>0.1, "%10 sınırı aşılmıştır.", "Uygun")))) -> %0,5 üzerindedir | R202: =IFERROR(IF(L202<=0.005,IF(E202="",K202,0),IF(E202<>"",0,IF(O202="",0,IF(O202="H",0,IF(P202<Veriler!$F$2,K202*Veriler!$F$2,K202*P202)))))," ") -> 0 | S202: =IF(Veriler!P202<=0.1, R202, IF(AND(Veriler!P202>0.1, E202="", O202="E"), IF(P202>Veriler!$F$2, P202*R202, IF(P202<Veriler!$F$2, Veriler!$F$2*R202, P202*R202)), 0)) -> 0 | U202: =IFERROR(IF(N202="%10 sınırı aşılmıştır.",K202-S202,IFERROR(IF(E202="",IF(R202=1,0,IF(K202-R202=0,"",K202-R202)),IF(Veriler!I202="",K202,IF(K202*Veriler!I202=0,"",K202*Veriler!I202))),K202)),0) -> 
A203: 149 | L203: =IF(K203="", "", K203/Veriler!$T$1) ->  | M203: =IF(E203<>"", "İthal Girdi", IF(Veriler!P203="", "", IF(Veriler!O203="H", "%0,5 üzerindedir", IF(Veriler!P203>0.1, "%10 sınırı aşılmıştır.", "Uygun")))) -> %0,5 üzerindedir | R203: =IFERROR(IF(L203<=0.005,IF(E203="",K203,0),IF(E203<>"",0,IF(O203="",0,IF(O203="H",0,IF(P203<Veriler!$F$2,K203*Veriler!$F$2,K203*P203)))))," ") -> 0 | S203: =IF(Veriler!P203<=0.1, R203, IF(AND(Veriler!P203>0.1, E203="", O203="E"), IF(P203>Veriler!$F$2, P203*R203, IF(P203<Veriler!$F$2, Veriler!$F$2*R203, P203*R203)), 0)) -> 0 | U203: =IFERROR(IF(N203="%10 sınırı aşılmıştır.",K203-S203,IFERROR(IF(E203="",IF(R203=1,0,IF(K203-R203=0,"",K203-R203)),IF(Veriler!I203="",K203,IF(K203*Veriler!I203=0,"",K203*Veriler!I203))),K203)),0) -> 
A204: 150 | L204: =IF(K204="", "", K204/Veriler!$T$1) ->  | M204: =IF(E204<>"", "İthal Girdi", IF(Veriler!P204="", "", IF(Veriler!O204="H", "%0,5 üzerindedir", IF(Veriler!P204>0.1, "%10 sınırı aşılmıştır.", "Uygun")))) -> %0,5 üzerindedir | R204: =IFERROR(IF(L204<=0.005,IF(E204="",K204,0),IF(E204<>"",0,IF(O204="",0,IF(O204="H",0,IF(P204<Veriler!$F$2,K204*Veriler!$F$2,K204*P204)))))," ") -> 0 | S204: =IF(Veriler!P204<=0.1, R204, IF(AND(Veriler!P204>0.1, E204="", O204="E"), IF(P204>Veriler!$F$2, P204*R204, IF(P204<Veriler!$F$2, Veriler!$F$2*R204, P204*R204)), 0)) -> 0 | U204: =IFERROR(IF(N204="%10 sınırı aşılmıştır.",K204-S204,IFERROR(IF(E204="",IF(R204=1,0,IF(K204-R204=0,"",K204-R204)),IF(Veriler!I204="",K204,IF(K204*Veriler!I204=0,"",K204*Veriler!I204))),K204)),0) -> 
A205: 151 | L205: =IF(K205="", "", K205/Veriler!$T$1) ->  | M205: =IF(E205<>"", "İthal Girdi", IF(Veriler!P205="", "", IF(Veriler!O205="H", "%0,5 üzerindedir", IF(Veriler!P205>0.1, "%10 sınırı aşılmıştır.", "Uygun")))) -> %0,5 üzerindedir | R205: =IFERROR(IF(L205<=0.005,IF(E205="",K205,0),IF(E205<>"",0,IF(O205="",0,IF(O205="H",0,IF(P205<Veriler!$F$2,K205*Veriler!$F$2,K205*P205)))))," ") -> 0 | S205: =IF(Veriler!P205<=0.1, R205, IF(AND(Veriler!P205>0.1, E205="", O205="E"), IF(P205>Veriler!$F$2, P205*R205, IF(P205<Veriler!$F$2, Veriler!$F$2*R205, P205*R205)), 0)) -> 0 | U205: =IFERROR(IF(N205="%10 sınırı aşılmıştır.",K205-S205,IFERROR(IF(E205="",IF(R205=1,0,IF(K205-R205=0,"",K205-R205)),IF(Veriler!I205="",K205,IF(K205*Veriler!I205=0,"",K205*Veriler!I205))),K205)),0) -> 
... 725 more rows

Sheet Ek.3-D
J1: Ek.3-D
A2: YERLİ KATKI ORANI HESAP CETVELİ
A3: Yerli Girdi Maliyet Tutarı | E3: TL | F3: İthal Girdi Maliyet Tutarı | J3: TL
A4: Yerli Girdi | B4: Nihai Ürün Doğrudan ve Dolaylı Malzeme Giderleri Toplamı (T1) | E4: =Veriler!U30 -> 0 | F4: İthal Girdi | G4: Nihai Ürün Doğrudan ve Dolaylı Malzeme Giderleri Toplamı (T2) | J4: =Veriler!V30 -> 0
B5: Nihai Ürün Doğrudan ve Dolaylı İşcilik Giderleri Toplamı (T3) | E5: =Veriler!W9 -> 0 | G5: Nihai Ürün Doğrudan ve Dolaylı İşcilik Giderleri Toplamı (T4) | J5: =Veriler!X9 -> 0
B6: Nihai Ürün İle İlgili Genel Giderler Toplamı (T5) | E6: =Veriler!Y9 -> 0 | G6: Nihai Ürün İle İlgili Genel Giderler Toplamı (T6) | J6: =Veriler!Z9 -> 0
B7: Yerli Girdi Maliyet Tutarı (= T1+ T3+T5) | E7: =SUM(E4:E6) -> 0 | G7: İthal Girdi Maliyet Tutarı ( =T2+ T4+T6) | J7: =SUM(J4:J6) -> 0
A8: YERLİ KATKI ORANI HESAPLAMASI
A9: Teknolojik Ürün Belgesi Puanı 1
A10: Nihai Ürün Maliyet Tutarı (TL) (Yerli Girdi Maliyet Tutarı +İthal Girdi Maliyet Tutarı=T1+T2+T3+T4+T5+T6) | E10: =IFERROR(E7+J7, " ") -> 0 | F10: Nihai Ürün İçindeki İthal Girdi Maliyet Tutarı (TL) (İthal Girdi Maliyet Tutarı =T2+ T4+T6) | J10: =J7 -> 0
A12: Yerli Katkı Oranı (%) 2 (%100ü geçemez) | C12: =IFERROR(IF(Veriler!V35>100,100,Veriler!V35),0) -> 0.00 | F12: Yerli Malı Belgesi Sınıfı 3 | H12: =IFERROR(VLOOKUP(C12,Veriler!A1:B9900,2)," ") -> 
A13: Üretici Unvanı | F13: Adı ve Soyadı | H13: Unvanı
A14: Ürün Adı
A15: Ürün Kodu (PRODTR/GTİP)
A16: Yerli Katkı Oranı Hesap Cetvelini Düzenleyen (Üretici Yetkilisi)
A17: Mali ve Teknik İnceleme | F17: Adı ve Soyadı | H17: Unvanı
A18: Yerli Katkı Oranı Hesabını Mali Yönden İnceleyen ve Doğruluğunu Teyit Eden Mali Uzman
A19: İncelemeye ibraz olunan defter ve belgelerin ilgili mevzuat hükümlerine uygun olduğu ve gerçeği yansıttığı tespit edilmiştir. Ürünün üretimi kapsamında Türkiye' den ve Türkiye dışından sağlanan hammade, malzeme, ürün, hizmet vb.ye ilişkin tüm faturalar, bedelleri, gümrük beyannameleri, sanayi sicil belgeleri ile üretici bünyesinde gerçekleştirilen faaliyetlere ilişkin kayıtlar incelenmiş ve yerli ve ithal girdiler yukarıda belirtildiği şekilde tespit edilmiştir.
A22: Yerli Katkı Oranı Hesabını Teknik Yönden İnceleyen ve Uygunluğını Teyit Eden Teknik Uzman
A23: Ürünün üretiminde kullanılan girdiler, üretim teknolojisi ve süreci göz önünde bulundurarak kontrol edilmiş ve ürünün üretimi için gerekli olan tüm girdilerin Yerki Katkı Oranı hesabına doğru oranda dahil edildiği tespit edilmiştir.

Sheet Veriler (hidden)
A1: 1.01 | B1: YERLİ KATKI ORANI RAPORU | D1: GTİP kodu | E1: GTİP yüzdesi | F1: BAKANLIK YÜZDESİ | M1: =SUM('Ek.3-A'!K34,'Ek.3-A'!K72,'Ek.3-A'!K110,'Ek.3-A'!K148,'Ek.3-A'!K186,'Ek.3-A'!K224,'Ek.3-A'!K262,'Ek.3-A'!K300,'Ek.3-A'!K338,'Ek.3-A'!K376,'Ek.3-A'!K414,'Ek.3-A'!K452,'Ek.3-A'!K490,'Ek.3-A'!K528,'Ek.3-A'!K566,'Ek.3-A'!K604,'Ek.3-A'!K642,'Ek.3-A'!K680,'Ek.3-A'!K718,'Ek.3-A'!K756,'Ek.3-A'!K794,'Ek.3-A'!K832,'Ek.3-A'!K870,'Ek.3-A'!K908,'Ek.3-A'!K946) -> 0 | N1: =M1 -> 0 | O1: ='Ek.3-D'!E5 -> 0 | P1: ='Ek.3-D'!J5 -> 0 | Q1: ='Ek.3-D'!E6 -> 0 | S1: ='Ek.3-D'!J6 -> 0 | T1: =SUM(N1:S1) -> 0 | V1: =T1/10 -> 0
A2: 1.02 | B2: YERLİ KATKI ORANI RAPORU | D2: 290941000000 | E2: 0.1 | F2: 40%
A3: 1.03 | B3: YERLİ KATKI ORANI RAPORU | D3: 844831000000 | E3: 0.1 | H3: Gtip | I3: GTİP Listesi | J3: SSB | K3: Yerli Maliyet tutarı | L3: Fatura tutarı | M3: Girdi Maliyet Yüzdesi | O3: 0,5 durumu | P3: 0,5 kümülatif toplam | AA3: Yerli <0,5 Toplam Maliyet | AB3: Yerli >0,5 Toplam Maliyet
A4: 1.04 | B4: YERLİ KATKI ORANI RAPORU | D4: 844851900011 | E4: 0.1 | U4: YERLİ (T1) | V4: İTHAL (T2) | W4: T3 | X4: T4 | Y4: T5 | Z4: T6
A5: 1.05 | B5: YERLİ KATKI ORANI RAPORU | D5: 847330200000 | E5: 0.1 | G5: 1 | H5: =IF(TRIM('Ek.3-A'!E5)<>"","var","yok") -> yok | I5: =IFERROR(IF('Ek.3-A'!E5="", "", IF(VLOOKUP('Ek.3-A'!E5, Veriler!D:E, 2, 0)=0, "", VLOOKUP('Ek.3-A'!E5, Veriler!D:E, 2, 0)))," ") ->  | J5: =IF('Ek.3-A'!O5="", "", 'Ek.3-A'!O5) ->  | K5: ='Ek.3-A'!R5 -> 0 | L5: ='Ek.3-A'!K5 ->  | M5: ='Ek.3-A'!L5 ->  | N5: =IF(H5="var",0,IF(M5<=0.005,M5,0)) -> %0.00 | O5: =IF(M5<=0.005,"E","H") -> H | P5: =IF(O5="E",SUM($N$5:N5),0) -> %0.00 | Q5: =IF(P5<=0.1, K5, IF(N5>$F$2, N5*K5, $F$2*K5)) -> 0 | T5: S1 | U5: =SUM('Ek.3-A'!T5:T18,'Ek.3-A'!T20:T33) -> 0 | V5: =SUM('Ek.3-A'!U5:U18,'Ek.3-A'!U20:U33) -> 0 | W5: ='Ek.3-B'!F32 ->  | X5: ='Ek.3-B'!N32 ->  | Y5: ='Ek.3-C'!F31 ->  | Z5: ='Ek.3-C'!N31 ->  | AA5: =SUM(W5:W375) -> 0
A6: 1.06 | B6: YERLİ KATKI ORANI RAPORU | D6: 847330800000 | E6: 0.1 | G6: 2 | H6: =IF(TRIM('Ek.3-A'!E6)<>"","var","yok") -> yok | I6: =IFERROR(IF('Ek.3-A'!E6="", "", IF(VLOOKUP('Ek.3-A'!E6, Veriler!D:E, 2, 0)=0, "", VLOOKUP('Ek.3-A'!E6, Veriler!D:E, 2, 0)))," ") ->  | J6: =IF('Ek.3-A'!O6="", "", 'Ek.3-A'!O6) ->  | K6: ='Ek.3-A'!R6 -> 0 | L6: ='Ek.3-A'!K6 ->  | M6: ='Ek.3-A'!L6 ->  | N6: =IF(H6="var",0,IF(M6<=0.005,M6,0)) -> %0.00 | O6: =IF(M6<=0.005,"E","H") -> H | P6: =IF(O6="E",SUM($N$5:N6),0) -> %0.00 | Q6: =IF(P6<=0.1, K6, IF(N6>$F$2, N6*K6, $F$2*K6)) -> 0 | T6: S2 | U6: =SUM('Ek.3-A'!T43:T56,'Ek.3-A'!T58:T71) -> 0 | V6: =SUM('Ek.3-A'!U43:U56,'Ek.3-A'!U58:U71) -> 0 | W6: ='Ek.3-B'!F66 ->  | X6: ='Ek.3-B'!N66 ->  | Y6: ='Ek.3-C'!F64 ->  | Z6: ='Ek.3-C'!N64 -> 
A7: 1.07 | B7: YERLİ KATKI ORANI RAPORU | D7: 852990920000 | E7: 0.1 | G7: 3 | H7: =IF(TRIM('Ek.3-A'!E7)<>"","var","yok") -> yok | I7: =IFERROR(IF('Ek.3-A'!E7="", "", IF(VLOOKUP('Ek.3-A'!E7, Veriler!D:E, 2, 0)=0, "", VLOOKUP('Ek.3-A'!E7, Veriler!D:E, 2, 0)))," ") ->  | J7: =IF('Ek.3-A'!O7="", "", 'Ek.3-A'!O7) ->  | K7: ='Ek.3-A'!R7 -> 0 | L7: ='Ek.3-A'!K7 ->  | M7: ='Ek.3-A'!L7 ->  | N7: %0.00 | O7: H | P7: =IF(O7="E",SUM($N$5:N7),0) -> %0.00 | Q7: 0 | T7: S3 | U7: =SUM('Ek.3-A'!T81:T94,'Ek.3-A'!T96:T109) -> 0 | V7: =SUM('Ek.3-A'!U81:U94,'Ek.3-A'!U96:U109) -> 0 | W7: ='Ek.3-B'!F100 ->  | X7: ='Ek.3-B'!N100 ->  | Y7: ='Ek.3-C'!F97 ->  | Z7: ='Ek.3-C'!N97 -> 
A8: 1.08 | B8: YERLİ KATKI ORANI RAPORU | D8: 870840500000 | E8: 0.1 | G8: 4 | H8: =IF(TRIM('Ek.3-A'!E8)<>"","var","yok") -> yok | I8: =IFERROR(IF('Ek.3-A'!E8="", "", IF(VLOOKUP('Ek.3-A'!E8, Veriler!D:E, 2, 0)=0, "", VLOOKUP('Ek.3-A'!E8, Veriler!D:E, 2, 0)))," ") ->  | J8: =IF('Ek.3-A'!O8="", "", 'Ek.3-A'!O8) ->  | K8: ='Ek.3-A'!R8 -> 0 | L8: ='Ek.3-A'!K8 ->  | M8: ='Ek.3-A'!L8 ->  | N8: %0.00 | O8: H | P8: =IF(O8="E",SUM($N$5:N8),0) -> %0.00 | Q8: 0 | T8: S4 | U8: =SUM('Ek.3-A'!T119:T132,'Ek.3-A'!T134:T147) -> 0 | V8: =SUM('Ek.3-A'!U119:U132,'Ek.3-A'!U134:U147) -> 0 | W8: ='Ek.3-B'!F134 ->  | X8: ='Ek.3-B'!N134 ->  | Y8: ='Ek.3-C'!F130 ->  | Z8: ='Ek.3-C'!N130 -> 
A9: 1.09 | B9: YERLİ KATKI ORANI RAPORU | D9: 870895990000 | E9: 0.1 | G9: 5 | H9: =IF(TRIM('Ek.3-A'!E9)<>"","var","yok") -> yok | I9: =IFERROR(IF('Ek.3-A'!E9="", "", IF(VLOOKUP('Ek.3-A'!E9, Veriler!D:E, 2, 0)=0, "", VLOOKUP('Ek.3-A'!E9, Veriler!D:E, 2, 0)))," ") ->  | J9: =IF('Ek.3-A'!O9="", "", 'Ek.3-A'!O9) ->  | K9: ='Ek.3-A'!R9 -> 0 | L9: ='Ek.3-A'!K9 ->  | M9: ='Ek.3-A'!L9 ->  | N9: %0.00 | O9: H | P9: =IF(O9="E",SUM($N$5:N9),0) -> %0.00 | Q9: 0 | T9: S5 | U9: =SUM('Ek.3-A'!T157:T170,'Ek.3-A'!T172:T185) -> 0 | V9: =SUM('Ek.3-A'!U157:U170,'Ek.3-A'!U172:U185) -> 0 | W9: =SUM(W5:W8) -> 0 | X9: =SUM(X5:X8) -> 0 | Y9: =SUM(Y5:Y8) -> 0 | Z9: =SUM(Z5:Z8) -> 0
A10: 1.10 | B10: YERLİ KATKI ORANI RAPORU | D10: 880720000000 | E10: 0.1 | G10: 6 | H10: =IF(TRIM('Ek.3-A'!E10)<>"","var","yok") -> yok | I10: =IFERROR(IF('Ek.3-A'!E10="", "", IF(VLOOKUP('Ek.3-A'!E10, Veriler!D:E, 2, 0)=0, "", VLOOKUP('Ek.3-A'!E10, Veriler!D:E, 2, 0)))," ") ->  | J10: =IF('Ek.3-A'!O10="", "", 'Ek.3-A'!O10) ->  | K10: ='Ek.3-A'!R10 -> 0 | L10: ='Ek.3-A'!K10 ->  | M10: ='Ek.3-A'!L10 ->  | N10: %0.00 | O10: H | P10: =IF(O10="E",SUM($N$5:N10),0) -> %0.00 | Q10: 0 | T10: S6 | U10: =SUM('Ek.3-A'!T195:T208,'Ek.3-A'!T210:T223) -> 0 | V10: =SUM('Ek.3-A'!U195:U208,'Ek.3-A'!U210:U223) -> 0
A11: 1.11 | B11: YERLİ KATKI ORANI RAPORU | D11: 880710000000 | E11: 0.1 | G11: 7 | H11: =IF(TRIM('Ek.3-A'!E11)<>"","var","yok") -> yok | I11: =IFERROR(IF('Ek.3-A'!E11="", "", IF(VLOOKUP('Ek.3-A'!E11, Veriler!D:E, 2, 0)=0, "", VLOOKUP('Ek.3-A'!E11, Veriler!D:E, 2, 0)))," ") ->  | J11: =IF('Ek.3-A'!O11="", "", 'Ek.3-A'!O11) ->  | K11: ='Ek.3-A'!R11 -> 0 | L11: ='Ek.3-A'!K11 ->  | M11: ='Ek.3-A'!L11 ->  | N11: %0.00 | O11: H | P11: =IF(O11="E",SUM($N$5:N11),0) -> %0.00 | Q11: 0 | T11: S7 | U11: =SUM('Ek.3-A'!T233:T246,'Ek.3-A'!T248:T261) -> 0 | V11: =SUM('Ek.3-A'!U233:U246,'Ek.3-A'!U248:U261) -> 0
A12: 1.12 | B12: YERLİ KATKI ORANI RAPORU | D12: 291712000011 | E12: 0.1 | G12: 8 | H12: =IF(TRIM('Ek.3-A'!E12)<>"","var","yok") -> yok | I12: =IFERROR(IF('Ek.3-A'!E12="", "", IF(VLOOKUP('Ek.3-A'!E12, Veriler!D:E, 2, 0)=0, "", VLOOKUP('Ek.3-A'!E12, Veriler!D:E, 2, 0)))," ") ->  | J12: =IF('Ek.3-A'!O12="", "", 'Ek.3-A'!O12) ->  | K12: ='Ek.3-A'!R12 -> 0 | L12: ='Ek.3-A'!K12 ->  | M12: ='Ek.3-A'!L12 ->  | N12: %0.00 | O12: H | P12: =IF(O12="E",SUM($N$5:N12),0) -> %0.00 | Q12: 0 | T12: S8 | U12: =SUM('Ek.3-A'!T271:T284,'Ek.3-A'!T286:T299) -> 0 | V12: =SUM('Ek.3-A'!U271:U284,'Ek.3-A'!U286:U299) -> 0
A13: 1.13 | B13: YERLİ KATKI ORANI RAPORU | D13: 442199990019 | E13: 0.1 | G13: 9 | H13: =IF(TRIM('Ek.3-A'!E13)<>"","var","yok") -> yok | I13: =IFERROR(IF('Ek.3-A'!E13="", "", IF(VLOOKUP('Ek.3-A'!E13, Veriler!D:E, 2, 0)=0, "", VLOOKUP('Ek.3-A'!E13, Veriler!D:E, 2, 0)))," ") ->  | J13: =IF('Ek.3-A'!O13="", "", 'Ek.3-A'!O13) ->  | K13: ='Ek.3-A'!R13 -> 0 | L13: ='Ek.3-A'!K13 ->  | M13: ='Ek.3-A'!L13 ->  | N13: %0.00 | O13: H | P13: =IF(O13="E",SUM($N$5:N13),0) -> %0.00 | Q13: 0 | T13: S9 | U13: =SUM('Ek.3-A'!T309:T322,'Ek.3-A'!T324:T337) -> 0 | V13: =SUM('Ek.3-A'!U309:U322,'Ek.3-A'!U324:U337) -> 0
A14: 1.14 | B14: YERLİ KATKI ORANI RAPORU | D14: 291611001000 | E14: 0.1 | G14: 10 | H14: =IF(TRIM('Ek.3-A'!E14)<>"","var","yok") -> yok | I14: =IFERROR(IF('Ek.3-A'!E14="", "", IF(VLOOKUP('Ek.3-A'!E14, Veriler!D:E, 2, 0)=0, "", VLOOKUP('Ek.3-A'!E14, Veriler!D:E, 2, 0)))," ") ->  | J14: =IF('Ek.3-A'!O14="", "", 'Ek.3-A'!O14) ->  | K14: ='Ek.3-A'!R14 -> 0 | L14: ='Ek.3-A'!K14 ->  | M14: ='Ek.3-A'!L14 ->  | N14: %0.00 | O14: H | P14: =IF(O14="E",SUM($N$5:N14),0) -> %0.00 | Q14: 0 | T14: S10 | U14: =SUM('Ek.3-A'!T347:T360,'Ek.3-A'!T362:T375) -> 0 | V14: =SUM('Ek.3-A'!U347:U360,'Ek.3-A'!U362:U375) -> 0
A15: 1.15 | B15: YERLİ KATKI ORANI RAPORU | D15: 390330000000 | E15: 0.1 | G15: 11 | H15: =IF(TRIM('Ek.3-A'!E15)<>"","var","yok") -> yok | I15: =IFERROR(IF('Ek.3-A'!E15="", "", IF(VLOOKUP('Ek.3-A'!E15, Veriler!D:E, 2, 0)=0, "", VLOOKUP('Ek.3-A'!E15, Veriler!D:E, 2, 0)))," ") ->  | J15: =IF('Ek.3-A'!O15="", "", 'Ek.3-A'!O15) ->  | K15: ='Ek.3-A'!R15 -> 0 | L15: ='Ek.3-A'!K15 ->  | M15: ='Ek.3-A'!L15 ->  | N15: %0.00 | O15: H | P15: =IF(O15="E",SUM($N$5:N15),0) -> %0.00 | Q15: 0 | T15: S11 | U15: =SUM('Ek.3-A'!T385:T398,'Ek.3-A'!T400:T413) -> 0 | V15: =SUM('Ek.3-A'!U385:U398,'Ek.3-A'!U400:U413) -> 0
A16: 1.16 | B16: YERLİ KATKI ORANI RAPORU | D16: 720450001000 | E16: 0.1 | G16: 12 | H16: =IF(TRIM('Ek.3-A'!E16)<>"","var","yok") -> yok | I16: =IFERROR(IF('Ek.3-A'!E16="", "", IF(VLOOKUP('Ek.3-A'!E16, Veriler!D:E, 2, 0)=0, "", VLOOKUP('Ek.3-A'!E16, Veriler!D:E, 2, 0)))," ") ->  | J16: =IF('Ek.3-A'!O16="", "", 'Ek.3-A'!O16) ->  | K16: ='Ek.3-A'!R16 -> 0 | L16: ='Ek.3-A'!K16 ->  | M16: ='Ek.3-A'!L16 ->  | N16: %0.00 | O16: H | P16: =IF(O16="E",SUM($N$5:N16),0) -> %0.00 | Q16: 0 | T16: S12 | U16: =SUM('Ek.3-A'!T423:T436,'Ek.3-A'!T438:T451) -> 0 | V16: =SUM('Ek.3-A'!U423:U436,'Ek.3-A'!U438:U451) -> 0
A17: 1.17 | B17: YERLİ KATKI ORANI RAPORU | D17: 720429000019 | E17: 0.1 | G17: 13 | H17: =IF(TRIM('Ek.3-A'!E17)<>"","var","yok") -> yok | I17: =IFERROR(IF('Ek.3-A'!E17="", "", IF(VLOOKUP('Ek.3-A'!E17, Veriler!D:E, 2, 0)=0, "", VLOOKUP('Ek.3-A'!E17, Veriler!D:E, 2, 0)))," ") ->  | J17: =IF('Ek.3-A'!O17="", "", 'Ek.3-A'!O17) ->  | K17: ='Ek.3-A'!R17 -> 0 | L17: ='Ek.3-A'!K17 ->  | M17: ='Ek.3-A'!L17 ->  | N17: %0.00 | O17: H | P17: =IF(O17="E",SUM($N$5:N17),0) -> %0.00 | Q17: 0 | T17: S13 | U17: =SUM('Ek.3-A'!T461:T474,'Ek.3-A'!T476:T489) -> 0 | V17: =SUM('Ek.3-A'!U461:U474,'Ek.3-A'!U476:U489) -> 0
A18: 1.18 | B18: YERLİ KATKI ORANI RAPORU | D18: 720429000011 | E18: 0.1 | G18: 14 | H18: =IF(TRIM('Ek.3-A'!E18)<>"","var","yok") -> yok | I18: =IFERROR(IF('Ek.3-A'!E18="", "", IF(VLOOKUP('Ek.3-A'!E18, Veriler!D:E, 2, 0)=0, "", VLOOKUP('Ek.3-A'!E18, Veriler!D:E, 2, 0)))," ") ->  | J18: =IF('Ek.3-A'!O18="", "", 'Ek.3-A'!O18) ->  | K18: ='Ek.3-A'!R18 -> 0 | L18: ='Ek.3-A'!K18 ->  | M18: ='Ek.3-A'!L18 ->  | N18: %0.00 | O18: H | P18: =IF(O18="E",SUM($N$5:N18),0) -> %0.00 | Q18: 0 | T18: S14 | U18: =SUM('Ek.3-A'!T499:T512,'Ek.3-A'!T514:T527) -> 0 | V18: =SUM('Ek.3-A'!U499:U512,'Ek.3-A'!U514:U527) -> 0
A19: 1.19 | B19: YERLİ KATKI ORANI RAPORU | D19: 720421900019 | E19: 0.1 | T19: S15 | U19: =SUM('Ek.3-A'!T537:T550,'Ek.3-A'!T552:T565) -> 0 | V19: =SUM('Ek.3-A'!U537:U550,'Ek.3-A'!U552:U565) -> 0
A20: 1.20 | B20: YERLİ KATKI ORANI RAPORU | D20: 720421900011 | E20: 0.1 | G20: 1 | H20: =IF(TRIM('Ek.3-A'!E20)<>"","var","yok") -> yok | I20: =IFERROR(IF('Ek.3-A'!E20="", "", IF(VLOOKUP('Ek.3-A'!E20, Veriler!D:E, 2, 0)=0, "", VLOOKUP('Ek.3-A'!E20, Veriler!D:E, 2, 0)))," ") ->  | J20: =IF('Ek.3-A'!O20="", "", 'Ek.3-A'!O20) ->  | K20: ='Ek.3-A'!R20 -> 0 | L20: ='Ek.3-A'!K20 ->  | M20: ='Ek.3-A'!L20 ->  | N20: =IF(H20="var",0,IF(M20<=0.005,M20,0)) -> %0.00 | O20: =IF(M20<=0.005,"E","H") -> H | P20: =IF(O20="E",SUM($N$5:N20),0) -> %0.00 | Q20: =IF(P20<=0.1, K20, IF(N20>$F$2, N20*K20, $F$2*K20)) -> 0 | T20: S16 | U20: =SUM('Ek.3-A'!T575:T588,'Ek.3-A'!T590:T603) -> 0 | V20: =SUM('Ek.3-A'!U575:U588,'Ek.3-A'!U590:U603) -> 0
A21: 1.21 | B21: YERLİ KATKI ORANI RAPORU | D21: 720421100019 | E21: 0.1 | G21: 2 | H21: =IF(TRIM('Ek.3-A'!E21)<>"","var","yok") -> yok | I21: =IFERROR(IF('Ek.3-A'!E21="", "", IF(VLOOKUP('Ek.3-A'!E21, Veriler!D:E, 2, 0)=0, "", VLOOKUP('Ek.3-A'!E21, Veriler!D:E, 2, 0)))," ") ->  | J21: =IF('Ek.3-A'!O21="", "", 'Ek.3-A'!O21) ->  | K21: ='Ek.3-A'!R21 -> 0 | L21: ='Ek.3-A'!K21 ->  | M21: ='Ek.3-A'!L21 ->  | N21: =IF(H21="var",0,IF(M21<=0.005,M21,0)) -> %0.00 | O21: =IF(M21<=0.005,"E","H") -> H | P21: =IF(O21="E",SUM($N$5:N21),0) -> %0.00 | Q21: =IF(P21<=0.1, K21, IF(N21>$F$2, N21*K21, $F$2*K21)) -> 0 | T21: S17 | U21: =SUM('Ek.3-A'!T613:T626,'Ek.3-A'!T628:T641) -> 0 | V21: =SUM('Ek.3-A'!U613:U626,'Ek.3-A'!U628:U641) -> 0
A22: 1.22 | B22: YERLİ KATKI ORANI RAPORU | D22: 720421100011 | E22: 0.1 | G22: 3 | H22: =IF(TRIM('Ek.3-A'!E22)<>"","var","yok") -> yok | I22: =IFERROR(IF('Ek.3-A'!E22="", "", IF(VLOOKUP('Ek.3-A'!E22, Veriler!D:E, 2, 0)=0, "", VLOOKUP('Ek.3-A'!E22, Veriler!D:E, 2, 0)))," ") ->  | J22: =IF('Ek.3-A'!O22="", "", 'Ek.3-A'!O22) ->  | K22: ='Ek.3-A'!R22 -> 0 | L22: ='Ek.3-A'!K22 ->  | M22: ='Ek.3-A'!L22 ->  | N22: %0.00 | O22: H | P22: =IF(O22="E",SUM($N$5:N22),0) -> %0.00 | Q22: 0 | T22: S18 | U22: =SUM('Ek.3-A'!T651:T664,'Ek.3-A'!T666:T679) -> 0 | V22: =SUM('Ek.3-A'!U651:U664,'Ek.3-A'!U666:U679) -> 0
A23: 1.23 | B23: YERLİ KATKI ORANI RAPORU | D23: 760511000000 | E23: 0.1 | G23: 4 | H23: =IF(TRIM('Ek.3-A'!E23)<>"","var","yok") -> yok | I23: =IFERROR(IF('Ek.3-A'!E23="", "", IF(VLOOKUP('Ek.3-A'!E23, Veriler!D:E, 2, 0)=0, "", VLOOKUP('Ek.3-A'!E23, Veriler!D:E, 2, 0)))," ") ->  | J23: =IF('Ek.3-A'!O23="", "", 'Ek.3-A'!O23) ->  | K23: ='Ek.3-A'!R23 -> 0 | L23: ='Ek.3-A'!K23 ->  | M23: ='Ek.3-A'!L23 ->  | N23: %0.00 | O23: H | P23: =IF(O23="E",SUM($N$5:N23),0) -> %0.00 | Q23: 0 | T23: S19 | U23: =SUM('Ek.3-A'!T689:T702,'Ek.3-A'!T704:T717) -> 0 | V23: =SUM('Ek.3-A'!U689:U702,'Ek.3-A'!U704:U717) -> 0
A24: 1.24 | B24: YERLİ KATKI ORANI RAPORU | D24: 720110300000 | E24: 0.1 | G24: 5 | H24: =IF(TRIM('Ek.3-A'!E24)<>"","var","yok") -> yok | I24: =IFERROR(IF('Ek.3-A'!E24="", "", IF(VLOOKUP('Ek.3-A'!E24, Veriler!D:E, 2, 0)=0, "", VLOOKUP('Ek.3-A'!E24, Veriler!D:E, 2, 0)))," ") ->  | J24: =IF('Ek.3-A'!O24="", "", 'Ek.3-A'!O24) ->  | K24: ='Ek.3-A'!R24 -> 0 | L24: ='Ek.3-A'!K24 ->  | M24: ='Ek.3-A'!L24 ->  | N24: %0.00 | O24: H | P24: =IF(O24="E",SUM($N$5:N24),0) -> %0.00 | Q24: 0 | T24: S20 | U24: =SUM('Ek.3-A'!T727:T740,'Ek.3-A'!T742:T755) -> 0 | V24: =SUM('Ek.3-A'!U727:U740,'Ek.3-A'!U742:U755) -> 0
A25: 1.25 | B25: YERLİ KATKI ORANI RAPORU | D25: 720110900000 | E25: 0.1 | G25: 6 | H25: =IF(TRIM('Ek.3-A'!E25)<>"","var","yok") -> yok | I25: =IFERROR(IF('Ek.3-A'!E25="", "", IF(VLOOKUP('Ek.3-A'!E25, Veriler!D:E, 2, 0)=0, "", VLOOKUP('Ek.3-A'!E25, Veriler!D:E, 2, 0)))," ") ->  | J25: =IF('Ek.3-A'!O25="", "", 'Ek.3-A'!O25) ->  | K25: ='Ek.3-A'!R25 -> 0 | L25: ='Ek.3-A'!K25 ->  | M25: ='Ek.3-A'!L25 ->  | N25: %0.00 | O25: H | P25: =IF(O25="E",SUM($N$5:N25),0) -> %0.00 | Q25: 0 | T25: S21 | U25: =SUM('Ek.3-A'!T765:T778,'Ek.3-A'!T780:T793) -> 0 | V25: =SUM('Ek.3-A'!U765:U778,'Ek.3-A'!U780:U793) -> 0
A26: 1.26 | B26: YERLİ KATKI ORANI RAPORU | D26: 750300100000 | E26: 0.1 | G26: 7 | H26: =IF(TRIM('Ek.3-A'!E26)<>"","var","yok") -> yok | I26: =IFERROR(IF('Ek.3-A'!E26="", "", IF(VLOOKUP('Ek.3-A'!E26, Veriler!D:E, 2, 0)=0, "", VLOOKUP('Ek.3-A'!E26, Veriler!D:E, 2, 0)))," ") ->  | J26: =IF('Ek.3-A'!O26="", "", 'Ek.3-A'!O26) ->  | K26: ='Ek.3-A'!R26 -> 0 | L26: ='Ek.3-A'!K26 ->  | M26: ='Ek.3-A'!L26 ->  | N26: %0.00 | O26: H | P26: =IF(O26="E",SUM($N$5:N26),0) -> %0.00 | Q26: 0 | T26: S22 | U26: =SUM('Ek.3-A'!T803:T816,'Ek.3-A'!T818:T831) -> 0 | V26: =SUM('Ek.3-A'!U803:U816,'Ek.3-A'!U818:U831) -> 0
A27: 1.27 | B27: YERLİ KATKI ORANI RAPORU | D27: 390110900011 | E27: 0.1 | G27: 8 | H27: =IF(TRIM('Ek.3-A'!E27)<>"","var","yok") -> yok | I27: =IFERROR(IF('Ek.3-A'!E27="", "", IF(VLOOKUP('Ek.3-A'!E27, Veriler!D:E, 2, 0)=0, "", VLOOKUP('Ek.3-A'!E27, Veriler!D:E, 2, 0)))," ") ->  | J27: =IF('Ek.3-A'!O27="", "", 'Ek.3-A'!O27) ->  | K27: ='Ek.3-A'!R27 -> 0 | L27: ='Ek.3-A'!K27 ->  | M27: ='Ek.3-A'!L27 ->  | N27: %0.00 | O27: H | P27: =IF(O27="E",SUM($N$5:N27),0) -> %0.00 | Q27: 0 | T27: S23 | U27: =SUM('Ek.3-A'!T841:T854,'Ek.3-A'!T856:T869) -> 0 | V27: =SUM('Ek.3-A'!U841:U854,'Ek.3-A'!U856:U869) -> 0
A28: 1.28 | B28: YERLİ KATKI ORANI RAPORU | D28: 291830000029 | E28: 0.1 | G28: 9 | H28: =IF(TRIM('Ek.3-A'!E28)<>"","var","yok") -> yok | I28: =IFERROR(IF('Ek.3-A'!E28="", "", IF(VLOOKUP('Ek.3-A'!E28, Veriler!D:E, 2, 0)=0, "", VLOOKUP('Ek.3-A'!E28, Veriler!D:E, 2, 0)))," ") ->  | J28: =IF('Ek.3-A'!O28="", "", 'Ek.3-A'!O28) ->  | K28: ='Ek.3-A'!R28 -> 0 | L28: ='Ek.3-A'!K28 ->  | M28: ='Ek.3-A'!L28 ->  | N28: %0.00 | O28: H | P28: =IF(O28="E",SUM($N$5:N28),0) -> %0.00 | Q28: 0 | T28: S24 | U28: =SUM('Ek.3-A'!T879:T892,'Ek.3-A'!T894:T907) -> 0 | V28: =SUM('Ek.3-A'!U879:U892,'Ek.3-A'!U894:U907) -> 0
A29: 1.29 | B29: YERLİ KATKI ORANI RAPORU | D29: 820900800000 | E29: 0.1 | G29: 10 | H29: =IF(TRIM('Ek.3-A'!E29)<>"","var","yok") -> yok | I29: =IFERROR(IF('Ek.3-A'!E29="", "", IF(VLOOKUP('Ek.3-A'!E29, Veriler!D:E, 2, 0)=0, "", VLOOKUP('Ek.3-A'!E29, Veriler!D:E, 2, 0)))," ") ->  | J29: =IF('Ek.3-A'!O29="", "", 'Ek.3-A'!O29) ->  | K29: ='Ek.3-A'!R29 -> 0 | L29: ='Ek.3-A'!K29 ->  | M29: ='Ek.3-A'!L29 ->  | N29: %0.00 | O29: H | P29: =IF(O29="E",SUM($N$5:N29),0) -> %0.00 | Q29: 0 | T29: S25 | U29: =SUM('Ek.3-A'!T917:T930,'Ek.3-A'!T932:T945) -> 0 | V29: =SUM('Ek.3-A'!U917:U930,'Ek.3-A'!U932:U945) -> 0
A30: 1.30 | B30: YERLİ KATKI ORANI RAPORU | D30: 820900200000 | E30: 0.1 | G30: 11 | H30: =IF(TRIM('Ek.3-A'!E30)<>"","var","yok") -> yok | I30: =IFERROR(IF('Ek.3-A'!E30="", "", IF(VLOOKUP('Ek.3-A'!E30, Veriler!D:E, 2, 0)=0, "", VLOOKUP('Ek.3-A'!E30, Veriler!D:E, 2, 0)))," ") ->  | J30: =IF('Ek.3-A'!O30="", "", 'Ek.3-A'!O30) ->  | K30: ='Ek.3-A'!R30 -> 0 | L30: ='Ek.3-A'!K30 ->  | M30: ='Ek.3-A'!L30 ->  | N30: %0.00 | O30: H | P30: =IF(O30="E",SUM($N$5:N30),0) -> %0.00 | Q30: 0 | T30: Toplam | U30: =SUM(U5:U29) -> 0 | V30: =SUM(V5:V29) -> 0
A31: 1.31 | B31: YERLİ KATKI ORANI RAPORU | D31: 850110930000 | E31: 0.1 | G31: 12 | H31: =IF(TRIM('Ek.3-A'!E31)<>"","var","yok") -> yok | I31: =IFERROR(IF('Ek.3-A'!E31="", "", IF(VLOOKUP('Ek.3-A'!E31, Veriler!D:E, 2, 0)=0, "", VLOOKUP('Ek.3-A'!E31, Veriler!D:E, 2, 0)))," ") ->  | J31: =IF('Ek.3-A'!O31="", "", 'Ek.3-A'!O31) ->  | K31: ='Ek.3-A'!R31 -> 0 | L31: ='Ek.3-A'!K31 ->  | M31: ='Ek.3-A'!L31 ->  | N31: %0.00 | O31: H | P31: =IF(O31="E",SUM($N$5:N31),0) -> %0.00 | Q31: 0
A32: 1.32 | B32: YERLİ KATKI ORANI RAPORU | D32: 260600000000 | E32: 0.1 | G32: 13 | H32: =IF(TRIM('Ek.3-A'!E32)<>"","var","yok") -> yok | I32: =IFERROR(IF('Ek.3-A'!E32="", "", IF(VLOOKUP('Ek.3-A'!E32, Veriler!D:E, 2, 0)=0, "", VLOOKUP('Ek.3-A'!E32, Veriler!D:E, 2, 0)))," ") ->  | J32: =IF('Ek.3-A'!O32="", "", 'Ek.3-A'!O32) ->  | K32: ='Ek.3-A'!R32 -> 0 | L32: ='Ek.3-A'!K32 ->  | M32: ='Ek.3-A'!L32 ->  | N32: %0.00 | O32: H | P32: =IF(O32="E",SUM($N$5:N32),0) -> %0.00 | Q32: 0 | U32: EK3D E7/E10 | V32: ='Ek.3-D'!E7/'Ek.3-D'!E10 -> 
A33: 1.33 | B33: YERLİ KATKI ORANI RAPORU | D33: 281830000000 | E33: 0.1 | G33: 14 | H33: =IF(TRIM('Ek.3-A'!E33)<>"","var","yok") -> yok | I33: =IFERROR(IF('Ek.3-A'!E33="", "", IF(VLOOKUP('Ek.3-A'!E33, Veriler!D:E, 2, 0)=0, "", VLOOKUP('Ek.3-A'!E33, Veriler!D:E, 2, 0)))," ") ->  | J33: =IF('Ek.3-A'!O33="", "", 'Ek.3-A'!O33) ->  | K33: ='Ek.3-A'!R33 -> 0 | L33: ='Ek.3-A'!K33 ->  | M33: ='Ek.3-A'!L33 ->  | N33: %0.00 | O33: H | P33: =IF(O33="E",SUM($N$5:N33),0) -> %0.00 | Q33: 0 | U33: (EK3D E7/E10)*100 | V33: =V32*100 -> 
A34: 1.34 | B34: YERLİ KATKI ORANI RAPORU | D34: 281820000000 | E34: 0.1 | U34: Teknolojik Ürün Puanı | V34: ='Ek.3-D'!F9 -> 0.00
A35: 1.35 | B35: YERLİ KATKI ORANI RAPORU | D35: 760200900000 | E35: 0.1 | U35: Yerli Katkı Oranı | V35: =V33+V34 -> 
A36: 1.36 | B36: YERLİ KATKI ORANI RAPORU | D36: 760200110000 | E36: 0.1
A37: 1.37 | B37: YERLİ KATKI ORANI RAPORU | D37: 294110000011 | E37: 0.1
A38: 1.38 | B38: YERLİ KATKI ORANI RAPORU | D38: 310540000011 | E38: 0.1
A39: 1.39 | B39: YERLİ KATKI ORANI RAPORU | D39: 310221000000 | E39: 0.1
A40: 1.40 | B40: YERLİ KATKI ORANI RAPORU | D40: 811090000000 | E40: 0.1
A41: 1.41 | B41: YERLİ KATKI ORANI RAPORU | D41: 540211000000 | E41: 0.1
A42: 1.42 | B42: YERLİ KATKI ORANI RAPORU | D42: 550311000000 | E42: 0.1
A43: 1.43 | B43: YERLİ KATKI ORANI RAPORU | D43: 291411000000 | E43: 0.1 | G43: =G18+1 -> 15 | H43: =IF(TRIM('Ek.3-A'!E43)<>"","var","yok") -> yok | I43: =IF('Ek.3-A'!E43="", "", IF(VLOOKUP('Ek.3-A'!E43, Veriler!D:E, 2, 0)=0, "", VLOOKUP('Ek.3-A'!E43, Veriler!D:E, 2, 0))) ->  | J43: =IF('Ek.3-A'!O43="", "", 'Ek.3-A'!O43) ->  | K43: ='Ek.3-A'!R43 -> 0 | L43: ='Ek.3-A'!K43 ->  | M43: ='Ek.3-A'!L43 ->  | N43: =IF(H43="var",0,IF(M43<=0.005,M43,0)) -> %0.00 | O43: =IF(M43<=0.005,"E","H") -> H | P43: =IF(O43="E",SUM($N$5:N43),0) -> %0.00 | Q43: =IF(P43<=0.1, K43, IF(N43>$F$2, N43*K43, $F$2*K43)) -> 0
A44: 1.44 | B44: YERLİ KATKI ORANI RAPORU | D44: 851110009000 | E44: 0.1 | G44: =G43+1 -> 16 | H44: =IF(TRIM('Ek.3-A'!E44)<>"","var","yok") -> yok | I44: =IF('Ek.3-A'!E44="", "", IF(VLOOKUP('Ek.3-A'!E44, Veriler!D:E, 2, 0)=0, "", VLOOKUP('Ek.3-A'!E44, Veriler!D:E, 2, 0))) ->  | J44: =IF('Ek.3-A'!O44="", "", 'Ek.3-A'!O44) ->  | K44: ='Ek.3-A'!R44 -> 0 | L44: ='Ek.3-A'!K44 ->  | M44: ='Ek.3-A'!L44 ->  | N44: =IF(H44="var",0,IF(M44<=0.005,M44,0)) -> %0.00 | O44: =IF(M44<=0.005,"E","H") -> H | P44: =IF(O44="E",SUM($N$5:N44),0) -> %0.00 | Q44: =IF(P44<=0.1, K44, IF(N44>$F$2, N44*K44, $F$2*K44)) -> 0
A45: 1.45 | B45: YERLİ KATKI ORANI RAPORU | D45: 740400910000 | E45: 0.1 | G45: =G44+1 -> 17 | H45: =IF(TRIM('Ek.3-A'!E45)<>"","var","yok") -> yok | I45: =IF('Ek.3-A'!E45="", "", IF(VLOOKUP('Ek.3-A'!E45, Veriler!D:E, 2, 0)=0, "", VLOOKUP('Ek.3-A'!E45, Veriler!D:E, 2, 0))) ->  | J45: =IF('Ek.3-A'!O45="", "", 'Ek.3-A'!O45) ->  | K45: ='Ek.3-A'!R45 -> 0 | L45: ='Ek.3-A'!K45 ->  | M45: ='Ek.3-A'!L45 ->  | N45: %0.00 | O45: H | P45: =IF(O45="E",SUM($N$5:N45),0) -> %0.00 | Q45: 0
A46: 1.46 | B46: YERLİ KATKI ORANI RAPORU | D46: 853669300000 | E46: 0.1 | G46: =G45+1 -> 18 | H46: =IF(TRIM('Ek.3-A'!E46)<>"","var","yok") -> yok | I46: =IF('Ek.3-A'!E46="", "", IF(VLOOKUP('Ek.3-A'!E46, Veriler!D:E, 2, 0)=0, "", VLOOKUP('Ek.3-A'!E46, Veriler!D:E, 2, 0))) ->  | J46: =IF('Ek.3-A'!O46="", "", 'Ek.3-A'!O46) ->  | K46: ='Ek.3-A'!R46 -> 0 | L46: ='Ek.3-A'!K46 ->  | M46: ='Ek.3-A'!L46 ->  | N46: %0.00 | O46: H | P46: =IF(O46="E",SUM($N$5:N46),0) -> %0.00 | Q46: 0
A47: 1.47 | B47: YERLİ KATKI ORANI RAPORU | D47: 480255251000 | E47: 0.1 | G47: 19 | H47: =IF(TRIM('Ek.3-A'!E47)<>"","var","yok") -> yok | I47: =IF('Ek.3-A'!E47="", "", IF(VLOOKUP('Ek.3-A'!E47, Veriler!D:E, 2, 0)=0, "", VLOOKUP('Ek.3-A'!E47, Veriler!D:E, 2, 0))) ->  | J47: =IF('Ek.3-A'!O47="", "", 'Ek.3-A'!O47) ->  | K47: ='Ek.3-A'!R47 -> 0 | L47: ='Ek.3-A'!K47 ->  | M47: ='Ek.3-A'!L47 ->  | N47: %0.00 | O47: H | P47: =IF(O47="E",SUM($N$5:N47),0) -> %0.00 | Q47: 0
A48: 1.48 | B48: YERLİ KATKI ORANI RAPORU | D48: 480255901000 | E48: 0.1 | G48: 20 | H48: =IF(TRIM('Ek.3-A'!E48)<>"","var","yok") -> yok | I48: =IF('Ek.3-A'!E48="", "", IF(VLOOKUP('Ek.3-A'!E48, Veriler!D:E, 2, 0)=0, "", VLOOKUP('Ek.3-A'!E48, Veriler!D:E, 2, 0))) ->  | J48: =IF('Ek.3-A'!O48="", "", 'Ek.3-A'!O48) ->  | K48: ='Ek.3-A'!R48 -> 0 | L48: ='Ek.3-A'!K48 ->  | M48: ='Ek.3-A'!L48 ->  | N48: %0.00 | O48: H | P48: =IF(O48="E",SUM($N$5:N48),0) -> %0.00 | Q48: 0
A49: 1.49 | B49: YERLİ KATKI ORANI RAPORU | D49: 480257001000 | E49: 0.1 | G49: 21 | H49: =IF(TRIM('Ek.3-A'!E49)<>"","var","yok") -> yok | I49: =IF('Ek.3-A'!E49="", "", IF(VLOOKUP('Ek.3-A'!E49, Veriler!D:E, 2, 0)=0, "", VLOOKUP('Ek.3-A'!E49, Veriler!D:E, 2, 0))) ->  | J49: =IF('Ek.3-A'!O49="", "", 'Ek.3-A'!O49) ->  | K49: ='Ek.3-A'!R49 -> 0 | L49: ='Ek.3-A'!K49 ->  | M49: ='Ek.3-A'!L49 ->  | N49: %0.00 | O49: H | P49: =IF(O49="E",SUM($N$5:N49),0) -> %0.00 | Q49: 0
A50: 1.50 | B50: YERLİ KATKI ORANI RAPORU | D50: 470710000000 | E50: 0.1 | G50: 22 | H50: =IF(TRIM('Ek.3-A'!E50)<>"","var","yok") -> yok | I50: =IF('Ek.3-A'!E50="", "", IF(VLOOKUP('Ek.3-A'!E50, Veriler!D:E, 2, 0)=0, "", VLOOKUP('Ek.3-A'!E50, Veriler!D:E, 2, 0))) ->  | J50: =IF('Ek.3-A'!O50="", "", 'Ek.3-A'!O50) ->  | K50: ='Ek.3-A'!R50 -> 0 | L50: ='Ek.3-A'!K50 ->  | M50: ='Ek.3-A'!L50 ->  | N50: %0.00 | O50: H | P50: =IF(O50="E",SUM($N$5:N50),0) -> %0.00 | Q50: 0
A51: 1.51 | B51: YERLİ KATKI ORANI RAPORU | D51: 470720000000 | E51: 0.1 | G51: 23 | H51: =IF(TRIM('Ek.3-A'!E51)<>"","var","yok") -> yok | I51: =IF('Ek.3-A'!E51="", "", IF(VLOOKUP('Ek.3-A'!E51, Veriler!D:E, 2, 0)=0, "", VLOOKUP('Ek.3-A'!E51, Veriler!D:E, 2, 0))) ->  | J51: =IF('Ek.3-A'!O51="", "", 'Ek.3-A'!O51) ->  | K51: ='Ek.3-A'!R51 -> 0 | L51: ='Ek.3-A'!K51 ->  | M51: ='Ek.3-A'!L51 ->  | N51: %0.00 | O51: H | P51: =IF(O51="E",SUM($N$5:N51),0) -> %0.00 | Q51: 0
A52: 1.52 | B52: YERLİ KATKI ORANI RAPORU | D52: 848280000000 | E52: 0.1 | G52: 24 | H52: =IF(TRIM('Ek.3-A'!E52)<>"","var","yok") -> yok | I52: =IF('Ek.3-A'!E52="", "", IF(VLOOKUP('Ek.3-A'!E52, Veriler!D:E, 2, 0)=0, "", VLOOKUP('Ek.3-A'!E52, Veriler!D:E, 2, 0))) ->  | J52: =IF('Ek.3-A'!O52="", "", 'Ek.3-A'!O52) ->  | K52: ='Ek.3-A'!R52 -> 0 | L52: ='Ek.3-A'!K52 ->  | M52: ='Ek.3-A'!L52 ->  | N52: %0.00 | O52: H | P52: =IF(O52="E",SUM($N$5:N52),0) -> %0.00 | Q52: 0
A53: 1.53 | B53: YERLİ KATKI ORANI RAPORU | D53: 481039000000 | E53: 0.1 | G53: 25 | H53: =IF(TRIM('Ek.3-A'!E53)<>"","var","yok") -> yok | I53: =IF('Ek.3-A'!E53="", "", IF(VLOOKUP('Ek.3-A'!E53, Veriler!D:E, 2, 0)=0, "", VLOOKUP('Ek.3-A'!E53, Veriler!D:E, 2, 0))) ->  | J53: =IF('Ek.3-A'!O53="", "", 'Ek.3-A'!O53) ->  | K53: ='Ek.3-A'!R53 -> 0 | L53: ='Ek.3-A'!K53 ->  | M53: ='Ek.3-A'!L53 ->  | N53: %0.00 | O53: H | P53: =IF(O53="E",SUM($N$5:N53),0) -> %0.00 | Q53: 0
A54: 1.54 | B54: YERLİ KATKI ORANI RAPORU | D54: 480411110000 | E54: 0.1 | G54: 26 | H54: =IF(TRIM('Ek.3-A'!E54)<>"","var","yok") -> yok | I54: =IF('Ek.3-A'!E54="", "", IF(VLOOKUP('Ek.3-A'!E54, Veriler!D:E, 2, 0)=0, "", VLOOKUP('Ek.3-A'!E54, Veriler!D:E, 2, 0))) ->  | J54: =IF('Ek.3-A'!O54="", "", 'Ek.3-A'!O54) ->  | K54: ='Ek.3-A'!R54 -> 0 | L54: ='Ek.3-A'!K54 ->  | M54: ='Ek.3-A'!L54 ->  | N54: %0.00 | O54: H | P54: =IF(O54="E",SUM($N$5:N54),0) -> %0.00 | Q54: 0
A55: 1.55 | B55: YERLİ KATKI ORANI RAPORU | D55: 480411190000 | E55: 0.1 | G55: 27 | H55: =IF(TRIM('Ek.3-A'!E55)<>"","var","yok") -> yok | I55: =IF('Ek.3-A'!E55="", "", IF(VLOOKUP('Ek.3-A'!E55, Veriler!D:E, 2, 0)=0, "", VLOOKUP('Ek.3-A'!E55, Veriler!D:E, 2, 0))) ->  | J55: =IF('Ek.3-A'!O55="", "", 'Ek.3-A'!O55) ->  | K55: ='Ek.3-A'!R55 -> 0 | L55: ='Ek.3-A'!K55 ->  | M55: ='Ek.3-A'!L55 ->  | N55: %0.00 | O55: H | P55: =IF(O55="E",SUM($N$5:N55),0) -> %0.00 | Q55: 0
A56: 1.56 | B56: YERLİ KATKI ORANI RAPORU | D56: 854919100000 | E56: 0.1 | G56: 28 | H56: =IF(TRIM('Ek.3-A'!E56)<>"","var","yok") -> yok | I56: =IF('Ek.3-A'!E56="", "", IF(VLOOKUP('Ek.3-A'!E56, Veriler!D:E, 2, 0)=0, "", VLOOKUP('Ek.3-A'!E56, Veriler!D:E, 2, 0))) ->  | J56: =IF('Ek.3-A'!O56="", "", 'Ek.3-A'!O56) ->  | K56: ='Ek.3-A'!R56 -> 0 | L56: ='Ek.3-A'!K56 ->  | M56: ='Ek.3-A'!L56 ->  | N56: %0.00 | O56: H | P56: =IF(O56="E",SUM($N$5:N56),0) -> %0.00 | Q56: 0
A57: 1.57 | B57: YERLİ KATKI ORANI RAPORU | D57: 270112900000 | E57: 0.1
A58: 1.58 | B58: YERLİ KATKI ORANI RAPORU | D58: 270112100000 | E58: 0.1 | G58: =G33+1 -> 15 | H58: =IF(TRIM('Ek.3-A'!E58)<>"","var","yok") -> yok | I58: =IF('Ek.3-A'!E58="", "", IF(VLOOKUP('Ek.3-A'!E58, Veriler!D:E, 2, 0)=0, "", VLOOKUP('Ek.3-A'!E58, Veriler!D:E, 2, 0))) ->  | J58: =IF('Ek.3-A'!O58="", "", 'Ek.3-A'!O58) ->  | K58: ='Ek.3-A'!R58 -> 0 | L58: ='Ek.3-A'!K58 ->  | M58: ='Ek.3-A'!L58 ->  | N58: =IF(H58="var",0,IF(M58<=0.005,M58,0)) -> %0.00 | O58: =IF(M58<=0.005,"E","H") -> H | P58: =IF(O58="E",SUM($N$5:N58),0) -> %0.00 | Q58: =IF(P58<=0.1, K58, IF(N58>$F$2, N58*K58, $F$2*K58)) -> 0
A59: 1.59 | B59: YERLİ KATKI ORANI RAPORU | D59: 848110990000 | E59: 0.1 | G59: =G58+1 -> 16 | H59: =IF(TRIM('Ek.3-A'!E59)<>"","var","yok") -> yok | I59: =IF('Ek.3-A'!E59="", "", IF(VLOOKUP('Ek.3-A'!E59, Veriler!D:E, 2, 0)=0, "", VLOOKUP('Ek.3-A'!E59, Veriler!D:E, 2, 0))) ->  | J59: =IF('Ek.3-A'!O59="", "", 'Ek.3-A'!O59) ->  | K59: ='Ek.3-A'!R59 -> 0 | L59: ='Ek.3-A'!K59 ->  | M59: ='Ek.3-A'!L59 ->  | N59: =IF(H59="var",0,IF(M59<=0.005,M59,0)) -> %0.00 | O59: =IF(M59<=0.005,"E","H") -> H | P59: =IF(O59="E",SUM($N$5:N59),0) -> %0.00 | Q59: =IF(P59<=0.1, K59, IF(N59>$F$2, N59*K59, $F$2*K59)) -> 0
A60: 1.60 | B60: YERLİ KATKI ORANI RAPORU | D60: 848180730000 | E60: 0.1 | G60: =G59+1 -> 17 | H60: =IF(TRIM('Ek.3-A'!E60)<>"","var","yok") -> yok | I60: =IF('Ek.3-A'!E60="", "", IF(VLOOKUP('Ek.3-A'!E60, Veriler!D:E, 2, 0)=0, "", VLOOKUP('Ek.3-A'!E60, Veriler!D:E, 2, 0))) ->  | J60: =IF('Ek.3-A'!O60="", "", 'Ek.3-A'!O60) ->  | K60: ='Ek.3-A'!R60 -> 0 | L60: ='Ek.3-A'!K60 ->  | M60: ='Ek.3-A'!L60 ->  | N60: %0.00 | O60: H | P60: =IF(O60="E",SUM($N$5:N60),0) -> %0.00 | Q60: 0
A61: 1.61 | B61: YERLİ KATKI ORANI RAPORU | D61: 848140900000 | E61: 0.1 | G61: 18 | H61: =IF(TRIM('Ek.3-A'!E61)<>"","var","yok") -> yok | I61: =IF('Ek.3-A'!E61="", "", IF(VLOOKUP('Ek.3-A'!E61, Veriler!D:E, 2, 0)=0, "", VLOOKUP('Ek.3-A'!E61, Veriler!D:E, 2, 0))) ->  | J61: =IF('Ek.3-A'!O61="", "", 'Ek.3-A'!O61) ->  | K61: ='Ek.3-A'!R61 -> 0 | L61: ='Ek.3-A'!K61 ->  | M61: ='Ek.3-A'!L61 ->  | N61: %0.00 | O61: H | P61: =IF(O61="E",SUM($N$5:N61),0) -> %0.00 | Q61: 0
A62: 1.62 | B62: YERLİ KATKI ORANI RAPORU | D62: 848180790000 | E62: 0.1 | G62: 19 | H62: =IF(TRIM('Ek.3-A'!E62)<>"","var","yok") -> yok | I62: =IF('Ek.3-A'!E62="", "", IF(VLOOKUP('Ek.3-A'!E62, Veriler!D:E, 2, 0)=0, "", VLOOKUP('Ek.3-A'!E62, Veriler!D:E, 2, 0))) ->  | J62: =IF('Ek.3-A'!O62="", "", 'Ek.3-A'!O62) ->  | K62: ='Ek.3-A'!R62 -> 0 | L62: ='Ek.3-A'!K62 ->  | M62: ='Ek.3-A'!L62 ->  | N62: %0.00 | O62: H | P62: =IF(O62="E",SUM($N$5:N62),0) -> %0.00 | Q62: 0
A63: 1.63 | B63: YERLİ KATKI ORANI RAPORU | D63: 848120900000 | E63: 0.1 | G63: 20 | H63: =IF(TRIM('Ek.3-A'!E63)<>"","var","yok") -> yok | I63: =IF('Ek.3-A'!E63="", "", IF(VLOOKUP('Ek.3-A'!E63, Veriler!D:E, 2, 0)=0, "", VLOOKUP('Ek.3-A'!E63, Veriler!D:E, 2, 0))) ->  | J63: =IF('Ek.3-A'!O63="", "", 'Ek.3-A'!O63) ->  | K63: ='Ek.3-A'!R63 -> 0 | L63: ='Ek.3-A'!K63 ->  | M63: ='Ek.3-A'!L63 ->  | N63: %0.00 | O63: H | P63: =IF(O63="E",SUM($N$5:N63),0) -> %0.00 | Q63: 0
A64: 1.64 | B64: YERLİ KATKI ORANI RAPORU | D64: 848180590000 | E64: 0.1 | G64: 21 | H64: =IF(TRIM('Ek.3-A'!E64)<>"","var","yok") -> yok | I64: =IF('Ek.3-A'!E64="", "", IF(VLOOKUP('Ek.3-A'!E64, Veriler!D:E, 2, 0)=0, "", VLOOKUP('Ek.3-A'!E64, Veriler!D:E, 2, 0))) ->  | J64: =IF('Ek.3-A'!O64="", "", 'Ek.3-A'!O64) ->  | K64: ='Ek.3-A'!R64 -> 0 | L64: ='Ek.3-A'!K64 ->  | M64: ='Ek.3-A'!L64 ->  | N64: %0.00 | O64: H | P64: =IF(O64="E",SUM($N$5:N64),0) -> %0.00 | Q64: 0
A65: 1.65 | B65: YERLİ KATKI ORANI RAPORU | D65: 400220000000 | E65: 0.1 | G65: 22 | H65: =IF(TRIM('Ek.3-A'!E65)<>"","var","yok") -> yok | I65: =IF('Ek.3-A'!E65="", "", IF(VLOOKUP('Ek.3-A'!E65, Veriler!D:E, 2, 0)=0, "", VLOOKUP('Ek.3-A'!E65, Veriler!D:E, 2, 0))) ->  | J65: =IF('Ek.3-A'!O65="", "", 'Ek.3-A'!O65) ->  | K65: ='Ek.3-A'!R65 -> 0 | L65: ='Ek.3-A'!K65 ->  | M65: ='Ek.3-A'!L65 ->  | N65: %0.00 | O65: H | P65: =IF(O65="E",SUM($N$5:N65),0) -> %0.00 | Q65: 0
A66: 1.66 | B66: YERLİ KATKI ORANI RAPORU | D66: 291612000013 | E66: 0.1 | G66: 23 | H66: =IF(TRIM('Ek.3-A'!E66)<>"","var","yok") -> yok | I66: =IF('Ek.3-A'!E66="", "", IF(VLOOKUP('Ek.3-A'!E66, Veriler!D:E, 2, 0)=0, "", VLOOKUP('Ek.3-A'!E66, Veriler!D:E, 2, 0))) ->  | J66: =IF('Ek.3-A'!O66="", "", 'Ek.3-A'!O66) ->  | K66: ='Ek.3-A'!R66 -> 0 | L66: ='Ek.3-A'!K66 ->  | M66: ='Ek.3-A'!L66 ->  | N66: %0.00 | O66: H | P66: =IF(O66="E",SUM($N$5:N66),0) -> %0.00 | Q66: 0
A67: 1.67 | B67: YERLİ KATKI ORANI RAPORU | D67: 701912000000 | E67: 0.1 | G67: 24 | H67: =IF(TRIM('Ek.3-A'!E67)<>"","var","yok") -> yok | I67: =IF('Ek.3-A'!E67="", "", IF(VLOOKUP('Ek.3-A'!E67, Veriler!D:E, 2, 0)=0, "", VLOOKUP('Ek.3-A'!E67, Veriler!D:E, 2, 0))) ->  | J67: =IF('Ek.3-A'!O67="", "", 'Ek.3-A'!O67) ->  | K67: ='Ek.3-A'!R67 -> 0 | L67: ='Ek.3-A'!K67 ->  | M67: ='Ek.3-A'!L67 ->  | N67: %0.00 | O67: H | P67: =IF(O67="E",SUM($N$5:N67),0) -> %0.00 | Q67: 0
A68: 1.68 | B68: YERLİ KATKI ORANI RAPORU | D68: 790200000000 | E68: 0.1 | G68: 25 | H68: =IF(TRIM('Ek.3-A'!E68)<>"","var","yok") -> yok | I68: =IF('Ek.3-A'!E68="", "", IF(VLOOKUP('Ek.3-A'!E68, Veriler!D:E, 2, 0)=0, "", VLOOKUP('Ek.3-A'!E68, Veriler!D:E, 2, 0))) ->  | J68: =IF('Ek.3-A'!O68="", "", 'Ek.3-A'!O68) ->  | K68: ='Ek.3-A'!R68 -> 0 | L68: ='Ek.3-A'!K68 ->  | M68: ='Ek.3-A'!L68 ->  | N68: %0.00 | O68: H | P68: =IF(O68="E",SUM($N$5:N68),0) -> %0.00 | Q68: 0
A69: 1.69 | B69: YERLİ KATKI ORANI RAPORU | D69: 850152901000 | E69: 0.1 | G69: 26 | H69: =IF(TRIM('Ek.3-A'!E69)<>"","var","yok") -> yok | I69: =IF('Ek.3-A'!E69="", "", IF(VLOOKUP('Ek.3-A'!E69, Veriler!D:E, 2, 0)=0, "", VLOOKUP('Ek.3-A'!E69, Veriler!D:E, 2, 0))) ->  | J69: =IF('Ek.3-A'!O69="", "", 'Ek.3-A'!O69) ->  | K69: ='Ek.3-A'!R69 -> 0 | L69: ='Ek.3-A'!K69 ->  | M69: ='Ek.3-A'!L69 ->  | N69: %0.00 | O69: H | P69: =IF(O69="E",SUM($N$5:N69),0) -> %0.00 | Q69: 0
A70: 1.70 | B70: YERLİ KATKI ORANI RAPORU | D70: 850151001000 | E70: 0.1 | G70: 27 | H70: =IF(TRIM('Ek.3-A'!E70)<>"","var","yok") -> yok | I70: =IF('Ek.3-A'!E70="", "", IF(VLOOKUP('Ek.3-A'!E70, Veriler!D:E, 2, 0)=0, "", VLOOKUP('Ek.3-A'!E70, Veriler!D:E, 2, 0))) ->  | J70: =IF('Ek.3-A'!O70="", "", 'Ek.3-A'!O70) ->  | K70: ='Ek.3-A'!R70 -> 0 | L70: ='Ek.3-A'!K70 ->  | M70: ='Ek.3-A'!L70 ->  | N70: %0.00 | O70: H | P70: =IF(O70="E",SUM($N$5:N70),0) -> %0.00 | Q70: 0
A71: 1.71 | B71: YERLİ KATKI ORANI RAPORU | D71: 850153811000 | E71: 0.1 | G71: 28 | H71: =IF(TRIM('Ek.3-A'!E71)<>"","var","yok") -> yok | I71: =IF('Ek.3-A'!E71="", "", IF(VLOOKUP('Ek.3-A'!E71, Veriler!D:E, 2, 0)=0, "", VLOOKUP('Ek.3-A'!E71, Veriler!D:E, 2, 0))) ->  | J71: =IF('Ek.3-A'!O71="", "", 'Ek.3-A'!O71) ->  | K71: ='Ek.3-A'!R71 -> 0 | L71: ='Ek.3-A'!K71 ->  | M71: ='Ek.3-A'!L71 ->  | N71: %0.00 | O71: H | P71: =IF(O71="E",SUM($N$5:N71),0) -> %0.00 | Q71: 0
A72: 1.72 | B72: YERLİ KATKI ORANI RAPORU | D72: 481092900000 | E72: 0.1
A73: 1.73 | B73: YERLİ KATKI ORANI RAPORU | D73: 481092100000 | E73: 0.1
A74: 1.74 | B74: YERLİ KATKI ORANI RAPORU | D74: 481092300000 | E74: 0.1
A75: 1.75 | B75: YERLİ KATKI ORANI RAPORU | D75: 854239110000 | E75: 0.1
A76: 1.76 | B76: YERLİ KATKI ORANI RAPORU | D76: 320411000000 | E76: 0.1
A77: 1.77 | B77: YERLİ KATKI ORANI RAPORU | D77: 271019470018 | E77: 0.1
A78: 1.78 | B78: YERLİ KATKI ORANI RAPORU | D78: 271019480011 | E78: 0.1
A79: 1.79 | B79: YERLİ KATKI ORANI RAPORU | D79: 480255909912 | E79: 0.1
A80: 1.80 | B80: YERLİ KATKI ORANI RAPORU | D80: 730419300012 | E80: 0.1
A81: 1.81 | B81: YERLİ KATKI ORANI RAPORU | D81: 730429901000 | E81: 0.1 | G81: =G56+1 -> 29 | H81: =IF(TRIM('Ek.3-A'!E81)<>"","var","yok") -> yok | I81: =IF('Ek.3-A'!E81="", "", IF(VLOOKUP('Ek.3-A'!E81, Veriler!D:E, 2, 0)=0, "", VLOOKUP('Ek.3-A'!E81, Veriler!D:E, 2, 0))) ->  | J81: =IF('Ek.3-A'!O81="", "", 'Ek.3-A'!O81) ->  | K81: ='Ek.3-A'!R81 -> 0 | L81: ='Ek.3-A'!K81 ->  | M81: ='Ek.3-A'!L81 ->  | N81: =IF(H81="var",0,IF(M81<=0.005,M81,0)) -> %0.00 | O81: =IF(M81<=0.005,"E","H") -> H | P81: =IF(O81="E",SUM($N$5:N81),0) -> %0.00 | Q81: =IF(P81<=0.1, K81, IF(N81>$F$2, N81*K81, $F$2*K81)) -> 0
A82: 1.82 | B82: YERLİ KATKI ORANI RAPORU | D82: 730429301011 | E82: 0.1 | G82: =G81+1 -> 30 | H82: =IF(TRIM('Ek.3-A'!E82)<>"","var","yok") -> yok | I82: =IF('Ek.3-A'!E82="", "", IF(VLOOKUP('Ek.3-A'!E82, Veriler!D:E, 2, 0)=0, "", VLOOKUP('Ek.3-A'!E82, Veriler!D:E, 2, 0))) ->  | J82: =IF('Ek.3-A'!O82="", "", 'Ek.3-A'!O82) ->  | K82: ='Ek.3-A'!R82 -> 0 | L82: ='Ek.3-A'!K82 ->  | M82: ='Ek.3-A'!L82 ->  | N82: =IF(H82="var",0,IF(M82<=0.005,M82,0)) -> %0.00 | O82: =IF(M82<=0.005,"E","H") -> H | P82: =IF(O82="E",SUM($N$5:N82),0) -> %0.00 | Q82: =IF(P82<=0.1, K82, IF(N82>$F$2, N82*K82, $F$2*K82)) -> 0
A83: 1.83 | B83: YERLİ KATKI ORANI RAPORU | D83: 730429301012 | E83: 0.1 | G83: =G82+1 -> 31 | H83: =IF(TRIM('Ek.3-A'!E83)<>"","var","yok") -> yok | I83: =IF('Ek.3-A'!E83="", "", IF(VLOOKUP('Ek.3-A'!E83, Veriler!D:E, 2, 0)=0, "", VLOOKUP('Ek.3-A'!E83, Veriler!D:E, 2, 0))) ->  | J83: =IF('Ek.3-A'!O83="", "", 'Ek.3-A'!O83) ->  | K83: ='Ek.3-A'!R83 -> 0 | L83: ='Ek.3-A'!K83 ->  | M83: ='Ek.3-A'!L83 ->  | N83: %0.00 | O83: H | P83: =IF(O83="E",SUM($N$5:N83),0) -> %0.00 | Q83: 0
A84: 1.84 | B84: YERLİ KATKI ORANI RAPORU | D84: 730429101000 | E84: 0.1 | G84: =G83+1 -> 32 | H84: =IF(TRIM('Ek.3-A'!E84)<>"","var","yok") -> yok | I84: =IF('Ek.3-A'!E84="", "", IF(VLOOKUP('Ek.3-A'!E84, Veriler!D:E, 2, 0)=0, "", VLOOKUP('Ek.3-A'!E84, Veriler!D:E, 2, 0))) ->  | J84: =IF('Ek.3-A'!O84="", "", 'Ek.3-A'!O84) ->  | K84: ='Ek.3-A'!R84 -> 0 | L84: ='Ek.3-A'!K84 ->  | M84: ='Ek.3-A'!L84 ->  | N84: %0.00 | O84: H | P84: =IF(O84="E",SUM($N$5:N84),0) -> %0.00 | Q84: 0
A85: 1.85 | B85: YERLİ KATKI ORANI RAPORU | D85: 720310000000 | E85: 0.1 | G85: 33 | H85: =IF(TRIM('Ek.3-A'!E85)<>"","var","yok") -> yok | I85: =IF('Ek.3-A'!E85="", "", IF(VLOOKUP('Ek.3-A'!E85, Veriler!D:E, 2, 0)=0, "", VLOOKUP('Ek.3-A'!E85, Veriler!D:E, 2, 0))) ->  | J85: =IF('Ek.3-A'!O85="", "", 'Ek.3-A'!O85) ->  | K85: ='Ek.3-A'!R85 -> 0 | L85: ='Ek.3-A'!K85 ->  | M85: ='Ek.3-A'!L85 ->  | N85: %0.00 | O85: H | P85: =IF(O85="E",SUM($N$5:N85),0) -> %0.00 | Q85: 0
A86: 1.86 | B86: YERLİ KATKI ORANI RAPORU | D86: 260111000000 | E86: 0.1 | G86: 34 | H86: =IF(TRIM('Ek.3-A'!E86)<>"","var","yok") -> yok | I86: =IF('Ek.3-A'!E86="", "", IF(VLOOKUP('Ek.3-A'!E86, Veriler!D:E, 2, 0)=0, "", VLOOKUP('Ek.3-A'!E86, Veriler!D:E, 2, 0))) ->  | J86: =IF('Ek.3-A'!O86="", "", 'Ek.3-A'!O86) ->  | K86: ='Ek.3-A'!R86 -> 0 | L86: ='Ek.3-A'!K86 ->  | M86: ='Ek.3-A'!L86 ->  | N86: %0.00 | O86: H | P86: =IF(O86="E",SUM($N$5:N86),0) -> %0.00 | Q86: 0
A87: 1.87 | B87: YERLİ KATKI ORANI RAPORU | D87: 720449900011 | E87: 0.1 | G87: 35 | H87: =IF(TRIM('Ek.3-A'!E87)<>"","var","yok") -> yok | I87: =IF('Ek.3-A'!E87="", "", IF(VLOOKUP('Ek.3-A'!E87, Veriler!D:E, 2, 0)=0, "", VLOOKUP('Ek.3-A'!E87, Veriler!D:E, 2, 0))) ->  | J87: =IF('Ek.3-A'!O87="", "", 'Ek.3-A'!O87) ->  | K87: ='Ek.3-A'!R87 -> 0 | L87: ='Ek.3-A'!K87 ->  | M87: ='Ek.3-A'!L87 ->  | N87: %0.00 | O87: H | P87: =IF(O87="E",SUM($N$5:N87),0) -> %0.00 | Q87: 0
A88: 1.88 | B88: YERLİ KATKI ORANI RAPORU | D88: 720449900019 | E88: 0.1 | G88: 36 | H88: =IF(TRIM('Ek.3-A'!E88)<>"","var","yok") -> yok | I88: =IF('Ek.3-A'!E88="", "", IF(VLOOKUP('Ek.3-A'!E88, Veriler!D:E, 2, 0)=0, "", VLOOKUP('Ek.3-A'!E88, Veriler!D:E, 2, 0))) ->  | J88: =IF('Ek.3-A'!O88="", "", 'Ek.3-A'!O88) ->  | K88: ='Ek.3-A'!R88 -> 0 | L88: ='Ek.3-A'!K88 ->  | M88: ='Ek.3-A'!L88 ->  | N88: %0.00 | O88: H | P88: =IF(O88="E",SUM($N$5:N88),0) -> %0.00 | Q88: 0
A89: 1.89 | B89: YERLİ KATKI ORANI RAPORU | D89: 720449300000 | E89: 0.1 | G89: 37 | H89: =IF(TRIM('Ek.3-A'!E89)<>"","var","yok") -> yok | I89: =IF('Ek.3-A'!E89="", "", IF(VLOOKUP('Ek.3-A'!E89, Veriler!D:E, 2, 0)=0, "", VLOOKUP('Ek.3-A'!E89, Veriler!D:E, 2, 0))) ->  | J89: =IF('Ek.3-A'!O89="", "", 'Ek.3-A'!O89) ->  | K89: ='Ek.3-A'!R89 -> 0 | L89: ='Ek.3-A'!K89 ->  | M89: ='Ek.3-A'!L89 ->  | N89: %0.00 | O89: H | P89: =IF(O89="E",SUM($N$5:N89),0) -> %0.00 | Q89: 0
A90: 1.90 | B90: YERLİ KATKI ORANI RAPORU | D90: 720449100000 | E90: 0.1 | G90: 38 | H90: =IF(TRIM('Ek.3-A'!E90)<>"","var","yok") -> yok | I90: =IF('Ek.3-A'!E90="", "", IF(VLOOKUP('Ek.3-A'!E90, Veriler!D:E, 2, 0)=0, "", VLOOKUP('Ek.3-A'!E90, Veriler!D:E, 2, 0))) ->  | J90: =IF('Ek.3-A'!O90="", "", 'Ek.3-A'!O90) ->  | K90: ='Ek.3-A'!R90 -> 0 | L90: ='Ek.3-A'!K90 ->  | M90: ='Ek.3-A'!L90 ->  | N90: %0.00 | O90: H | P90: =IF(O90="E",SUM($N$5:N90),0) -> %0.00 | Q90: 0
A91: 1.91 | B91: YERLİ KATKI ORANI RAPORU | D91: 720441990000 | E91: 0.1 | G91: 39 | H91: =IF(TRIM('Ek.3-A'!E91)<>"","var","yok") -> yok | I91: =IF('Ek.3-A'!E91="", "", IF(VLOOKUP('Ek.3-A'!E91, Veriler!D:E, 2, 0)=0, "", VLOOKUP('Ek.3-A'!E91, Veriler!D:E, 2, 0))) ->  | J91: =IF('Ek.3-A'!O91="", "", 'Ek.3-A'!O91) ->  | K91: ='Ek.3-A'!R91 -> 0 | L91: ='Ek.3-A'!K91 ->  | M91: ='Ek.3-A'!L91 ->  | N91: %0.00 | O91: H | P91: =IF(O91="E",SUM($N$5:N91),0) -> %0.00 | Q91: 0
A92: 1.92 | B92: YERLİ KATKI ORANI RAPORU | D92: 720450009000 | E92: 0.1 | G92: 40 | H92: =IF(TRIM('Ek.3-A'!E92)<>"","var","yok") -> yok | I92: =IF('Ek.3-A'!E92="", "", IF(VLOOKUP('Ek.3-A'!E92, Veriler!D:E, 2, 0)=0, "", VLOOKUP('Ek.3-A'!E92, Veriler!D:E, 2, 0))) ->  | J92: =IF('Ek.3-A'!O92="", "", 'Ek.3-A'!O92) ->  | K92: ='Ek.3-A'!R92 -> 0 | L92: ='Ek.3-A'!K92 ->  | M92: ='Ek.3-A'!L92 ->  | N92: %0.00 | O92: H | P92: =IF(O92="E",SUM($N$5:N92),0) -> %0.00 | Q92: 0
A93: 1.93 | B93: YERLİ KATKI ORANI RAPORU | D93: 720851209019 | E93: 0.1 | G93: 41 | H93: =IF(TRIM('Ek.3-A'!E93)<>"","var","yok") -> yok | I93: =IF('Ek.3-A'!E93="", "", IF(VLOOKUP('Ek.3-A'!E93, Veriler!D:E, 2, 0)=0, "", VLOOKUP('Ek.3-A'!E93, Veriler!D:E, 2, 0))) ->  | J93: =IF('Ek.3-A'!O93="", "", 'Ek.3-A'!O93) ->  | K93: ='Ek.3-A'!R93 -> 0 | L93: ='Ek.3-A'!K93 ->  | M93: ='Ek.3-A'!L93 ->  | N93: %0.00 | O93: H | P93: =IF(O93="E",SUM($N$5:N93),0) -> %0.00 | Q93: 0
A94: 1.94 | B94: YERLİ KATKI ORANI RAPORU | D94: 721633909000 | E94: 0.1 | G94: 42 | H94: =IF(TRIM('Ek.3-A'!E94)<>"","var","yok") -> yok | I94: =IF('Ek.3-A'!E94="", "", IF(VLOOKUP('Ek.3-A'!E94, Veriler!D:E, 2, 0)=0, "", VLOOKUP('Ek.3-A'!E94, Veriler!D:E, 2, 0))) ->  | J94: =IF('Ek.3-A'!O94="", "", 'Ek.3-A'!O94) ->  | K94: ='Ek.3-A'!R94 -> 0 | L94: ='Ek.3-A'!K94 ->  | M94: ='Ek.3-A'!L94 ->  | N94: %0.00 | O94: H | P94: =IF(O94="E",SUM($N$5:N94),0) -> %0.00 | Q94: 0
A95: 1.95 | B95: YERLİ KATKI ORANI RAPORU | D95: 720720809019 | E95: 0.1
A96: 1.96 | B96: YERLİ KATKI ORANI RAPORU | D96: 720836009000 | E96: 0.1 | G96: =G71+1 -> 29 | H96: =IF(TRIM('Ek.3-A'!E96)<>"","var","yok") -> yok | I96: =IF('Ek.3-A'!E96="", "", IF(VLOOKUP('Ek.3-A'!E96, Veriler!D:E, 2, 0)=0, "", VLOOKUP('Ek.3-A'!E96, Veriler!D:E, 2, 0))) ->  | J96: =IF('Ek.3-A'!O96="", "", 'Ek.3-A'!O96) ->  | K96: ='Ek.3-A'!R96 -> 0 | L96: ='Ek.3-A'!K96 ->  | M96: ='Ek.3-A'!L96 ->  | N96: =IF(H96="var",0,IF(M96<=0.005,M96,0)) -> %0.00 | O96: =IF(M96<=0.005,"E","H") -> H | P96: =IF(O96="E",SUM($N$5:N96),0) -> %0.00 | Q96: =IF(P96<=0.1, K96, IF(N96>$F$2, N96*K96, $F$2*K96)) -> 0
A97: 1.97 | B97: YERLİ KATKI ORANI RAPORU | D97: 720851919000 | E97: 0.1 | G97: =G96+1 -> 30 | H97: =IF(TRIM('Ek.3-A'!E97)<>"","var","yok") -> yok | I97: =IF('Ek.3-A'!E97="", "", IF(VLOOKUP('Ek.3-A'!E97, Veriler!D:E, 2, 0)=0, "", VLOOKUP('Ek.3-A'!E97, Veriler!D:E, 2, 0))) ->  | J97: =IF('Ek.3-A'!O97="", "", 'Ek.3-A'!O97) ->  | K97: ='Ek.3-A'!R97 -> 0 | L97: ='Ek.3-A'!K97 ->  | M97: ='Ek.3-A'!L97 ->  | N97: =IF(H97="var",0,IF(M97<=0.005,M97,0)) -> %0.00 | O97: =IF(M97<=0.005,"E","H") -> H | P97: =IF(O97="E",SUM($N$5:N97),0) -> %0.00 | Q97: =IF(P97<=0.1, K97, IF(N97>$F$2, N97*K97, $F$2*K97)) -> 0
A98: 1.98 | B98: YERLİ KATKI ORANI RAPORU | D98: 720852919000 | E98: 0.1 | G98: =G97+1 -> 31 | H98: =IF(TRIM('Ek.3-A'!E98)<>"","var","yok") -> yok | I98: =IF('Ek.3-A'!E98="", "", IF(VLOOKUP('Ek.3-A'!E98, Veriler!D:E, 2, 0)=0, "", VLOOKUP('Ek.3-A'!E98, Veriler!D:E, 2, 0))) ->  | J98: =IF('Ek.3-A'!O98="", "", 'Ek.3-A'!O98) ->  | K98: ='Ek.3-A'!R98 -> 0 | L98: ='Ek.3-A'!K98 ->  | M98: ='Ek.3-A'!L98 ->  | N98: %0.00 | O98: H | P98: =IF(O98="E",SUM($N$5:N98),0) -> %0.00 | Q98: 0
A99: 1.99 | B99: YERLİ KATKI ORANI RAPORU | D99: 721070809011 | E99: 0.1 | G99: 32 | H99: =IF(TRIM('Ek.3-A'!E99)<>"","var","yok") -> yok | I99: =IF('Ek.3-A'!E99="", "", IF(VLOOKUP('Ek.3-A'!E99, Veriler!D:E, 2, 0)=0, "", VLOOKUP('Ek.3-A'!E99, Veriler!D:E, 2, 0))) ->  | J99: =IF('Ek.3-A'!O99="", "", 'Ek.3-A'!O99) ->  | K99: ='Ek.3-A'!R99 -> 0 | L99: ='Ek.3-A'!K99 ->  | M99: ='Ek.3-A'!L99 ->  | N99: %0.00 | O99: H | P99: =IF(O99="E",SUM($N$5:N99),0) -> %0.00 | Q99: 0
A100: 2.00 | B100: YERLİ KATKI ORANI RAPORU | D100: 720837009019 | E100: 0.1 | G100: 33 | H100: =IF(TRIM('Ek.3-A'!E100)<>"","var","yok") -> yok | I100: =IF('Ek.3-A'!E100="", "", IF(VLOOKUP('Ek.3-A'!E100, Veriler!D:E, 2, 0)=0, "", VLOOKUP('Ek.3-A'!E100, Veriler!D:E, 2, 0))) ->  | J100: =IF('Ek.3-A'!O100="", "", 'Ek.3-A'!O100) ->  | K100: ='Ek.3-A'!R100 -> 0 | L100: ='Ek.3-A'!K100 ->  | M100: ='Ek.3-A'!L100 ->  | N100: %0.00 | O100: H | P100: =IF(O100="E",SUM($N$5:N100),0) -> %0.00 | Q100: 0
A101: 2.01 | B101: YERLİ KATKI ORANI RAPORU | D101: 720839009019 | E101: 0.1 | G101: 34 | H101: =IF(TRIM('Ek.3-A'!E101)<>"","var","yok") -> yok | I101: =IF('Ek.3-A'!E101="", "", IF(VLOOKUP('Ek.3-A'!E101, Veriler!D:E, 2, 0)=0, "", VLOOKUP('Ek.3-A'!E101, Veriler!D:E, 2, 0))) ->  | J101: =IF('Ek.3-A'!O101="", "", 'Ek.3-A'!O101) ->  | K101: ='Ek.3-A'!R101 -> 0 | L101: ='Ek.3-A'!K101 ->  | M101: ='Ek.3-A'!L101 ->  | N101: %0.00 | O101: H | P101: =IF(O101="E",SUM($N$5:N101),0) -> %0.00 | Q101: 0
A102: 2.02 | B102: YERLİ KATKI ORANI RAPORU | D102: 720838009019 | E102: 0.1 | G102: 35 | H102: =IF(TRIM('Ek.3-A'!E102)<>"","var","yok") -> yok | I102: =IF('Ek.3-A'!E102="", "", IF(VLOOKUP('Ek.3-A'!E102, Veriler!D:E, 2, 0)=0, "", VLOOKUP('Ek.3-A'!E102, Veriler!D:E, 2, 0))) ->  | J102: =IF('Ek.3-A'!O102="", "", 'Ek.3-A'!O102) ->  | K102: ='Ek.3-A'!R102 -> 0 | L102: ='Ek.3-A'!K102 ->  | M102: ='Ek.3-A'!L102 ->  | N102: %0.00 | O102: H | P102: =IF(O102="E",SUM($N$5:N102),0) -> %0.00 | Q102: 0
A103: 2.03 | B103: YERLİ KATKI ORANI RAPORU | D103: 721012200011 | E103: 0.1 | G103: 36 | H103: =IF(TRIM('Ek.3-A'!E103)<>"","var","yok") -> yok | I103: =IF('Ek.3-A'!E103="", "", IF(VLOOKUP('Ek.3-A'!E103, Veriler!D:E, 2, 0)=0, "", VLOOKUP('Ek.3-A'!E103, Veriler!D:E, 2, 0))) ->  | J103: =IF('Ek.3-A'!O103="", "", 'Ek.3-A'!O103) ->  | K103: ='Ek.3-A'!R103 -> 0 | L103: ='Ek.3-A'!K103 ->  | M103: ='Ek.3-A'!L103 ->  | N103: %0.00 | O103: H | P103: =IF(O103="E",SUM($N$5:N103),0) -> %0.00 | Q103: 0
A104: 2.04 | B104: YERLİ KATKI ORANI RAPORU | D104: 721391200000 | E104: 0.1 | G104: 37 | H104: =IF(TRIM('Ek.3-A'!E104)<>"","var","yok") -> yok | I104: =IF('Ek.3-A'!E104="", "", IF(VLOOKUP('Ek.3-A'!E104, Veriler!D:E, 2, 0)=0, "", VLOOKUP('Ek.3-A'!E104, Veriler!D:E, 2, 0))) ->  | J104: =IF('Ek.3-A'!O104="", "", 'Ek.3-A'!O104) ->  | K104: ='Ek.3-A'!R104 -> 0 | L104: ='Ek.3-A'!K104 ->  | M104: ='Ek.3-A'!L104 ->  | N104: %0.00 | O104: H | P104: =IF(O104="E",SUM($N$5:N104),0) -> %0.00 | Q104: 0
A105: 2.05 | B105: YERLİ KATKI ORANI RAPORU | D105: 721391490013 | E105: 0.1 | G105: 38 | H105: =IF(TRIM('Ek.3-A'!E105)<>"","var","yok") -> yok | I105: =IF('Ek.3-A'!E105="", "", IF(VLOOKUP('Ek.3-A'!E105, Veriler!D:E, 2, 0)=0, "", VLOOKUP('Ek.3-A'!E105, Veriler!D:E, 2, 0))) ->  | J105: =IF('Ek.3-A'!O105="", "", 'Ek.3-A'!O105) ->  | K105: ='Ek.3-A'!R105 -> 0 | L105: ='Ek.3-A'!K105 ->  | M105: ='Ek.3-A'!L105 ->  | N105: %0.00 | O105: H | P105: =IF(O105="E",SUM($N$5:N105),0) -> %0.00 | Q105: 0
A106: 2.06 | B106: YERLİ KATKI ORANI RAPORU | D106: 721391410013 | E106: 0.1 | G106: 39 | H106: =IF(TRIM('Ek.3-A'!E106)<>"","var","yok") -> yok | I106: =IF('Ek.3-A'!E106="", "", IF(VLOOKUP('Ek.3-A'!E106, Veriler!D:E, 2, 0)=0, "", VLOOKUP('Ek.3-A'!E106, Veriler!D:E, 2, 0))) ->  | J106: =IF('Ek.3-A'!O106="", "", 'Ek.3-A'!O106) ->  | K106: ='Ek.3-A'!R106 -> 0 | L106: ='Ek.3-A'!K106 ->  | M106: ='Ek.3-A'!L106 ->  | N106: %0.00 | O106: H | P106: =IF(O106="E",SUM($N$5:N106),0) -> %0.00 | Q106: 0
A107: 2.07 | B107: YERLİ KATKI ORANI RAPORU | D107: 720852999000 | E107: 0.1 | G107: 40 | H107: =IF(TRIM('Ek.3-A'!E107)<>"","var","yok") -> yok | I107: =IF('Ek.3-A'!E107="", "", IF(VLOOKUP('Ek.3-A'!E107, Veriler!D:E, 2, 0)=0, "", VLOOKUP('Ek.3-A'!E107, Veriler!D:E, 2, 0))) ->  | J107: =IF('Ek.3-A'!O107="", "", 'Ek.3-A'!O107) ->  | K107: ='Ek.3-A'!R107 -> 0 | L107: ='Ek.3-A'!K107 ->  | M107: ='Ek.3-A'!L107 ->  | N107: %0.00 | O107: H | P107: =IF(O107="E",SUM($N$5:N107),0) -> %0.00 | Q107: 0
A108: 2.08 | B108: YERLİ KATKI ORANI RAPORU | D108: 720826009000 | E108: 0.1 | G108: 41 | H108: =IF(TRIM('Ek.3-A'!E108)<>"","var","yok") -> yok | I108: =IF('Ek.3-A'!E108="", "", IF(VLOOKUP('Ek.3-A'!E108, Veriler!D:E, 2, 0)=0, "", VLOOKUP('Ek.3-A'!E108, Veriler!D:E, 2, 0))) ->  | J108: =IF('Ek.3-A'!O108="", "", 'Ek.3-A'!O108) ->  | K108: ='Ek.3-A'!R108 -> 0 | L108: ='Ek.3-A'!K108 ->  | M108: ='Ek.3-A'!L108 ->  | N108: %0.00 | O108: H | P108: =IF(O108="E",SUM($N$5:N108),0) -> %0.00 | Q108: 0
A109: 2.09 | B109: YERLİ KATKI ORANI RAPORU | D109: 720827009000 | E109: 0.1 | G109: 42 | H109: =IF(TRIM('Ek.3-A'!E109)<>"","var","yok") -> yok | I109: =IF('Ek.3-A'!E109="", "", IF(VLOOKUP('Ek.3-A'!E109, Veriler!D:E, 2, 0)=0, "", VLOOKUP('Ek.3-A'!E109, Veriler!D:E, 2, 0))) ->  | J109: =IF('Ek.3-A'!O109="", "", 'Ek.3-A'!O109) ->  | K109: ='Ek.3-A'!R109 -> 0 | L109: ='Ek.3-A'!K109 ->  | M109: ='Ek.3-A'!L109 ->  | N109: %0.00 | O109: H | P109: =IF(O109="E",SUM($N$5:N109),0) -> %0.00 | Q109: 0
A110: 2.10 | B110: YERLİ KATKI ORANI RAPORU | D110: 731210410000 | E110: 0.1
A111: 2.11 | B111: YERLİ KATKI ORANI RAPORU | D111: 730439839000 | E111: 0.1
A112: 2.12 | B112: YERLİ KATKI ORANI RAPORU | D112: 730439829000 | E112: 0.1
A113: 2.13 | B113: YERLİ KATKI ORANI RAPORU | D113: 730431209000 | E113: 0.1
A114: 2.14 | B114: YERLİ KATKI ORANI RAPORU | D114: 840810810000 | E114: 0.1
A115: 2.15 | B115: YERLİ KATKI ORANI RAPORU | D115: 840721100000 | E115: 0.1
A116: 2.16 | B116: YERLİ KATKI ORANI RAPORU | D116: 840721910000 | E116: 0.1
A117: 2.17 | B117: YERLİ KATKI ORANI RAPORU | D117: 840721990000 | E117: 0.1
A118: 2.18 | B118: YERLİ KATKI ORANI RAPORU | D118: 840810890000 | E118: 0.1
A119: 2.19 | B119: YERLİ KATKI ORANI RAPORU | D119: 310530000000 | E119: 0.1 | G119: =G94+1 -> 43 | H119: =IF(TRIM('Ek.3-A'!E119)<>"","var","yok") -> yok | I119: =IF('Ek.3-A'!E119="", "", IF(VLOOKUP('Ek.3-A'!E119, Veriler!D:E, 2, 0)=0, "", VLOOKUP('Ek.3-A'!E119, Veriler!D:E, 2, 0))) ->  | J119: =IF('Ek.3-A'!O119="", "", 'Ek.3-A'!O119) ->  | K119: ='Ek.3-A'!R119 -> 0 | L119: ='Ek.3-A'!K119 ->  | M119: ='Ek.3-A'!L119 ->  | N119: =IF(H119="var",0,IF(M119<=0.005,M119,0)) -> %0.00 | O119: =IF(M119<=0.005,"E","H") -> H | P119: =IF(O119="E",SUM($N$5:N119),0) -> %0.00 | Q119: =IF(P119<=0.1, K119, IF(N119>$F$2, N119*K119, $F$2*K119)) -> 0
A120: 2.20 | B120: YERLİ KATKI ORANI RAPORU | D120: 271019480018 | E120: 0.1 | G120: =G119+1 -> 44 | H120: =IF(TRIM('Ek.3-A'!E120)<>"","var","yok") -> yok | I120: =IF('Ek.3-A'!E120="", "", IF(VLOOKUP('Ek.3-A'!E120, Veriler!D:E, 2, 0)=0, "", VLOOKUP('Ek.3-A'!E120, Veriler!D:E, 2, 0))) ->  | J120: =IF('Ek.3-A'!O120="", "", 'Ek.3-A'!O120) ->  | K120: ='Ek.3-A'!R120 -> 0 | L120: ='Ek.3-A'!K120 ->  | M120: ='Ek.3-A'!L120 ->  | N120: =IF(H120="var",0,IF(M120<=0.005,M120,0)) -> %0.00 | O120: =IF(M120<=0.005,"E","H") -> H | P120: =IF(O120="E",SUM($N$5:N120),0) -> %0.00 | Q120: =IF(P120<=0.1, K120, IF(N120>$F$2, N120*K120, $F$2*K120)) -> 0
A121: 2.21 | B121: YERLİ KATKI ORANI RAPORU | D121: 390690900000 | E121: 0.1 | G121: =G120+1 -> 45 | H121: =IF(TRIM('Ek.3-A'!E121)<>"","var","yok") -> yok | I121: =IF('Ek.3-A'!E121="", "", IF(VLOOKUP('Ek.3-A'!E121, Veriler!D:E, 2, 0)=0, "", VLOOKUP('Ek.3-A'!E121, Veriler!D:E, 2, 0))) ->  | J121: =IF('Ek.3-A'!O121="", "", 'Ek.3-A'!O121) ->  | K121: ='Ek.3-A'!R121 -> 0 | L121: ='Ek.3-A'!K121 ->  | M121: ='Ek.3-A'!L121 ->  | N121: %0.00 | O121: H | P121: =IF(O121="E",SUM($N$5:N121),0) -> %0.00 | Q121: 0
A122: 2.22 | B122: YERLİ KATKI ORANI RAPORU | D122: 722592000010 | E122: 0.1 | G122: =G121+1 -> 46 | H122: =IF(TRIM('Ek.3-A'!E122)<>"","var","yok") -> yok | I122: =IF('Ek.3-A'!E122="", "", IF(VLOOKUP('Ek.3-A'!E122, Veriler!D:E, 2, 0)=0, "", VLOOKUP('Ek.3-A'!E122, Veriler!D:E, 2, 0))) ->  | J122: =IF('Ek.3-A'!O122="", "", 'Ek.3-A'!O122) ->  | K122: ='Ek.3-A'!R122 -> 0 | L122: ='Ek.3-A'!K122 ->  | M122: ='Ek.3-A'!L122 ->  | N122: %0.00 | O122: H | P122: =IF(O122="E",SUM($N$5:N122),0) -> %0.00 | Q122: 0
A123: 2.23 | B123: YERLİ KATKI ORANI RAPORU | D123: 722540600000 | E123: 0.1 | G123: 47 | H123: =IF(TRIM('Ek.3-A'!E123)<>"","var","yok") -> yok | I123: =IF('Ek.3-A'!E123="", "", IF(VLOOKUP('Ek.3-A'!E123, Veriler!D:E, 2, 0)=0, "", VLOOKUP('Ek.3-A'!E123, Veriler!D:E, 2, 0))) ->  | J123: =IF('Ek.3-A'!O123="", "", 'Ek.3-A'!O123) ->  | K123: ='Ek.3-A'!R123 -> 0 | L123: ='Ek.3-A'!K123 ->  | M123: ='Ek.3-A'!L123 ->  | N123: %0.00 | O123: H | P123: =IF(O123="E",SUM($N$5:N123),0) -> %0.00 | Q123: 0
A124: 2.24 | B124: YERLİ KATKI ORANI RAPORU | D124: 722540400000 | E124: 0.1 | G124: 48 | H124: =IF(TRIM('Ek.3-A'!E124)<>"","var","yok") -> yok | I124: =IF('Ek.3-A'!E124="", "", IF(VLOOKUP('Ek.3-A'!E124, Veriler!D:E, 2, 0)=0, "", VLOOKUP('Ek.3-A'!E124, Veriler!D:E, 2, 0))) ->  | J124: =IF('Ek.3-A'!O124="", "", 'Ek.3-A'!O124) ->  | K124: ='Ek.3-A'!R124 -> 0 | L124: ='Ek.3-A'!K124 ->  | M124: ='Ek.3-A'!L124 ->  | N124: %0.00 | O124: H | P124: =IF(O124="E",SUM($N$5:N124),0) -> %0.00 | Q124: 0
A125: 2.25 | B125: YERLİ KATKI ORANI RAPORU | D125: 722550800012 | E125: 0.1 | G125: 49 | H125: =IF(TRIM('Ek.3-A'!E125)<>"","var","yok") -> yok | I125: =IF('Ek.3-A'!E125="", "", IF(VLOOKUP('Ek.3-A'!E125, Veriler!D:E, 2, 0)=0, "", VLOOKUP('Ek.3-A'!E125, Veriler!D:E, 2, 0))) ->  | J125: =IF('Ek.3-A'!O125="", "", 'Ek.3-A'!O125) ->  | K125: ='Ek.3-A'!R125 -> 0 | L125: ='Ek.3-A'!K125 ->  | M125: ='Ek.3-A'!L125 ->  | N125: %0.00 | O125: H | P125: =IF(O125="E",SUM($N$5:N125),0) -> %0.00 | Q125: 0
A126: 2.26 | B126: YERLİ KATKI ORANI RAPORU | D126: 722599000010 | E126: 0.1 | G126: 50 | H126: =IF(TRIM('Ek.3-A'!E126)<>"","var","yok") -> yok | I126: =IF('Ek.3-A'!E126="", "", IF(VLOOKUP('Ek.3-A'!E126, Veriler!D:E, 2, 0)=0, "", VLOOKUP('Ek.3-A'!E126, Veriler!D:E, 2, 0))) ->  | J126: =IF('Ek.3-A'!O126="", "", 'Ek.3-A'!O126) ->  | K126: ='Ek.3-A'!R126 -> 0 | L126: ='Ek.3-A'!K126 ->  | M126: ='Ek.3-A'!L126 ->  | N126: %0.00 | O126: H | P126: =IF(O126="E",SUM($N$5:N126),0) -> %0.00 | Q126: 0
A127: 2.27 | B127: YERLİ KATKI ORANI RAPORU | D127: 722599000029 | E127: 0.1 | G127: 51 | H127: =IF(TRIM('Ek.3-A'!E127)<>"","var","yok") -> yok | I127: =IF('Ek.3-A'!E127="", "", IF(VLOOKUP('Ek.3-A'!E127, Veriler!D:E, 2, 0)=0, "", VLOOKUP('Ek.3-A'!E127, Veriler!D:E, 2, 0))) ->  | J127: =IF('Ek.3-A'!O127="", "", 'Ek.3-A'!O127) ->  | K127: ='Ek.3-A'!R127 -> 0 | L127: ='Ek.3-A'!K127 ->  | M127: ='Ek.3-A'!L127 ->  | N127: %0.00 | O127: H | P127: =IF(O127="E",SUM($N$5:N127),0) -> %0.00 | Q127: 0
A128: 2.28 | B128: YERLİ KATKI ORANI RAPORU | D128: 722790100000 | E128: 0.1 | G128: 52 | H128: =IF(TRIM('Ek.3-A'!E128)<>"","var","yok") -> yok | I128: =IF('Ek.3-A'!E128="", "", IF(VLOOKUP('Ek.3-A'!E128, Veriler!D:E, 2, 0)=0, "", VLOOKUP('Ek.3-A'!E128, Veriler!D:E, 2, 0))) ->  | J128: =IF('Ek.3-A'!O128="", "", 'Ek.3-A'!O128) ->  | K128: ='Ek.3-A'!R128 -> 0 | L128: ='Ek.3-A'!K128 ->  | M128: ='Ek.3-A'!L128 ->  | N128: %0.00 | O128: H | P128: =IF(O128="E",SUM($N$5:N128),0) -> %0.00 | Q128: 0
A129: 2.29 | B129: YERLİ KATKI ORANI RAPORU | D129: 292249859039 | E129: 0.1 | G129: 53 | H129: =IF(TRIM('Ek.3-A'!E129)<>"","var","yok") -> yok | I129: =IF('Ek.3-A'!E129="", "", IF(VLOOKUP('Ek.3-A'!E129, Veriler!D:E, 2, 0)=0, "", VLOOKUP('Ek.3-A'!E129, Veriler!D:E, 2, 0))) ->  | J129: =IF('Ek.3-A'!O129="", "", 'Ek.3-A'!O129) ->  | K129: ='Ek.3-A'!R129 -> 0 | L129: ='Ek.3-A'!K129 ->  | M129: ='Ek.3-A'!L129 ->  | N129: %0.00 | O129: H | P129: =IF(O129="E",SUM($N$5:N129),0) -> %0.00 | Q129: 0
A130: 2.30 | B130: YERLİ KATKI ORANI RAPORU | D130: 292250009019 | E130: 0.1 | G130: 54 | H130: =IF(TRIM('Ek.3-A'!E130)<>"","var","yok") -> yok | I130: =IF('Ek.3-A'!E130="", "", IF(VLOOKUP('Ek.3-A'!E130, Veriler!D:E, 2, 0)=0, "", VLOOKUP('Ek.3-A'!E130, Veriler!D:E, 2, 0))) ->  | J130: =IF('Ek.3-A'!O130="", "", 'Ek.3-A'!O130) ->  | K130: ='Ek.3-A'!R130 -> 0 | L130: ='Ek.3-A'!K130 ->  | M130: ='Ek.3-A'!L130 ->  | N130: %0.00 | O130: H | P130: =IF(O130="E",SUM($N$5:N130),0) -> %0.00 | Q130: 0
A131: 2.31 | B131: YERLİ KATKI ORANI RAPORU | D131: 294190000059 | E131: 0.1 | G131: 55 | H131: =IF(TRIM('Ek.3-A'!E131)<>"","var","yok") -> yok | I131: =IF('Ek.3-A'!E131="", "", IF(VLOOKUP('Ek.3-A'!E131, Veriler!D:E, 2, 0)=0, "", VLOOKUP('Ek.3-A'!E131, Veriler!D:E, 2, 0))) ->  | J131: =IF('Ek.3-A'!O131="", "", 'Ek.3-A'!O131) ->  | K131: ='Ek.3-A'!R131 -> 0 | L131: ='Ek.3-A'!K131 ->  | M131: ='Ek.3-A'!L131 ->  | N131: %0.00 | O131: H | P131: =IF(O131="E",SUM($N$5:N131),0) -> %0.00 | Q131: 0
A132: 2.32 | B132: YERLİ KATKI ORANI RAPORU | D132: 740400990000 | E132: 0.1 | G132: 56 | H132: =IF(TRIM('Ek.3-A'!E132)<>"","var","yok") -> yok | I132: =IF('Ek.3-A'!E132="", "", IF(VLOOKUP('Ek.3-A'!E132, Veriler!D:E, 2, 0)=0, "", VLOOKUP('Ek.3-A'!E132, Veriler!D:E, 2, 0))) ->  | J132: =IF('Ek.3-A'!O132="", "", 'Ek.3-A'!O132) ->  | K132: ='Ek.3-A'!R132 -> 0 | L132: ='Ek.3-A'!K132 ->  | M132: ='Ek.3-A'!L132 ->  | N132: %0.00 | O132: H | P132: =IF(O132="E",SUM($N$5:N132),0) -> %0.00 | Q132: 0
A133: 2.33 | B133: YERLİ KATKI ORANI RAPORU | D133: 844399100000 | E133: 0.1
A134: 2.34 | B134: YERLİ KATKI ORANI RAPORU | D134: 320649700000 | E134: 0.1 | G134: =G109+1 -> 43 | H134: =IF(TRIM('Ek.3-A'!E134)<>"","var","yok") -> yok | I134: =IF('Ek.3-A'!E134="", "", IF(VLOOKUP('Ek.3-A'!E134, Veriler!D:E, 2, 0)=0, "", VLOOKUP('Ek.3-A'!E134, Veriler!D:E, 2, 0))) ->  | J134: =IF('Ek.3-A'!O134="", "", 'Ek.3-A'!O134) ->  | K134: ='Ek.3-A'!R134 -> 0 | L134: ='Ek.3-A'!K134 ->  | M134: ='Ek.3-A'!L134 ->  | N134: =IF(H134="var",0,IF(M134<=0.005,M134,0)) -> %0.00 | O134: =IF(M134<=0.005,"E","H") -> H | P134: =IF(O134="E",SUM($N$5:N134),0) -> %0.00 | Q134: =IF(P134<=0.1, K134, IF(N134>$F$2, N134*K134, $F$2*K134)) -> 0
A135: 2.35 | B135: YERLİ KATKI ORANI RAPORU | D135: 290539959019 | E135: 0.1 | G135: =G134+1 -> 44 | H135: =IF(TRIM('Ek.3-A'!E135)<>"","var","yok") -> yok | I135: =IF('Ek.3-A'!E135="", "", IF(VLOOKUP('Ek.3-A'!E135, Veriler!D:E, 2, 0)=0, "", VLOOKUP('Ek.3-A'!E135, Veriler!D:E, 2, 0))) ->  | J135: =IF('Ek.3-A'!O135="", "", 'Ek.3-A'!O135) ->  | K135: ='Ek.3-A'!R135 -> 0 | L135: ='Ek.3-A'!K135 ->  | M135: ='Ek.3-A'!L135 ->  | N135: =IF(H135="var",0,IF(M135<=0.005,M135,0)) -> %0.00 | O135: =IF(M135<=0.005,"E","H") -> H | P135: =IF(O135="E",SUM($N$5:N135),0) -> %0.00 | Q135: =IF(P135<=0.1, K135, IF(N135>$F$2, N135*K135, $F$2*K135)) -> 0
A136: 2.36 | B136: YERLİ KATKI ORANI RAPORU | D136: 854239900000 | E136: 0.1 | G136: =G135+1 -> 45 | H136: =IF(TRIM('Ek.3-A'!E136)<>"","var","yok") -> yok | I136: =IF('Ek.3-A'!E136="", "", IF(VLOOKUP('Ek.3-A'!E136, Veriler!D:E, 2, 0)=0, "", VLOOKUP('Ek.3-A'!E136, Veriler!D:E, 2, 0))) ->  | J136: =IF('Ek.3-A'!O136="", "", 'Ek.3-A'!O136) ->  | K136: ='Ek.3-A'!R136 -> 0 | L136: ='Ek.3-A'!K136 ->  | M136: ='Ek.3-A'!L136 ->  | N136: %0.00 | O136: H | P136: =IF(O136="E",SUM($N$5:N136),0) -> %0.00 | Q136: 0
A137: 2.37 | B137: YERLİ KATKI ORANI RAPORU | D137: 350790900019 | E137: 0.1 | G137: 46 | H137: =IF(TRIM('Ek.3-A'!E137)<>"","var","yok") -> yok | I137: =IF('Ek.3-A'!E137="", "", IF(VLOOKUP('Ek.3-A'!E137, Veriler!D:E, 2, 0)=0, "", VLOOKUP('Ek.3-A'!E137, Veriler!D:E, 2, 0))) ->  | J137: =IF('Ek.3-A'!O137="", "", 'Ek.3-A'!O137) ->  | K137: ='Ek.3-A'!R137 -> 0 | L137: ='Ek.3-A'!K137 ->  | M137: ='Ek.3-A'!L137 ->  | N137: %0.00 | O137: H | P137: =IF(O137="E",SUM($N$5:N137),0) -> %0.00 | Q137: 0
A138: 2.38 | B138: YERLİ KATKI ORANI RAPORU | D138: 290949809019 | E138: 0.1 | G138: 47 | H138: =IF(TRIM('Ek.3-A'!E138)<>"","var","yok") -> yok | I138: =IF('Ek.3-A'!E138="", "", IF(VLOOKUP('Ek.3-A'!E138, Veriler!D:E, 2, 0)=0, "", VLOOKUP('Ek.3-A'!E138, Veriler!D:E, 2, 0))) ->  | J138: =IF('Ek.3-A'!O138="", "", 'Ek.3-A'!O138) ->  | K138: ='Ek.3-A'!R138 -> 0 | L138: ='Ek.3-A'!K138 ->  | M138: ='Ek.3-A'!L138 ->  | N138: %0.00 | O138: H | P138: =IF(O138="E",SUM($N$5:N138),0) -> %0.00 | Q138: 0
A139: 2.39 | B139: YERLİ KATKI ORANI RAPORU | D139: 720219000019 | E139: 0.1 | G139: 48 | H139: =IF(TRIM('Ek.3-A'!E139)<>"","var","yok") -> yok | I139: =IF('Ek.3-A'!E139="", "", IF(VLOOKUP('Ek.3-A'!E139, Veriler!D:E, 2, 0)=0, "", VLOOKUP('Ek.3-A'!E139, Veriler!D:E, 2, 0))) ->  | J139: =IF('Ek.3-A'!O139="", "", 'Ek.3-A'!O139) ->  | K139: ='Ek.3-A'!R139 -> 0 | L139: ='Ek.3-A'!K139 ->  | M139: ='Ek.3-A'!L139 ->  | N139: %0.00 | O139: H | P139: =IF(O139="E",SUM($N$5:N139),0) -> %0.00 | Q139: 0
A140: 2.40 | B140: YERLİ KATKI ORANI RAPORU | D140: 720211800000 | E140: 0.1 | G140: 49 | H140: =IF(TRIM('Ek.3-A'!E140)<>"","var","yok") -> yok | I140: =IF('Ek.3-A'!E140="", "", IF(VLOOKUP('Ek.3-A'!E140, Veriler!D:E, 2, 0)=0, "", VLOOKUP('Ek.3-A'!E140, Veriler!D:E, 2, 0))) ->  | J140: =IF('Ek.3-A'!O140="", "", 'Ek.3-A'!O140) ->  | K140: ='Ek.3-A'!R140 -> 0 | L140: ='Ek.3-A'!K140 ->  | M140: ='Ek.3-A'!L140 ->  | N140: %0.00 | O140: H | P140: =IF(O140="E",SUM($N$5:N140),0) -> %0.00 | Q140: 0
A141: 2.41 | B141: YERLİ KATKI ORANI RAPORU | D141: 271019670039 | E141: 0.1 | G141: 50 | H141: =IF(TRIM('Ek.3-A'!E141)<>"","var","yok") -> yok | I141: =IF('Ek.3-A'!E141="", "", IF(VLOOKUP('Ek.3-A'!E141, Veriler!D:E, 2, 0)=0, "", VLOOKUP('Ek.3-A'!E141, Veriler!D:E, 2, 0))) ->  | J141: =IF('Ek.3-A'!O141="", "", 'Ek.3-A'!O141) ->  | K141: ='Ek.3-A'!R141 -> 0 | L141: ='Ek.3-A'!K141 ->  | M141: ='Ek.3-A'!L141 ->  | N141: %0.00 | O141: H | P141: =IF(O141="E",SUM($N$5:N141),0) -> %0.00 | Q141: 0
A142: 2.42 | B142: YERLİ KATKI ORANI RAPORU | D142: 271019660039 | E142: 0.1 | G142: 51 | H142: =IF(TRIM('Ek.3-A'!E142)<>"","var","yok") -> yok | I142: =IF('Ek.3-A'!E142="", "", IF(VLOOKUP('Ek.3-A'!E142, Veriler!D:E, 2, 0)=0, "", VLOOKUP('Ek.3-A'!E142, Veriler!D:E, 2, 0))) ->  | J142: =IF('Ek.3-A'!O142="", "", 'Ek.3-A'!O142) ->  | K142: ='Ek.3-A'!R142 -> 0 | L142: ='Ek.3-A'!K142 ->  | M142: ='Ek.3-A'!L142 ->  | N142: %0.00 | O142: H | P142: =IF(O142="E",SUM($N$5:N142),0) -> %0.00 | Q142: 0
A143: 2.43 | B143: YERLİ KATKI ORANI RAPORU | D143: 271019670049 | E143: 0.1 | G143: 52 | H143: =IF(TRIM('Ek.3-A'!E143)<>"","var","yok") -> yok | I143: =IF('Ek.3-A'!E143="", "", IF(VLOOKUP('Ek.3-A'!E143, Veriler!D:E, 2, 0)=0, "", VLOOKUP('Ek.3-A'!E143, Veriler!D:E, 2, 0))) ->  | J143: =IF('Ek.3-A'!O143="", "", 'Ek.3-A'!O143) ->  | K143: ='Ek.3-A'!R143 -> 0 | L143: ='Ek.3-A'!K143 ->  | M143: ='Ek.3-A'!L143 ->  | N143: %0.00 | O143: H | P143: =IF(O143="E",SUM($N$5:N143),0) -> %0.00 | Q143: 0
A144: 2.44 | B144: YERLİ KATKI ORANI RAPORU | D144: 841199009000 | E144: 0.1 | G144: 53 | H144: =IF(TRIM('Ek.3-A'!E144)<>"","var","yok") -> yok | I144: =IF('Ek.3-A'!E144="", "", IF(VLOOKUP('Ek.3-A'!E144, Veriler!D:E, 2, 0)=0, "", VLOOKUP('Ek.3-A'!E144, Veriler!D:E, 2, 0))) ->  | J144: =IF('Ek.3-A'!O144="", "", 'Ek.3-A'!O144) ->  | K144: ='Ek.3-A'!R144 -> 0 | L144: ='Ek.3-A'!K144 ->  | M144: ='Ek.3-A'!L144 ->  | N144: %0.00 | O144: H | P144: =IF(O144="E",SUM($N$5:N144),0) -> %0.00 | Q144: 0
A145: 2.45 | B145: YERLİ KATKI ORANI RAPORU | D145: 841181009000 | E145: 0.1 | G145: 54 | H145: =IF(TRIM('Ek.3-A'!E145)<>"","var","yok") -> yok | I145: =IF('Ek.3-A'!E145="", "", IF(VLOOKUP('Ek.3-A'!E145, Veriler!D:E, 2, 0)=0, "", VLOOKUP('Ek.3-A'!E145, Veriler!D:E, 2, 0))) ->  | J145: =IF('Ek.3-A'!O145="", "", 'Ek.3-A'!O145) ->  | K145: ='Ek.3-A'!R145 -> 0 | L145: ='Ek.3-A'!K145 ->  | M145: ='Ek.3-A'!L145 ->  | N145: %0.00 | O145: H | P145: =IF(O145="E",SUM($N$5:N145),0) -> %0.00 | Q145: 0
A146: 2.46 | B146: YERLİ KATKI ORANI RAPORU | D146: 841181001000 | E146: 0.1 | G146: 55 | H146: =IF(TRIM('Ek.3-A'!E146)<>"","var","yok") -> yok | I146: =IF('Ek.3-A'!E146="", "", IF(VLOOKUP('Ek.3-A'!E146, Veriler!D:E, 2, 0)=0, "", VLOOKUP('Ek.3-A'!E146, Veriler!D:E, 2, 0))) ->  | J146: =IF('Ek.3-A'!O146="", "", 'Ek.3-A'!O146) ->  | K146: ='Ek.3-A'!R146 -> 0 | L146: ='Ek.3-A'!K146 ->  | M146: ='Ek.3-A'!L146 ->  | N146: %0.00 | O146: H | P146: =IF(O146="E",SUM($N$5:N146),0) -> %0.00 | Q146: 0
A147: 2.47 | B147: YERLİ KATKI ORANI RAPORU | D147: 841182809000 | E147: 0.1 | G147: 56 | H147: =IF(TRIM('Ek.3-A'!E147)<>"","var","yok") -> yok | I147: =IF('Ek.3-A'!E147="", "", IF(VLOOKUP('Ek.3-A'!E147, Veriler!D:E, 2, 0)=0, "", VLOOKUP('Ek.3-A'!E147, Veriler!D:E, 2, 0))) ->  | J147: =IF('Ek.3-A'!O147="", "", 'Ek.3-A'!O147) ->  | K147: ='Ek.3-A'!R147 -> 0 | L147: ='Ek.3-A'!K147 ->  | M147: ='Ek.3-A'!L147 ->  | N147: %0.00 | O147: H | P147: =IF(O147="E",SUM($N$5:N147),0) -> %0.00 | Q147: 0
A148: 2.48 | B148: YERLİ KATKI ORANI RAPORU | D148: 292910000029 | E148: 0.1
A149: 2.49 | B149: YERLİ KATKI ORANI RAPORU | D149: 480255909919 | E149: 0.1
A150: 2.50 | B150: YERLİ KATKI ORANI RAPORU | D150: 840820570000 | E150: 0.1
A151: 2.51 | B151: YERLİ KATKI ORANI RAPORU | D151: 840820550000 | E151: 0.1
A152: 2.52 | B152: YERLİ KATKI ORANI RAPORU | D152: 840820990000 | E152: 0.1
A153: 2.53 | B153: YERLİ KATKI ORANI RAPORU | D153: 280300009019 | E153: 0.1
A154: 2.54 | B154: YERLİ KATKI ORANI RAPORU | D154: 293379000019 | E154: 0.1
A155: 2.55 | B155: YERLİ KATKI ORANI RAPORU | D155: 370130000029 | E155: 0.1
A156: 2.56 | B156: YERLİ KATKI ORANI RAPORU | D156: 900190009900 | E156: 0.1
A157: 2.57 | B157: YERLİ KATKI ORANI RAPORU | D157: 271019990025 | E157: 0.1 | G157: =G132+1 -> 57 | H157: =IF(TRIM('Ek.3-A'!E157)<>"","var","yok") -> yok | I157: =IF('Ek.3-A'!E157="", "", IF(VLOOKUP('Ek.3-A'!E157, Veriler!D:E, 2, 0)=0, "", VLOOKUP('Ek.3-A'!E157, Veriler!D:E, 2, 0))) ->  | J157: =IF('Ek.3-A'!O157="", "", 'Ek.3-A'!O157) ->  | K157: ='Ek.3-A'!R157 -> 0 | L157: ='Ek.3-A'!K157 ->  | M157: ='Ek.3-A'!L157 ->  | N157: =IF(H157="var",0,IF(M157<=0.005,M157,0)) -> %0.00 | O157: =IF(M157<=0.005,"E","H") -> H | P157: =IF(O157="E",SUM($N$5:N157),0) -> %0.00 | Q157: =IF(P157<=0.1, K157, IF(N157>$F$2, N157*K157, $F$2*K157)) -> 0
A158: 2.58 | B158: YERLİ KATKI ORANI RAPORU | D158: 848390899019 | E158: 0.1 | G158: =G157+1 -> 58 | H158: =IF(TRIM('Ek.3-A'!E158)<>"","var","yok") -> yok | I158: =IF('Ek.3-A'!E158="", "", IF(VLOOKUP('Ek.3-A'!E158, Veriler!D:E, 2, 0)=0, "", VLOOKUP('Ek.3-A'!E158, Veriler!D:E, 2, 0))) ->  | J158: =IF('Ek.3-A'!O158="", "", 'Ek.3-A'!O158) ->  | K158: ='Ek.3-A'!R158 -> 0 | L158: ='Ek.3-A'!K158 ->  | M158: ='Ek.3-A'!L158 ->  | N158: =IF(H158="var",0,IF(M158<=0.005,M158,0)) -> %0.00 | O158: =IF(M158<=0.005,"E","H") -> H | P158: =IF(O158="E",SUM($N$5:N158),0) -> %0.00 | Q158: =IF(P158<=0.1, K158, IF(N158>$F$2, N158*K158, $F$2*K158)) -> 0
A159: 2.59 | B159: YERLİ KATKI ORANI RAPORU | D159: 293040900000 | E159: 0.1 | G159: =G158+1 -> 59 | H159: =IF(TRIM('Ek.3-A'!E159)<>"","var","yok") -> yok | I159: =IF('Ek.3-A'!E159="", "", IF(VLOOKUP('Ek.3-A'!E159, Veriler!D:E, 2, 0)=0, "", VLOOKUP('Ek.3-A'!E159, Veriler!D:E, 2, 0))) ->  | J159: =IF('Ek.3-A'!O159="", "", 'Ek.3-A'!O159) ->  | K159: ='Ek.3-A'!R159 -> 0 | L159: ='Ek.3-A'!K159 ->  | M159: ='Ek.3-A'!L159 ->  | N159: %0.00 | O159: H | P159: =IF(O159="E",SUM($N$5:N159),0) -> %0.00 | Q159: 0
A160: 2.60 | B160: YERLİ KATKI ORANI RAPORU | D160: 340490009000 | E160: 0.1 | G160: =G159+1 -> 60 | H160: =IF(TRIM('Ek.3-A'!E160)<>"","var","yok") -> yok | I160: =IF('Ek.3-A'!E160="", "", IF(VLOOKUP('Ek.3-A'!E160, Veriler!D:E, 2, 0)=0, "", VLOOKUP('Ek.3-A'!E160, Veriler!D:E, 2, 0))) ->  | J160: =IF('Ek.3-A'!O160="", "", 'Ek.3-A'!O160) ->  | K160: ='Ek.3-A'!R160 -> 0 | L160: ='Ek.3-A'!K160 ->  | M160: ='Ek.3-A'!L160 ->  | N160: %0.00 | O160: H | P160: =IF(O160="E",SUM($N$5:N160),0) -> %0.00 | Q160: 0
A161: 2.61 | B161: YERLİ KATKI ORANI RAPORU | D161: 293499909027 | E161: 0.1 | G161: 61 | H161: =IF(TRIM('Ek.3-A'!E161)<>"","var","yok") -> yok | I161: =IF('Ek.3-A'!E161="", "", IF(VLOOKUP('Ek.3-A'!E161, Veriler!D:E, 2, 0)=0, "", VLOOKUP('Ek.3-A'!E161, Veriler!D:E, 2, 0))) ->  | J161: =IF('Ek.3-A'!O161="", "", 'Ek.3-A'!O161) ->  | K161: ='Ek.3-A'!R161 -> 0 | L161: ='Ek.3-A'!K161 ->  | M161: ='Ek.3-A'!L161 ->  | N161: %0.00 | O161: H | P161: =IF(O161="E",SUM($N$5:N161),0) -> %0.00 | Q161: 0
A162: 2.62 | B162: YERLİ KATKI ORANI RAPORU | D162: 390290900000 | E162: 0.1 | G162: 62 | H162: =IF(TRIM('Ek.3-A'!E162)<>"","var","yok") -> yok | I162: =IF('Ek.3-A'!E162="", "", IF(VLOOKUP('Ek.3-A'!E162, Veriler!D:E, 2, 0)=0, "", VLOOKUP('Ek.3-A'!E162, Veriler!D:E, 2, 0))) ->  | J162: =IF('Ek.3-A'!O162="", "", 'Ek.3-A'!O162) ->  | K162: ='Ek.3-A'!R162 -> 0 | L162: ='Ek.3-A'!K162 ->  | M162: ='Ek.3-A'!L162 ->  | N162: %0.00 | O162: H | P162: =IF(O162="E",SUM($N$5:N162),0) -> %0.00 | Q162: 0
A163: 2.63 | B163: YERLİ KATKI ORANI RAPORU | D163: 293190009068 | E163: 0.1 | G163: 63 | H163: =IF(TRIM('Ek.3-A'!E163)<>"","var","yok") -> yok | I163: =IF('Ek.3-A'!E163="", "", IF(VLOOKUP('Ek.3-A'!E163, Veriler!D:E, 2, 0)=0, "", VLOOKUP('Ek.3-A'!E163, Veriler!D:E, 2, 0))) ->  | J163: =IF('Ek.3-A'!O163="", "", 'Ek.3-A'!O163) ->  | K163: ='Ek.3-A'!R163 -> 0 | L163: ='Ek.3-A'!K163 ->  | M163: ='Ek.3-A'!L163 ->  | N163: %0.00 | O163: H | P163: =IF(O163="E",SUM($N$5:N163),0) -> %0.00 | Q163: 0
A164: 2.64 | B164: YERLİ KATKI ORANI RAPORU | D164: 391729009000 | E164: 0.1 | G164: 64 | H164: =IF(TRIM('Ek.3-A'!E164)<>"","var","yok") -> yok | I164: =IF('Ek.3-A'!E164="", "", IF(VLOOKUP('Ek.3-A'!E164, Veriler!D:E, 2, 0)=0, "", VLOOKUP('Ek.3-A'!E164, Veriler!D:E, 2, 0))) ->  | J164: =IF('Ek.3-A'!O164="", "", 'Ek.3-A'!O164) ->  | K164: ='Ek.3-A'!R164 -> 0 | L164: ='Ek.3-A'!K164 ->  | M164: ='Ek.3-A'!L164 ->  | N164: %0.00 | O164: H | P164: =IF(O164="E",SUM($N$5:N164),0) -> %0.00 | Q164: 0
A165: 2.65 | B165: YERLİ KATKI ORANI RAPORU | D165: 390729990000 | E165: 0.1 | G165: 65 | H165: =IF(TRIM('Ek.3-A'!E165)<>"","var","yok") -> yok | I165: =IF('Ek.3-A'!E165="", "", IF(VLOOKUP('Ek.3-A'!E165, Veriler!D:E, 2, 0)=0, "", VLOOKUP('Ek.3-A'!E165, Veriler!D:E, 2, 0))) ->  | J165: =IF('Ek.3-A'!O165="", "", 'Ek.3-A'!O165) ->  | K165: ='Ek.3-A'!R165 -> 0 | L165: ='Ek.3-A'!K165 ->  | M165: ='Ek.3-A'!L165 ->  | N165: %0.00 | O165: H | P165: =IF(O165="E",SUM($N$5:N165),0) -> %0.00 | Q165: 0
A166: 2.66 | B166: YERLİ KATKI ORANI RAPORU | D166: 390120900019 | E166: 0.1 | G166: 66 | H166: =IF(TRIM('Ek.3-A'!E166)<>"","var","yok") -> yok | I166: =IF('Ek.3-A'!E166="", "", IF(VLOOKUP('Ek.3-A'!E166, Veriler!D:E, 2, 0)=0, "", VLOOKUP('Ek.3-A'!E166, Veriler!D:E, 2, 0))) ->  | J166: =IF('Ek.3-A'!O166="", "", 'Ek.3-A'!O166) ->  | K166: ='Ek.3-A'!R166 -> 0 | L166: ='Ek.3-A'!K166 ->  | M166: ='Ek.3-A'!L166 ->  | N166: %0.00 | O166: H | P166: =IF(O166="E",SUM($N$5:N166),0) -> %0.00 | Q166: 0
A167: 2.67 | B167: YERLİ KATKI ORANI RAPORU | D167: 390210000019 | E167: 0.1 | G167: 67 | H167: =IF(TRIM('Ek.3-A'!E167)<>"","var","yok") -> yok | I167: =IF('Ek.3-A'!E167="", "", IF(VLOOKUP('Ek.3-A'!E167, Veriler!D:E, 2, 0)=0, "", VLOOKUP('Ek.3-A'!E167, Veriler!D:E, 2, 0))) ->  | J167: =IF('Ek.3-A'!O167="", "", 'Ek.3-A'!O167) ->  | K167: ='Ek.3-A'!R167 -> 0 | L167: ='Ek.3-A'!K167 ->  | M167: ='Ek.3-A'!L167 ->  | N167: %0.00 | O167: H | P167: =IF(O167="E",SUM($N$5:N167),0) -> %0.00 | Q167: 0
A168: 2.68 | B168: YERLİ KATKI ORANI RAPORU | D168: 853321000000 | E168: 0.1 | G168: 68 | H168: =IF(TRIM('Ek.3-A'!E168)<>"","var","yok") -> yok | I168: =IF('Ek.3-A'!E168="", "", IF(VLOOKUP('Ek.3-A'!E168, Veriler!D:E, 2, 0)=0, "", VLOOKUP('Ek.3-A'!E168, Veriler!D:E, 2, 0))) ->  | J168: =IF('Ek.3-A'!O168="", "", 'Ek.3-A'!O168) ->  | K168: ='Ek.3-A'!R168 -> 0 | L168: ='Ek.3-A'!K168 ->  | M168: ='Ek.3-A'!L168 ->  | N168: %0.00 | O168: H | P168: =IF(O168="E",SUM($N$5:N168),0) -> %0.00 | Q168: 0
A169: 2.69 | B169: YERLİ KATKI ORANI RAPORU | D169: 294190000048 | E169: 0.1 | G169: 69 | H169: =IF(TRIM('Ek.3-A'!E169)<>"","var","yok") -> yok | I169: =IF('Ek.3-A'!E169="", "", IF(VLOOKUP('Ek.3-A'!E169, Veriler!D:E, 2, 0)=0, "", VLOOKUP('Ek.3-A'!E169, Veriler!D:E, 2, 0))) ->  | J169: =IF('Ek.3-A'!O169="", "", 'Ek.3-A'!O169) ->  | K169: ='Ek.3-A'!R169 -> 0 | L169: ='Ek.3-A'!K169 ->  | M169: ='Ek.3-A'!L169 ->  | N169: %0.00 | O169: H | P169: =IF(O169="E",SUM($N$5:N169),0) -> %0.00 | Q169: 0
A170: 2.70 | B170: YERLİ KATKI ORANI RAPORU | D170: 391239850000 | E170: 0.1 | G170: 70 | H170: =IF(TRIM('Ek.3-A'!E170)<>"","var","yok") -> yok | I170: =IF('Ek.3-A'!E170="", "", IF(VLOOKUP('Ek.3-A'!E170, Veriler!D:E, 2, 0)=0, "", VLOOKUP('Ek.3-A'!E170, Veriler!D:E, 2, 0))) ->  | J170: =IF('Ek.3-A'!O170="", "", 'Ek.3-A'!O170) ->  | K170: ='Ek.3-A'!R170 -> 0 | L170: ='Ek.3-A'!K170 ->  | M170: ='Ek.3-A'!L170 ->  | N170: %0.00 | O170: H | P170: =IF(O170="E",SUM($N$5:N170),0) -> %0.00 | Q170: 0
A171: 2.71 | B171: YERLİ KATKI ORANI RAPORU | D171: 540419000000 | E171: 0.1
A172: 2.72 | B172: YERLİ KATKI ORANI RAPORU | D172: 292429700048 | E172: 0.1 | G172: =G147+1 -> 57 | H172: =IF(TRIM('Ek.3-A'!E172)<>"","var","yok") -> yok | I172: =IF('Ek.3-A'!E172="", "", IF(VLOOKUP('Ek.3-A'!E172, Veriler!D:E, 2, 0)=0, "", VLOOKUP('Ek.3-A'!E172, Veriler!D:E, 2, 0))) ->  | J172: =IF('Ek.3-A'!O172="", "", 'Ek.3-A'!O172) ->  | K172: ='Ek.3-A'!R172 -> 0 | L172: ='Ek.3-A'!K172 ->  | M172: ='Ek.3-A'!L172 ->  | N172: =IF(H172="var",0,IF(M172<=0.005,M172,0)) -> %0.00 | O172: =IF(M172<=0.005,"E","H") -> H | P172: =IF(O172="E",SUM($N$5:N172),0) -> %0.00 | Q172: =IF(P172<=0.1, K172, IF(N172>$F$2, N172*K172, $F$2*K172)) -> 0
A173: 2.73 | B173: YERLİ KATKI ORANI RAPORU | D173: 848250000000 | E173: 0.1 | G173: =G172+1 -> 58 | H173: =IF(TRIM('Ek.3-A'!E173)<>"","var","yok") -> yok | I173: =IF('Ek.3-A'!E173="", "", IF(VLOOKUP('Ek.3-A'!E173, Veriler!D:E, 2, 0)=0, "", VLOOKUP('Ek.3-A'!E173, Veriler!D:E, 2, 0))) ->  | J173: =IF('Ek.3-A'!O173="", "", 'Ek.3-A'!O173) ->  | K173: ='Ek.3-A'!R173 -> 0 | L173: ='Ek.3-A'!K173 ->  | M173: ='Ek.3-A'!L173 ->  | N173: =IF(H173="var",0,IF(M173<=0.005,M173,0)) -> %0.00 | O173: =IF(M173<=0.005,"E","H") -> H | P173: =IF(O173="E",SUM($N$5:N173),0) -> %0.00 | Q173: =IF(P173<=0.1, K173, IF(N173>$F$2, N173*K173, $F$2*K173)) -> 0
A174: 2.74 | B174: YERLİ KATKI ORANI RAPORU | D174: 280700000019 | E174: 0.1 | G174: =G173+1 -> 59 | H174: =IF(TRIM('Ek.3-A'!E174)<>"","var","yok") -> yok | I174: =IF('Ek.3-A'!E174="", "", IF(VLOOKUP('Ek.3-A'!E174, Veriler!D:E, 2, 0)=0, "", VLOOKUP('Ek.3-A'!E174, Veriler!D:E, 2, 0))) ->  | J174: =IF('Ek.3-A'!O174="", "", 'Ek.3-A'!O174) ->  | K174: ='Ek.3-A'!R174 -> 0 | L174: ='Ek.3-A'!K174 ->  | M174: ='Ek.3-A'!L174 ->  | N174: %0.00 | O174: H | P174: =IF(O174="E",SUM($N$5:N174),0) -> %0.00 | Q174: 0
A175: 2.75 | B175: YERLİ KATKI ORANI RAPORU | D175: 293590900029 | E175: 0.1 | G175: 60 | H175: =IF(TRIM('Ek.3-A'!E175)<>"","var","yok") -> yok | I175: =IF('Ek.3-A'!E175="", "", IF(VLOOKUP('Ek.3-A'!E175, Veriler!D:E, 2, 0)=0, "", VLOOKUP('Ek.3-A'!E175, Veriler!D:E, 2, 0))) ->  | J175: =IF('Ek.3-A'!O175="", "", 'Ek.3-A'!O175) ->  | K175: ='Ek.3-A'!R175 -> 0 | L175: ='Ek.3-A'!K175 ->  | M175: ='Ek.3-A'!L175 ->  | N175: %0.00 | O175: H | P175: =IF(O175="E",SUM($N$5:N175),0) -> %0.00 | Q175: 0
A176: 2.76 | B176: YERLİ KATKI ORANI RAPORU | D176: 391390009000 | E176: 0.1 | G176: 61 | H176: =IF(TRIM('Ek.3-A'!E176)<>"","var","yok") -> yok | I176: =IF('Ek.3-A'!E176="", "", IF(VLOOKUP('Ek.3-A'!E176, Veriler!D:E, 2, 0)=0, "", VLOOKUP('Ek.3-A'!E176, Veriler!D:E, 2, 0))) ->  | J176: =IF('Ek.3-A'!O176="", "", 'Ek.3-A'!O176) ->  | K176: ='Ek.3-A'!R176 -> 0 | L176: ='Ek.3-A'!K176 ->  | M176: ='Ek.3-A'!L176 ->  | N176: %0.00 | O176: H | P176: =IF(O176="E",SUM($N$5:N176),0) -> %0.00 | Q176: 0
A177: 2.77 | B177: YERLİ KATKI ORANI RAPORU | D177: 271019990098 | E177: 0.1 | G177: 62 | H177: =IF(TRIM('Ek.3-A'!E177)<>"","var","yok") -> yok | I177: =IF('Ek.3-A'!E177="", "", IF(VLOOKUP('Ek.3-A'!E177, Veriler!D:E, 2, 0)=0, "", VLOOKUP('Ek.3-A'!E177, Veriler!D:E, 2, 0))) ->  | J177: =IF('Ek.3-A'!O177="", "", 'Ek.3-A'!O177) ->  | K177: ='Ek.3-A'!R177 -> 0 | L177: ='Ek.3-A'!K177 ->  | M177: ='Ek.3-A'!L177 ->  | N177: %0.00 | O177: H | P177: =IF(O177="E",SUM($N$5:N177),0) -> %0.00 | Q177: 0
A178: 2.78 | B178: YERLİ KATKI ORANI RAPORU | D178: 854159000000 | E178: 0.1 | G178: 63 | H178: =IF(TRIM('Ek.3-A'!E178)<>"","var","yok") -> yok | I178: =IF('Ek.3-A'!E178="", "", IF(VLOOKUP('Ek.3-A'!E178, Veriler!D:E, 2, 0)=0, "", VLOOKUP('Ek.3-A'!E178, Veriler!D:E, 2, 0))) ->  | J178: =IF('Ek.3-A'!O178="", "", 'Ek.3-A'!O178) ->  | K178: ='Ek.3-A'!R178 -> 0 | L178: ='Ek.3-A'!K178 ->  | M178: ='Ek.3-A'!L178 ->  | N178: %0.00 | O178: H | P178: =IF(O178="E",SUM($N$5:N178),0) -> %0.00 | Q178: 0
A179: 2.79 | B179: YERLİ KATKI ORANI RAPORU | D179: 271019870000 | E179: 0.1 | G179: 64 | H179: =IF(TRIM('Ek.3-A'!E179)<>"","var","yok") -> yok | I179: =IF('Ek.3-A'!E179="", "", IF(VLOOKUP('Ek.3-A'!E179, Veriler!D:E, 2, 0)=0, "", VLOOKUP('Ek.3-A'!E179, Veriler!D:E, 2, 0))) ->  | J179: =IF('Ek.3-A'!O179="", "", 'Ek.3-A'!O179) ->  | K179: ='Ek.3-A'!R179 -> 0 | L179: ='Ek.3-A'!K179 ->  | M179: ='Ek.3-A'!L179 ->  | N179: %0.00 | O179: H | P179: =IF(O179="E",SUM($N$5:N179),0) -> %0.00 | Q179: 0
A180: 2.80 | B180: YERLİ KATKI ORANI RAPORU | D180: 854190000019 | E180: 0.1 | G180: 65 | H180: =IF(TRIM('Ek.3-A'!E180)<>"","var","yok") -> yok | I180: =IF('Ek.3-A'!E180="", "", IF(VLOOKUP('Ek.3-A'!E180, Veriler!D:E, 2, 0)=0, "", VLOOKUP('Ek.3-A'!E180, Veriler!D:E, 2, 0))) ->  | J180: =IF('Ek.3-A'!O180="", "", 'Ek.3-A'!O180) ->  | K180: ='Ek.3-A'!R180 -> 0 | L180: ='Ek.3-A'!K180 ->  | M180: ='Ek.3-A'!L180 ->  | N180: %0.00 | O180: H | P180: =IF(O180="E",SUM($N$5:N180),0) -> %0.00 | Q180: 0
A181: 2.81 | B181: YERLİ KATKI ORANI RAPORU | D181: 854110000000 | E181: 0.1 | G181: 66 | H181: =IF(TRIM('Ek.3-A'!E181)<>"","var","yok") -> yok | I181: =IF('Ek.3-A'!E181="", "", IF(VLOOKUP('Ek.3-A'!E181, Veriler!D:E, 2, 0)=0, "", VLOOKUP('Ek.3-A'!E181, Veriler!D:E, 2, 0))) ->  | J181: =IF('Ek.3-A'!O181="", "", 'Ek.3-A'!O181) ->  | K181: ='Ek.3-A'!R181 -> 0 | L181: ='Ek.3-A'!K181 ->  | M181: ='Ek.3-A'!L181 ->  | N181: %0.00 | O181: H | P181: =IF(O181="E",SUM($N$5:N181),0) -> %0.00 | Q181: 0
A182: 2.82 | B182: YERLİ KATKI ORANI RAPORU | D182: 850110990000 | E182: 0.1 | G182: 67 | H182: =IF(TRIM('Ek.3-A'!E182)<>"","var","yok") -> yok | I182: =IF('Ek.3-A'!E182="", "", IF(VLOOKUP('Ek.3-A'!E182, Veriler!D:E, 2, 0)=0, "", VLOOKUP('Ek.3-A'!E182, Veriler!D:E, 2, 0))) ->  | J182: =IF('Ek.3-A'!O182="", "", 'Ek.3-A'!O182) ->  | K182: ='Ek.3-A'!R182 -> 0 | L182: ='Ek.3-A'!K182 ->  | M182: ='Ek.3-A'!L182 ->  | N182: %0.00 | O182: H | P182: =IF(O182="E",SUM($N$5:N182),0) -> %0.00 | Q182: 0
A183: 2.83 | B183: YERLİ KATKI ORANI RAPORU | D183: 560122100011 | E183: 0.1 | G183: 68 | H183: =IF(TRIM('Ek.3-A'!E183)<>"","var","yok") -> yok | I183: =IF('Ek.3-A'!E183="", "", IF(VLOOKUP('Ek.3-A'!E183, Veriler!D:E, 2, 0)=0, "", VLOOKUP('Ek.3-A'!E183, Veriler!D:E, 2, 0))) ->  | J183: =IF('Ek.3-A'!O183="", "", 'Ek.3-A'!O183) ->  | K183: ='Ek.3-A'!R183 -> 0 | L183: ='Ek.3-A'!K183 ->  | M183: ='Ek.3-A'!L183 ->  | N183: %0.00 | O183: H | P183: =IF(O183="E",SUM($N$5:N183),0) -> %0.00 | Q183: 0
A184: 2.84 | B184: YERLİ KATKI ORANI RAPORU | D184: 381800100000 | E184: 0.1 | G184: 69 | H184: =IF(TRIM('Ek.3-A'!E184)<>"","var","yok") -> yok | I184: =IF('Ek.3-A'!E184="", "", IF(VLOOKUP('Ek.3-A'!E184, Veriler!D:E, 2, 0)=0, "", VLOOKUP('Ek.3-A'!E184, Veriler!D:E, 2, 0))) ->  | J184: =IF('Ek.3-A'!O184="", "", 'Ek.3-A'!O184) ->  | K184: ='Ek.3-A'!R184 -> 0 | L184: ='Ek.3-A'!K184 ->  | M184: ='Ek.3-A'!L184 ->  | N184: %0.00 | O184: H | P184: =IF(O184="E",SUM($N$5:N184),0) -> %0.00 | Q184: 0
A185: 2.85 | B185: YERLİ KATKI ORANI RAPORU | D185: 291590700049 | E185: 0.1 | G185: 70 | H185: =IF(TRIM('Ek.3-A'!E185)<>"","var","yok") -> yok | I185: =IF('Ek.3-A'!E185="", "", IF(VLOOKUP('Ek.3-A'!E185, Veriler!D:E, 2, 0)=0, "", VLOOKUP('Ek.3-A'!E185, Veriler!D:E, 2, 0))) ->  | J185: =IF('Ek.3-A'!O185="", "", 'Ek.3-A'!O185) ->  | K185: ='Ek.3-A'!R185 -> 0 | L185: ='Ek.3-A'!K185 ->  | M185: ='Ek.3-A'!L185 ->  | N185: %0.00 | O185: H | P185: =IF(O185="E",SUM($N$5:N185),0) -> %0.00 | Q185: 0
A186: 2.86 | B186: YERLİ KATKI ORANI RAPORU | D186: 720410000019 | E186: 0.1
A187: 2.87 | B187: YERLİ KATKI ORANI RAPORU | D187: 720410000011 | E187: 0.1
A188: 2.88 | B188: YERLİ KATKI ORANI RAPORU | D188: 700600900019 | E188: 0.1
A189: 2.89 | B189: YERLİ KATKI ORANI RAPORU | D189: 700600900011 | E189: 0.1
A190: 2.90 | B190: YERLİ KATKI ORANI RAPORU | D190: 360100000012 | E190: 0.1
A191: 2.91 | B191: YERLİ KATKI ORANI RAPORU | D191: 853630100000 | E191: 0.1
A192: 2.92 | B192: YERLİ KATKI ORANI RAPORU | D192: 854232750000 | E192: 0.1
A193: 2.93 | B193: YERLİ KATKI ORANI RAPORU | D193: 854511000011 | E193: 0.1
A194: 2.94 | B194: YERLİ KATKI ORANI RAPORU | D194: 854720000000 | E194: 0.1
A195: 2.95 | B195: YERLİ KATKI ORANI RAPORU | D195: 853190000000 | E195: 0.1 | G195: =G170+1 -> 71 | H195: =IF(TRIM('Ek.3-A'!E195)<>"","var","yok") -> yok | I195: =IF('Ek.3-A'!E195="", "", IF(VLOOKUP('Ek.3-A'!E195, Veriler!D:E, 2, 0)=0, "", VLOOKUP('Ek.3-A'!E195, Veriler!D:E, 2, 0))) ->  | J195: =IF('Ek.3-A'!O195="", "", 'Ek.3-A'!O195) ->  | K195: ='Ek.3-A'!R195 -> 0 | L195: ='Ek.3-A'!K195 ->  | M195: ='Ek.3-A'!L195 ->  | N195: =IF(H195="var",0,IF(M195<=0.005,M195,0)) -> %0.00 | O195: =IF(M195<=0.005,"E","H") -> H | P195: =IF(O195="E",SUM($N$5:N195),0) -> %0.00 | Q195: =IF(P195<=0.1, K195, IF(N195>$F$2, N195*K195, $F$2*K195)) -> 0
A196: 2.96 | B196: YERLİ KATKI ORANI RAPORU | D196: 854999000000 | E196: 0.1 | G196: =G195+1 -> 72 | H196: =IF(TRIM('Ek.3-A'!E196)<>"","var","yok") -> yok | I196: =IF('Ek.3-A'!E196="", "", IF(VLOOKUP('Ek.3-A'!E196, Veriler!D:E, 2, 0)=0, "", VLOOKUP('Ek.3-A'!E196, Veriler!D:E, 2, 0))) ->  | J196: =IF('Ek.3-A'!O196="", "", 'Ek.3-A'!O196) ->  | K196: ='Ek.3-A'!R196 -> 0 | L196: ='Ek.3-A'!K196 ->  | M196: ='Ek.3-A'!L196 ->  | N196: =IF(H196="var",0,IF(M196<=0.005,M196,0)) -> %0.00 | O196: =IF(M196<=0.005,"E","H") -> H | P196: =IF(O196="E",SUM($N$5:N196),0) -> %0.00 | Q196: =IF(P196<=0.1, K196, IF(N196>$F$2, N196*K196, $F$2*K196)) -> 0
A197: 2.97 | B197: YERLİ KATKI ORANI RAPORU | D197: 854290000000 | E197: 0.1 | G197: =G196+1 -> 73 | H197: =IF(TRIM('Ek.3-A'!E197)<>"","var","yok") -> yok | I197: =IF('Ek.3-A'!E197="", "", IF(VLOOKUP('Ek.3-A'!E197, Veriler!D:E, 2, 0)=0, "", VLOOKUP('Ek.3-A'!E197, Veriler!D:E, 2, 0))) ->  | J197: =IF('Ek.3-A'!O197="", "", 'Ek.3-A'!O197) ->  | K197: ='Ek.3-A'!R197 -> 0 | L197: ='Ek.3-A'!K197 ->  | M197: ='Ek.3-A'!L197 ->  | N197: %0.00 | O197: H | P197: =IF(O197="E",SUM($N$5:N197),0) -> %0.00 | Q197: 0
A198: 2.98 | B198: YERLİ KATKI ORANI RAPORU | D198: 381800900000 | E198: 0.1 | G198: =G197+1 -> 74 | H198: =IF(TRIM('Ek.3-A'!E198)<>"","var","yok") -> yok | I198: =IF('Ek.3-A'!E198="", "", IF(VLOOKUP('Ek.3-A'!E198, Veriler!D:E, 2, 0)=0, "", VLOOKUP('Ek.3-A'!E198, Veriler!D:E, 2, 0))) ->  | J198: =IF('Ek.3-A'!O198="", "", 'Ek.3-A'!O198) ->  | K198: ='Ek.3-A'!R198 -> 0 | L198: ='Ek.3-A'!K198 ->  | M198: ='Ek.3-A'!L198 ->  | N198: %0.00 | O198: H | P198: =IF(O198="E",SUM($N$5:N198),0) -> %0.00 | Q198: 0
A199: 2.99 | B199: YERLİ KATKI ORANI RAPORU | D199: 400219100000 | E199: 0.1 | G199: 75 | H199: =IF(TRIM('Ek.3-A'!E199)<>"","var","yok") -> yok | I199: =IF('Ek.3-A'!E199="", "", IF(VLOOKUP('Ek.3-A'!E199, Veriler!D:E, 2, 0)=0, "", VLOOKUP('Ek.3-A'!E199, Veriler!D:E, 2, 0))) ->  | J199: =IF('Ek.3-A'!O199="", "", 'Ek.3-A'!O199) ->  | K199: ='Ek.3-A'!R199 -> 0 | L199: ='Ek.3-A'!K199 ->  | M199: ='Ek.3-A'!L199 ->  | N199: %0.00 | O199: H | P199: =IF(O199="E",SUM($N$5:N199),0) -> %0.00 | Q199: 0
A200: 3.00 | B200: YERLİ KATKI ORANI RAPORU | D200: 390730000000 | E200: 0.1 | G200: 76 | H200: =IF(TRIM('Ek.3-A'!E200)<>"","var","yok") -> yok | I200: =IF('Ek.3-A'!E200="", "", IF(VLOOKUP('Ek.3-A'!E200, Veriler!D:E, 2, 0)=0, "", VLOOKUP('Ek.3-A'!E200, Veriler!D:E, 2, 0))) ->  | J200: =IF('Ek.3-A'!O200="", "", 'Ek.3-A'!O200) ->  | K200: ='Ek.3-A'!R200 -> 0 | L200: ='Ek.3-A'!K200 ->  | M200: ='Ek.3-A'!L200 ->  | N200: %0.00 | O200: H | P200: =IF(O200="E",SUM($N$5:N200),0) -> %0.00 | Q200: 0
... 9700 more rows
